Workbook

Sheet Main
B10: 2019-02-26
B12: Sheet No. | C12: Template Name | D12: Summary
B13: 1 | C13: Future Intra | D13: For Intraday trading in F&O segment
B14: 2 | C14: Cash Intra | D14: For Intraday trading in cash market segment
B15: 3 | C15: Mid-cap Intra | D15: For Intraday trading in Mid-cap stocks
B16: 4 | C16: Bulk Deals | D16: Reveals Bulk Deals carried on NSE & BSE
B17: 5 | C17: Call Tracker

Sheet Future Intra
M5: Back to Main Page
A6: FOR INTRA DAY TRADING | L6: =Main!B10 -> 2019-02-26
A9: Sr.no | B9: Sector | C9: Scrip | D9: CLOSE RATE | E9: Pivot Point | F9: Supports | I9: Resistances
B10: Sector | D10: Point | E10: Point | F10: S1 | G10: S2 | H10: S3 | I10: R1 | J10: R2 | K10: R3 | L10: HIGH | M10: LOW | N10: OI | O10: % Change in OI
A11: 1 | B11: Index | C11: BANKNIFTY | D11: 27171.55 | E11: 27110.18 | F11: 27011.47 | G11: 26851.38 | H11: 26752.67 | I11: 27270.27 | J11: 27368.98 | K11: 27529.07 | L11: 27208.9 | M11: 26950.1 | N11: 1508320 | O11: -1.05%
A12: 2 | B12: Index | C12: NIFTY | D12: 10887.05 | E12: 10862.08 | F12: 10827.27 | G12: 10767.48 | H12: 10732.67 | I12: 10921.87 | J12: 10956.68 | K12: 11016.47 | L12: 10896.9 | M12: 10802.3 | N12: 23864850 | O12: 1.06%
A13: 3 | B13: Index | C13: NIFTYIT | D13: 16028.00 | E13: 15943.67 | F13: 15838.33 | G13: 15648.67 | H13: 15543.33 | I13: 16133.33 | J13: 16238.67 | K13: 16428.33 | L13: 16049 | M13: 15754 | N13: 20950 | O13: 5.28%
A14: 4 | B14: Cement | C14: ACC | D14: 1381.25 | E14: 1382.52 | F14: 1370.73 | G14: 1360.22 | H14: 1348.43 | I14: 1393.03 | J14: 1404.82 | K14: 1415.33 | L14: 1394.3 | M14: 1372 | N14: 2582800 | O14: 10.00%
A15: 5 | B15: Others | C15: ADANIENT | D15: 132.70 | E15: 130.72 | F15: 126.63 | G15: 120.57 | H15: 116.48 | I15: 136.78 | J15: 140.87 | K15: 146.93 | L15: 134.8 | M15: 124.65 | N15: 38104000 | O15: -7.36%
A16: 6 | B16: Others | C16: ADANIPORTS | D16: 325.85 | E16: 328.53 | F16: 317.82 | G16: 309.78 | H16: 299.07 | I16: 336.57 | J16: 347.28 | K16: 355.32 | L16: 339.25 | M16: 320.5 | N16: 25195000 | O16: 37.79%
A17: 7 | B17: Power | C17: ADANIPOWER | D17: 40.50 | E17: 39.35 | F17: 37.40 | G17: 34.30 | H17: 32.35 | I17: 42.45 | J17: 44.40 | K17: 47.50 | L17: 41.3 | M17: 36.25 | N17: 161600000 | O17: -4.34%
A18: 8 | B18: Pharma | C18: AJANTPHARM | D18: 973.85 | E18: 974.80 | F18: 966.40 | G18: 958.95 | H18: 950.55 | I18: 982.25 | J18: 990.65 | K18: 998.10 | L18: 983.2 | M18: 967.35 | N18: 1311500 | O18: 0.42%
A19: 9 | B19: Banking | C19: ALBK | D19: 42.55 | E19: 42.73 | F19: 41.82 | G19: 41.08 | H19: 40.17 | I19: 43.47 | J19: 44.38 | K19: 45.12 | L19: 43.65 | M19: 42 | N19: 31720000 | O19: -7.72%
A20: 10 | B20: Automobile | C20: AMARAJABAT | D20: 734.85 | E20: 738.98 | F20: 727.97 | G20: 721.08 | H20: 710.07 | I20: 745.87 | J20: 756.88 | K20: 763.77 | L20: 750 | M20: 732.1 | N20: 942200 | O20: -7.43%
A21: 11 | B21: Cement | C21: AMBUJACEM | D21: 208.90 | E21: 209.47 | F21: 207.48 | G21: 206.07 | H21: 204.08 | I21: 210.88 | J21: 212.87 | K21: 214.28 | L21: 211.45 | M21: 208.05 | N21: 14512500 | O21: -2.98%
A22: 12 | B22: Others | C22: APOLLOHOSP | D22: 1191.15 | E22: 1176.18 | F22: 1150.87 | G22: 1110.58 | H22: 1085.27 | I22: 1216.47 | J22: 1241.78 | K22: 1282.07 | L22: 1201.5 | M22: 1135.9 | N22: 1369500 | O22: 6.41%
A23: 13 | B23: Automobile | C23: APOLLOTYRE | D23: 211.70 | E23: 212.15 | F23: 209.95 | G23: 208.20 | H23: 206.00 | I23: 213.90 | J23: 216.10 | K23: 217.85 | L23: 214.35 | M23: 210.4 | N23: 10779000 | O23: 1.90%
A24: 14 | B24: Textile | C24: ARVIND | D24: 75.70 | E24: 75.48 | F24: 74.72 | G24: 73.73 | H24: 72.97 | I24: 76.47 | J24: 77.23 | K24: 78.22 | L24: 76.25 | M24: 74.5 | N24: 8544000 | O24: 4.09%
A25: 15 | B25: Automobile | C25: ASHOKLEY | D25: 83.30 | E25: 82.88 | F25: 82.22 | G25: 81.13 | H25: 80.47 | I25: 83.97 | J25: 84.63 | K25: 85.72 | L25: 83.55 | M25: 81.8 | N25: 84484000 | O25: -2.65%
A26: 16 | B26: FMCG | C26: ASIANPAINT | D26: 1402.40 | E26: 1400.20 | F26: 1394.65 | G26: 1386.90 | H26: 1381.35 | I26: 1407.95 | J26: 1413.50 | K26: 1421.25 | L26: 1405.75 | M26: 1392.45 | N26: 6137400 | O26: 0.01%
A27: 17 | B27: Pharma | C27: AUROPHARMA | D27: 710.35 | E27: 716.97 | F27: 699.98 | G27: 689.62 | H27: 672.63 | I27: 727.33 | J27: 744.32 | K27: 754.68 | L27: 733.95 | M27: 706.6 | N27: 20851000 | O27: 8.96%
A28: 18 | B28: Banking | C28: AXISBANK | D28: 705.10 | E28: 703.07 | F28: 699.63 | G28: 694.17 | H28: 690.73 | I28: 708.53 | J28: 711.97 | K28: 717.43 | L28: 706.5 | M28: 697.6 | N28: 40140000 | O28: -1.20%
A29: 19 | B29: Automobile | C29: BAJAJ-AUTO | D29: 2844.00 | E29: 2837.18 | F29: 2822.72 | G29: 2801.43 | H29: 2786.97 | I29: 2858.47 | J29: 2872.93 | K29: 2894.22 | L29: 2851.65 | M29: 2815.9 | N29: 2235500 | O29: 1.39%
A30: 20 | B30: Others | C30: BAJAJFINSV | D30: 6332.15 | E30: 6301.37 | F30: 6222.73 | G30: 6113.32 | H30: 6034.68 | I30: 6410.78 | J30: 6489.42 | K30: 6598.83 | L30: 6380 | M30: 6191.95 | N30: 705875 | O30: -1.96%
A31: 21 | B31: Finance | C31: BAJFINANCE | D31: 2662.00 | E31: 2650.33 | F31: 2629.67 | G31: 2597.33 | H31: 2576.67 | I31: 2682.67 | J31: 2703.33 | K31: 2735.67 | L31: 2671 | M31: 2618 | N31: 5962250 | O31: -1.11%
A32: 22 | B32: Others | C32: BALKRISIND | D32: 873.40 | E32: 865.90 | F32: 855.20 | G32: 837.00 | H32: 826.30 | I32: 884.10 | J32: 894.80 | K32: 913.00 | L32: 876.6 | M32: 847.7 | N32: 2199200 | O32: -8.00%
A33: 23 | B33: Banking | C33: BANKBARODA | D33: 103.10 | E33: 103.23 | F33: 102.47 | G33: 101.83 | H33: 101.07 | I33: 103.87 | J33: 104.63 | K33: 105.27 | L33: 104 | M33: 102.6 | N33: 63560000 | O33: 1.35%
A34: 24 | B34: Banking | C34: BANKINDIA | D34: 83.10 | E34: 82.85 | F34: 82.00 | G34: 80.90 | H34: 80.05 | I34: 83.95 | J34: 84.80 | K34: 85.90 | L34: 83.7 | M34: 81.75 | N34: 28314000 | O34: 1.51%
A35: 25 | B35: FMCG | C35: BATAINDIA | D35: 1311.90 | E35: 1310.98 | F35: 1302.12 | G35: 1292.33 | H35: 1283.47 | I35: 1320.77 | J35: 1329.63 | K35: 1339.42 | L35: 1319.85 | M35: 1301.2 | N35: 3266450 | O35: -3.70%
A36: 26 | B36: Capital_Goods | C36: BEL | D36: 81.10 | E36: 79.90 | F36: 78.50 | G36: 75.90 | H36: 74.50 | I36: 82.50 | J36: 83.90 | K36: 86.50 | L36: 81.3 | M36: 77.3 | N36: 37656000 | O36: 4.06%
A37: 27 | B37: Infrastructure | C37: BEML | D37: 826.60 | E37: 826.72 | F37: 817.53 | G37: 808.47 | H37: 799.28 | I37: 835.78 | J37: 844.97 | K37: 854.03 | L37: 835.9 | M37: 817.65 | N37: 1575000 | O37: 2.74%
A38: 28 | B38: Others | C38: BERGEPAINT | D38: 295.40 | E38: 294.35 | F38: 292.40 | G38: 289.40 | H38: 287.45 | I38: 297.35 | J38: 299.30 | K38: 302.30 | L38: 296.3 | M38: 291.35 | N38: 5211800 | O38: 0.17%
A39: 29 | B39: Finance | C39: BHARATFIN | D39: 939.65 | E39: 934.82 | F39: 927.53 | G39: 915.42 | H39: 908.13 | I39: 946.93 | J39: 954.22 | K39: 966.33 | L39: 942.1 | M39: 922.7 | N39: 5084500 | O39: -1.43%
A40: 30 | B40: Automobile | C40: BHARATFORG | D40: 494.95 | E40: 493.12 | F40: 489.33 | G40: 483.72 | H40: 479.93 | I40: 498.73 | J40: 502.52 | K40: 508.13 | L40: 496.9 | M40: 487.5 | N40: 11314800 | O40: -3.15%
A41: 31 | B41: Telecom | C41: BHARTIARTL | D41: 318.15 | E41: 316.98 | F41: 313.52 | G41: 308.88 | H41: 305.42 | I41: 321.62 | J41: 325.08 | K41: 329.72 | L41: 320.45 | M41: 312.35 | N41: 37763800 | O41: 2.35%
A42: 32 | B42: Capital_Goods | C42: BHEL | D42: 64.45 | E42: 64.17 | F42: 63.48 | G42: 62.52 | H42: 61.83 | I42: 65.13 | J42: 65.82 | K42: 66.78 | L42: 64.85 | M42: 63.2 | N42: 34305000 | O42: -2.68%
A43: 33 | B43: Pharma | C43: BIOCON | D43: 618.35 | E43: 619.68 | F43: 615.02 | G43: 611.68 | H43: 607.02 | I43: 623.02 | J43: 627.68 | K43: 631.02 | L43: 624.35 | M43: 616.35 | N43: 5670900 | O43: 1.58%
A44: 34 | B44: Automobile | C44: BOSCHLTD | D44: 18433.55 | E44: 18307.87 | F44: 18135.73 | G44: 17837.92 | H44: 17665.78 | I44: 18605.68 | J44: 18777.82 | K44: 19075.63 | L44: 18480 | M44: 18010.05 | N44: 135690 | O44: 3.88%
A45: 35 | B45: Oil_Gas | C45: BPCL | D45: 337.05 | E45: 338.88 | F45: 333.42 | G45: 329.78 | H45: 324.32 | I45: 342.52 | J45: 347.98 | K45: 351.62 | L45: 344.35 | M45: 335.25 | N45: 9464400 | O45: -13.06%
A46: 36 | B46: FMCG | C46: BRITANNIA | D46: 3047.50 | E46: 3031.82 | F46: 2999.68 | G46: 2951.87 | H46: 2919.73 | I46: 3079.63 | J46: 3111.77 | K46: 3159.58 | L46: 3063.95 | M46: 2984 | N46: 3405000 | O46: -0.98%
A47: 37 | B47: Pharma | C47: CADILAHC | D47: 314.30 | E47: 315.37 | F47: 312.63 | G47: 310.97 | H47: 308.23 | I47: 317.03 | J47: 319.77 | K47: 321.43 | L47: 318.1 | M47: 313.7 | N47: 10254400 | O47: 0.74%
A48: 38 | B48: Banking | C48: CANBK | D48: 223.05 | E48: 222.85 | F48: 221.80 | G48: 220.55 | H48: 219.50 | I48: 224.10 | J48: 225.15 | K48: 226.40 | L48: 223.9 | M48: 221.6 | N48: 14802000 | O48: 1.80%
A49: 39 | B49: Others | C49: CANFINHOME | D49: 268.55 | E49: 271.57 | F49: 263.68 | G49: 258.82 | H49: 250.93 | I49: 276.43 | J49: 284.32 | K49: 289.18 | L49: 279.45 | M49: 266.7 | N49: 4550400 | O49: -5.74%
A50: 40 | B50: Oil_Gas | C50: CASTROLIND | D50: 153.15 | E50: 154.25 | F50: 151.60 | G50: 150.05 | H50: 147.40 | I50: 155.80 | J50: 158.45 | K50: 160.00 | L50: 156.9 | M50: 152.7 | N50: 5827600 | O50: -6.13%
A51: 41 | B51: Automobile | C51: CEATLTD | D51: 1079.60 | E51: 1074.80 | F51: 1063.05 | G51: 1046.50 | H51: 1034.75 | I51: 1091.35 | J51: 1103.10 | K51: 1119.65 | L51: 1086.55 | M51: 1058.25 | N51: 1432000 | O51: 1.16%
A52: 42 | B52: Textile | C52: CENTURYTEX | D52: 794.65 | E52: 791.15 | F52: 785.10 | G52: 775.55 | H52: 769.50 | I52: 800.70 | J52: 806.75 | K52: 816.30 | L52: 797.2 | M52: 781.6 | N52: 5050200 | O52: -0.34%
A53: 43 | B53: Power | C53: CESC | D53: 677.15 | E53: 675.25 | F53: 671.10 | G53: 665.05 | H53: 660.90 | I53: 681.30 | J53: 685.45 | K53: 691.50 | L53: 679.4 | M53: 669.2 | N53: 1186350 | O53: -3.36%
A54: 44 | B54: Power | C54: CGPOWER | D54: 31.70 | E54: 31.50 | F54: 31.00 | G54: 30.30 | H54: 29.80 | I54: 32.20 | J54: 32.70 | K54: 33.40 | L54: 32 | M54: 30.8 | N54: 57504000 | O54: 22.34%
A55: 45 | B55: Others | C55: CHENNPETRO | D55: 220.00 | E55: 218.78 | F55: 215.62 | G55: 211.23 | H55: 208.07 | I55: 223.17 | J55: 226.33 | K55: 230.72 | L55: 221.95 | M55: 214.4 | N55: 2143800 | O55: 2.85%
A56: 46 | B56: Others | C56: CHOLAFIN | D56: 1200.65 | E56: 1200.33 | F56: 1189.77 | G56: 1178.88 | H56: 1168.32 | I56: 1211.22 | J56: 1221.78 | K56: 1232.67 | L56: 1210.9 | M56: 1189.45 | N56: 958000 | O56: -0.62%
A57: 47 | B57: Pharma | C57: CIPLA | D57: 549.35 | E57: 547.27 | F57: 543.28 | G57: 537.22 | H57: 533.23 | I57: 553.33 | J57: 557.32 | K57: 563.38 | L57: 551.25 | M57: 541.2 | N57: 9499000 | O57: -0.20%
A58: 48 | B58: Others | C58: COALINDIA | D58: 214.80 | E58: 214.92 | F58: 212.73 | G58: 210.67 | H58: 208.48 | I58: 216.98 | J58: 219.17 | K58: 221.23 | L58: 217.1 | M58: 212.85 | N58: 31792200 | O58: 0.65%
A59: 49 | B59: FMCG | C59: COLPAL | D59: 1267.20 | E59: 1271.47 | F59: 1256.43 | G59: 1245.67 | H59: 1230.63 | I59: 1282.23 | J59: 1297.27 | K59: 1308.03 | L59: 1286.5 | M59: 1260.7 | N59: 1851500 | O59: 0.15%
A60: 50 | B60: Others | C60: CONCOR | D60: 474.75 | E60: 478.07 | F60: 467.88 | G60: 461.02 | H60: 450.83 | I60: 484.93 | J60: 495.12 | K60: 501.98 | L60: 488.25 | M60: 471.2 | N60: 3052539 | O60: 9.23%
A61: 51 | B61: Capital_Goods | C61: CUMMINSIND | D61: 702.45 | E61: 700.08 | F61: 692.37 | G61: 682.28 | H61: 674.57 | I61: 710.17 | J61: 717.88 | K61: 727.97 | L61: 707.8 | M61: 690 | N61: 1668100 | O61: -2.97%
A62: 52 | B62: FMCG | C62: DABUR | D62: 433.10 | E62: 434.62 | F62: 429.23 | G62: 425.37 | H62: 419.98 | I62: 438.48 | J62: 443.87 | K62: 447.73 | L62: 440 | M62: 430.75 | N62: 13242500 | O62: 1.11%
A63: 53 | B63: Banking | C63: DCBBANK | D63: 182.15 | E63: 179.95 | F63: 176.20 | G63: 170.25 | H63: 166.50 | I63: 185.90 | J63: 189.65 | K63: 195.60 | L63: 183.7 | M63: 174 | N63: 5742000 | O63: 39.15%
A64: 54 | B64: Finance | C64: DHFL | D64: 137.05 | E64: 138.58 | F64: 133.77 | G64: 130.48 | H64: 125.67 | I64: 141.87 | J64: 146.68 | K64: 149.97 | L64: 143.4 | M64: 135.3 | N64: 19830000 | O64: -5.26%
A65: 55 | B65: Media | C65: DISHTV | D65: 37.45 | E65: 37.62 | F65: 36.78 | G65: 36.12 | H65: 35.28 | I65: 38.28 | J65: 39.12 | K65: 39.78 | L65: 38.45 | M65: 36.95 | N65: 79872000 | O65: 3.59%
A66: 56 | B66: Pharma | C66: DIVISLAB | D66: 1596.15 | E66: 1580.77 | F66: 1555.13 | G66: 1514.12 | H66: 1488.48 | I66: 1621.78 | J66: 1647.42 | K66: 1688.43 | L66: 1606.4 | M66: 1539.75 | N66: 3711600 | O66: 3.50%
A67: 57 | B67: Realty | C67: DLF | D67: 168.40 | E67: 169.40 | F67: 165.80 | G67: 163.20 | H67: 159.60 | I67: 172.00 | J67: 175.60 | K67: 178.20 | L67: 173 | M67: 166.8 | N67: 24161800 | O67: 2.38%
A68: 58 | B68: Pharma | C68: DRREDDY | D68: 2665.80 | E68: 2662.63 | F68: 2628.62 | G68: 2591.43 | H68: 2557.42 | I68: 2699.82 | J68: 2733.83 | K68: 2771.02 | L68: 2696.65 | M68: 2625.45 | N68: 4877250 | O68: -0.58%
A69: 59 | B69: Automobile | C69: EICHERMOT | D69: 20672.65 | E69: 20623.57 | F69: 20520.78 | G69: 20368.92 | H69: 20266.13 | I69: 20775.43 | J69: 20878.22 | K69: 21030.08 | L69: 20726.35 | M69: 20471.7 | N69: 398825 | O69: 1.09%
A70: 60 | B70: Infrastructure | C70: ENGINERSIN | D70: 106.75 | E70: 107.28 | F70: 105.37 | G70: 103.98 | H70: 102.07 | I70: 108.67 | J70: 110.58 | K70: 111.97 | L70: 109.2 | M70: 105.9 | N70: 14723100 | O70: -5.35%
A71: 61 | B71: Finance | C71: EQUITAS | D71: 114.50 | E71: 115.58 | F71: 112.82 | G71: 111.13 | H71: 108.37 | I71: 117.27 | J71: 120.03 | K71: 121.72 | L71: 118.35 | M71: 113.9 | N71: 12048000 | O71: -1.15%
A72: 62 | B72: Automobile | C72: ESCORTS | D72: 656.30 | E72: 655.13 | F72: 647.57 | G72: 638.83 | H72: 631.27 | I72: 663.87 | J72: 671.43 | K72: 680.17 | L72: 662.7 | M72: 646.4 | N72: 3521100 | O72: -0.19%
A73: 63 | B73: Automobile | C73: EXIDEIND | D73: 218.05 | E73: 216.75 | F73: 213.15 | G73: 208.25 | H73: 204.65 | I73: 221.65 | J73: 225.25 | K73: 230.15 | L73: 220.35 | M73: 211.85 | N73: 9338000 | O73: -6.66%
A74: 64 | B74: Banking | C74: FEDERALBNK | D74: 81.10 | E74: 80.58 | F74: 79.77 | G74: 78.43 | H74: 77.62 | I74: 81.92 | J74: 82.73 | K74: 84.07 | L74: 81.4 | M74: 79.25 | N74: 57911000 | O74: 3.39%
A75: 65 | B75: Oil_Gas | C75: GAIL | D75: 328.60 | E75: 327.35 | F75: 324.30 | G75: 320.00 | H75: 316.95 | I75: 331.65 | J75: 334.70 | K75: 339.00 | L75: 330.4 | M75: 323.05 | N75: 14745843 | O75: -3.10%
A76: 66 | B76: Pharma | C76: GLENMARK | D76: 593.25 | E76: 595.70 | F76: 588.45 | G76: 583.65 | H76: 576.40 | I76: 600.50 | J76: 607.75 | K76: 612.55 | L76: 602.95 | M76: 590.9 | N76: 4316000 | O76: -1.75%
A77: 67 | B77: Infrastructure | C77: GMRINFRA | D77: 16.50 | E77: 16.47 | F77: 16.28 | G77: 16.07 | H77: 15.88 | I77: 16.68 | J77: 16.87 | K77: 17.08 | L77: 16.65 | M77: 16.25 | N77: 180720000 | O77: 2.53%
A78: 68 | B78: Others | C78: GODFRYPHLP | D78: 914.75 | E78: 919.07 | F78: 908.23 | G78: 901.72 | H78: 890.88 | I78: 925.58 | J78: 936.42 | K78: 942.93 | L78: 929.9 | M78: 912.55 | N78: 456400 | O78: -3.12%
A79: 69 | B79: FMCG | C79: GODREJCP | D79: 662.20 | E79: 664.47 | F79: 658.58 | G79: 654.97 | H79: 649.08 | I79: 668.08 | J79: 673.97 | K79: 677.58 | L79: 670.35 | M79: 660.85 | N79: 6372600 | O79: 1.48%
A80: 70 | B80: FMCG | C80: GODREJIND | D80: 482.10 | E80: 483.37 | F80: 478.73 | G80: 475.37 | H80: 470.73 | I80: 486.73 | J80: 491.37 | K80: 494.73 | L80: 488 | M80: 480 | N80: 1429500 | O80: 2.36%
A81: 71 | B81: Cement | C81: GRASIM | D81: 779.65 | E81: 770.95 | F81: 760.00 | G81: 740.35 | H81: 729.40 | I81: 790.60 | J81: 801.55 | K81: 821.20 | L81: 781.9 | M81: 751.3 | N81: 12243750 | O81: 1.28%
A82: 72 | B82: Others | C82: GSFC | D82: 92.85 | E82: 92.48 | F82: 91.37 | G82: 89.88 | H82: 88.77 | I82: 93.97 | J82: 95.08 | K82: 96.57 | L82: 93.6 | M82: 91 | N82: 12088400 | O82: -2.50%
A83: 73 | B83: Others | C83: HAVELLS | D83: 704.65 | E83: 700.37 | F83: 694.63 | G83: 684.62 | H83: 678.88 | I83: 710.38 | J83: 716.12 | K83: 726.13 | L83: 706.1 | M83: 690.35 | N83: 5264000 | O83: 1.92%
A84: 74 | B84: Technology | C84: HCLTECH | D84: 1085.10 | E84: 1078.77 | F84: 1070.43 | G84: 1055.77 | H84: 1047.43 | I84: 1093.43 | J84: 1101.77 | K84: 1116.43 | L84: 1087.1 | M84: 1064.1 | N84: 9422000 | O84: -1.01%
A85: 75 | B85: Finance | C85: HDFC | D85: 1896.75 | E85: 1890.93 | F85: 1882.22 | G85: 1867.68 | H85: 1858.97 | I85: 1905.47 | J85: 1914.18 | K85: 1928.72 | L85: 1899.65 | M85: 1876.4 | N85: 29070500 | O85: -0.28%
A86: 76 | B86: Banking | C86: HDFCBANK | D86: 2125.60 | E86: 2119.18 | F86: 2109.37 | G86: 2093.13 | H86: 2083.32 | I86: 2135.42 | J86: 2145.23 | K86: 2161.47 | L86: 2129 | M86: 2102.95 | N86: 10054000 | O86: -0.66%
A87: 77 | B87: Automobile | C87: HEROMOTOCO | D87: 2713.55 | E87: 2710.78 | F87: 2696.57 | G87: 2679.58 | H87: 2665.37 | I87: 2727.77 | J87: 2741.98 | K87: 2758.97 | L87: 2725 | M87: 2693.8 | N87: 2258200 | O87: -1.34%
A88: 78 | B88: Technology | C88: HEXAWARE | D88: 355.05 | E88: 356.90 | F88: 352.25 | G88: 349.45 | H88: 344.80 | I88: 359.70 | J88: 364.35 | K88: 367.15 | L88: 361.55 | M88: 354.1 | N88: 3283500 | O88: -2.01%
A89: 79 | B89: Metals | C89: HINDALCO | D89: 196.90 | E89: 196.72 | F89: 194.73 | G89: 192.57 | H89: 190.58 | I89: 198.88 | J89: 200.87 | K89: 203.03 | L89: 198.7 | M89: 194.55 | N89: 43221500 | O89: 0.51%
A90: 80 | B90: Oil_Gas | C90: HINDPETRO | D90: 228.65 | E90: 228.97 | F90: 225.93 | G90: 223.22 | H90: 220.18 | I90: 231.68 | J90: 234.72 | K90: 237.43 | L90: 232 | M90: 226.25 | N90: 13362300 | O90: 3.46%
A91: 81 | B91: FMCG | C91: HINDUNILVR | D91: 1771.90 | E91: 1769.67 | F91: 1763.53 | G91: 1755.17 | H91: 1749.03 | I91: 1778.03 | J91: 1784.17 | K91: 1792.53 | L91: 1775.8 | M91: 1761.3 | N91: 11245200 | O91: -0.18%
A92: 82 | B92: Metals | C92: HINDZINC | D92: 262.60 | E92: 261.68 | F92: 260.12 | G92: 257.63 | H92: 256.07 | I92: 264.17 | J92: 265.73 | K92: 268.22 | L92: 263.25 | M92: 259.2 | N92: 5043200 | O92: 3.28%
A93: 83 | B93: Finance | C93: IBULHSGFIN | D93: 680.40 | E93: 682.00 | F93: 669.10 | G93: 657.80 | H93: 644.90 | I93: 693.30 | J93: 706.20 | K93: 717.50 | L93: 694.9 | M93: 670.7 | N93: 15312000 | O93: 1.05%
A94: 84 | B94: Banking | C94: ICICIBANK | D94: 355.85 | E94: 355.67 | F94: 353.78 | G94: 351.72 | H94: 349.83 | I94: 357.73 | J94: 359.62 | K94: 361.68 | L94: 357.55 | M94: 353.6 | N94: 98488500 | O94: 1.62%
A95: 85 | B95: Others | C95: ICICIPRULI | D95: 317.30 | E95: 320.28 | F95: 312.12 | G95: 306.93 | H95: 298.77 | I95: 325.47 | J95: 333.63 | K95: 338.82 | L95: 328.45 | M95: 315.1 | N95: 6028500 | O95: 0.22%
A96: 86 | B96: Banking | C96: IDBI | D96: 43.10 | E96: 42.92 | F96: 42.33 | G96: 41.57 | H96: 40.98 | I96: 43.68 | J96: 44.27 | K96: 45.03 | L96: 43.5 | M96: 42.15 | N96: 26730000 | O96: -1.87%
A97: 87 | B97: Telecom | C97: IDEA | D97: 30.65 | E97: 30.67 | F97: 30.18 | G97: 29.72 | H97: 29.23 | I97: 31.13 | J97: 31.62 | K97: 32.08 | L97: 31.15 | M97: 30.2 | N97: 177228000 | O97: -8.98%
A98: 88 | B98: Finance | C98: IDFC | D98: 37.45 | E98: 37.33 | F98: 37.07 | G98: 36.68 | H98: 36.42 | I98: 37.72 | J98: 37.98 | K98: 38.37 | L98: 37.6 | M98: 36.95 | N98: 135154800 | O98: 17.72%
A99: 89 | B99: Banking | C99: IDFCFIRSTB | D99: 45.85 | E99: 45.88 | F99: 45.57 | G99: 45.28 | H99: 44.97 | I99: 46.17 | J99: 46.48 | K99: 46.77 | L99: 46.2 | M99: 45.6 | N99: 135528000 | O99: -5.71%
A100: 90 | B100: Finance | C100: IFCI | D100: 12.80 | E100: 12.77 | F100: 12.68 | G100: 12.57 | H100: 12.48 | I100: 12.88 | J100: 12.97 | K100: 13.08 | L100: 12.85 | M100: 12.65 | N100: 55720000 | O100: 7.06%
A101: 91 | B101: Oil_Gas | C101: IGL | D101: 287.50 | E101: 285.87 | F101: 283.33 | G101: 279.17 | H101: 276.63 | I101: 290.03 | J101: 292.57 | K101: 296.73 | L101: 288.4 | M101: 281.7 | N101: 5161750 | O101: -6.10%
A102: 92 | B102: Cement | C102: INDIACEM | D102: 85.75 | E102: 86.20 | F102: 84.85 | G102: 83.95 | H102: 82.60 | I102: 87.10 | J102: 88.45 | K102: 89.35 | L102: 87.55 | M102: 85.3 | N102: 25470000 | O102: 5.85%
A103: 93 | B103: Banking | C103: INDIANB | D103: 218.55 | E103: 219.07 | F103: 216.38 | G103: 214.22 | H103: 211.53 | I103: 221.23 | J103: 223.92 | K103: 226.08 | L103: 221.75 | M103: 216.9 | N103: 5232000 | O103: 1.20%
A104: 94 | B104: Others | C104: INDIGO | D104: 1120.70 | E104: 1119.12 | F104: 1111.58 | G104: 1102.47 | H104: 1094.93 | I104: 1128.23 | J104: 1135.77 | K104: 1144.88 | L104: 1126.65 | M104: 1110 | N104: 2749200 | O104: 0.70%
A105: 95 | B105: Banking | C105: INDUSINDBK | D105: 1494.30 | E105: 1485.40 | F105: 1472.85 | G105: 1451.40 | H105: 1438.85 | I105: 1506.85 | J105: 1519.40 | K105: 1540.85 | L105: 1497.95 | M105: 1463.95 | N105: 8330100 | O105: -2.77%
A106: 96 | B106: Technology | C106: INFIBEAM | D106: 35.70 | E106: 35.67 | F106: 35.08 | G106: 34.47 | H106: 33.88 | I106: 36.28 | J106: 36.87 | K106: 37.48 | L106: 36.25 | M106: 35.05 | N106: 18740000 | O106: -0.17%
A107: 97 | B107: Telecom | C107: INFRATEL | D107: 304.80 | E107: 307.50 | F107: 301.00 | G107: 297.20 | H107: 290.70 | I107: 311.30 | J107: 317.80 | K107: 321.60 | L107: 314 | M107: 303.7 | N107: 7692000 | O107: -4.09%
A108: 98 | B108: Technology | C108: INFY | D108: 755.15 | E108: 750.27 | F108: 742.18 | G108: 729.22 | H108: 721.13 | I108: 763.23 | J108: 771.32 | K108: 784.28 | L108: 758.35 | M108: 737.3 | N108: 42432000 | O108: -2.23%
A109: 99 | B109: Oil_Gas | C109: IOC | D109: 138.25 | E109: 137.28 | F109: 135.72 | G109: 133.18 | H109: 131.62 | I109: 139.82 | J109: 141.38 | K109: 143.92 | L109: 138.85 | M109: 134.75 | N109: 37863000 | O109: -1.85%
A110: 100 | B110: Infrastructure | C110: IRB | D110: 132.25 | E110: 131.27 | F110: 129.73 | G110: 127.22 | H110: 125.68 | I110: 133.78 | J110: 135.32 | K110: 137.83 | L110: 132.8 | M110: 128.75 | N110: 9024000 | O110: 1.44%
A111: 101 | B111: FMCG | C111: ITC | D111: 277.35 | E111: 276.37 | F111: 274.88 | G111: 272.42 | H111: 270.93 | I111: 278.83 | J111: 280.32 | K111: 282.78 | L111: 277.85 | M111: 273.9 | N111: 75818400 | O111: -4.17%
A112: 102 | B112: Others | C112: JETAIRWAYS | D112: 223.75 | E112: 223.52 | F112: 216.53 | G112: 209.32 | H112: 202.33 | I112: 230.73 | J112: 237.72 | K112: 244.93 | L112: 230.5 | M112: 216.3 | N112: 6578000 | O112: 4.51%
A113: 103 | B113: Metals | C113: JINDALSTEL | D113: 159.55 | E113: 160.25 | F113: 155.95 | G113: 152.35 | H113: 148.05 | I113: 163.85 | J113: 168.15 | K113: 171.75 | L113: 164.55 | M113: 156.65 | N113: 33086250 | O113: 8.45%
A114: 104 | B114: Others | C114: JISLJALEQS | D114: 57.10 | E114: 57.28 | F114: 56.47 | G114: 55.83 | H114: 55.02 | I114: 57.92 | J114: 58.73 | K114: 59.37 | L114: 58.1 | M114: 56.65 | N114: 37836000 | O114: 4.79%
A115: 105 | B115: Realty | C115: JPASSOCIAT | D115: 5.95 | E115: 6.03 | F115: 5.67 | G115: 5.38 | H115: 5.02 | I115: 6.32 | J115: 6.68 | K115: 6.97 | L115: 6.4 | M115: 5.75 | N115: 109175000 | O115: 6.32%
A116: 106 | B116: Metals | C116: JSWSTEEL | D116: 288.60 | E116: 289.70 | F116: 285.40 | G116: 282.20 | H116: 277.90 | I116: 292.90 | J116: 297.20 | K116: 300.40 | L116: 294 | M116: 286.5 | N116: 62391000 | O116: 1.02%
A117: 107 | B117: Others | C117: JUBLFOOD | D117: 1272.55 | E117: 1283.55 | F117: 1255.20 | G117: 1237.85 | H117: 1209.50 | I117: 1300.90 | J117: 1329.25 | K117: 1346.60 | L117: 1311.9 | M117: 1266.2 | N117: 3973500 | O117: 9.81%
A118: 108 | B118: Others | C118: JUSTDIAL | D118: 497.70 | E118: 496.68 | F118: 488.17 | G118: 478.63 | H118: 470.12 | I118: 506.22 | J118: 514.73 | K118: 524.27 | L118: 505.2 | M118: 487.15 | N118: 2347800 | O118: 1.57%
A119: 109 | B119: Others | C119: KAJARIACER | D119: 536.60 | E119: 534.48 | F119: 527.07 | G119: 517.53 | H119: 510.12 | I119: 544.02 | J119: 551.43 | K119: 560.97 | L119: 541.9 | M119: 524.95 | N119: 2325700 | O119: -5.54%
A120: 110 | B120: Banking | C120: KOTAKBANK | D120: 1237.70 | E120: 1237.80 | F120: 1228.90 | G120: 1220.10 | H120: 1211.20 | I120: 1246.60 | J120: 1255.50 | K120: 1264.30 | L120: 1246.7 | M120: 1229 | N120: 16807200 | O120: 5.17%
A121: 111 | B121: Technology | C121: KPIT | D121: 108.50 | E121: 108.38 | F121: 107.22 | G121: 105.93 | H121: 104.77 | I121: 109.67 | J121: 110.83 | K121: 112.12 | L121: 109.55 | M121: 107.1 | N121: 4302000 | O121: 4.65%
A122: 112 | B122: Others | C122: KSCL | D122: 393.75 | E122: 394.32 | F122: 380.78 | G122: 367.82 | H122: 354.28 | I122: 407.28 | J122: 420.82 | K122: 433.78 | L122: 407.85 | M122: 381.35 | N122: 2031000 | O122: 8.76%
A123: 113 | B123: Banking | C123: KTKBANK | D123: 115.05 | E123: 114.73 | F123: 113.82 | G123: 112.58 | H123: 111.67 | I123: 115.97 | J123: 116.88 | K123: 118.12 | L123: 115.65 | M123: 113.5 | N123: 12563100 | O123: 2.30%
A124: 114 | B124: Finance | C124: L&TFH | D124: 126.95 | E124: 126.90 | F124: 125.75 | G124: 124.55 | H124: 123.40 | I124: 128.10 | J124: 129.25 | K124: 130.45 | L124: 128.05 | M124: 125.7 | N124: 29254500 | O124: 0.92%
A125: 115 | B125: Finance | C125: LICHSGFIN | D125: 469.15 | E125: 471.58 | F125: 464.97 | G125: 460.78 | H125: 454.17 | I125: 475.77 | J125: 482.38 | K125: 486.57 | L125: 478.2 | M125: 467.4 | N125: 9535900 | O125: 0.52%
A126: 116 | B126: Capital_Goods | C126: LT | D126: 1276.80 | E126: 1276.40 | F126: 1266.70 | G126: 1256.60 | H126: 1246.90 | I126: 1286.50 | J126: 1296.20 | K126: 1306.30 | L126: 1286.1 | M126: 1266.3 | N126: 12031500 | O126: 2.21%
A127: 117 | B127: Pharma | C127: LUPIN | D127: 778.10 | E127: 778.10 | F127: 771.00 | G127: 763.90 | H127: 756.80 | I127: 785.20 | J127: 792.30 | K127: 799.40 | L127: 785.2 | M127: 771 | N127: 10094700 | O127: -2.21%
A128: 118 | B128: Automobile | C128: M&M | D128: 651.00 | E128: 648.80 | F128: 643.70 | G128: 636.40 | H128: 631.30 | I128: 656.10 | J128: 661.20 | K128: 668.50 | L128: 653.9 | M128: 641.5 | N128: 23206000 | O128: -1.46%
A129: 119 | B129: Finance | C129: M&MFIN | D129: 397.10 | E129: 399.18 | F129: 394.02 | G129: 390.93 | H129: 385.77 | I129: 402.27 | J129: 407.43 | K129: 410.52 | L129: 404.35 | M129: 396.1 | N129: 12351250 | O129: -1.34%
A130: 120 | B130: Others | C130: MANAPPURAM | D130: 113.90 | E130: 113.40 | F130: 112.10 | G130: 110.30 | H130: 109.00 | I130: 115.20 | J130: 116.50 | K130: 118.30 | L130: 114.7 | M130: 111.6 | N130: 10812000 | O130: 4.71%
A131: 121 | B131: FMCG | C131: MARICO | D131: 340.60 | E131: 340.32 | F131: 336.38 | G131: 332.17 | H131: 328.23 | I131: 344.53 | J131: 348.47 | K131: 352.68 | L131: 344.25 | M131: 336.1 | N131: 7597200 | O131: -3.21%
A132: 122 | B132: Automobile | C132: MARUTI | D132: 6945.30 | E132: 6941.43 | F132: 6884.97 | G132: 6824.63 | H132: 6768.17 | I132: 7001.77 | J132: 7058.23 | K132: 7118.57 | L132: 6997.9 | M132: 6881.1 | N132: 2745525 | O132: -0.67%
A133: 123 | B133: FMCG | C133: MCDOWELL-N | D133: 525.75 | E133: 526.88 | F133: 518.62 | G133: 511.48 | H133: 503.22 | I133: 534.02 | J133: 542.28 | K133: 549.42 | L133: 535.15 | M133: 519.75 | N133: 12806250 | O133: 2.41%
A134: 124 | B134: Others | C134: MCX | D134: 680.65 | E134: 680.35 | F134: 673.85 | G134: 667.05 | H134: 660.55 | I134: 687.15 | J134: 693.65 | K134: 700.45 | L134: 686.85 | M134: 673.55 | N134: 2170000 | O134: 0.65%
A135: 125 | B135: Finance | C135: MFSL | D135: 415.75 | E135: 412.18 | F135: 406.82 | G135: 397.88 | H135: 392.52 | I135: 421.12 | J135: 426.48 | K135: 435.42 | L135: 417.55 | M135: 403.25 | N135: 1885200 | O135: 1.88%
A136: 126 | B136: Others | C136: MGL | D136: 877.95 | E136: 874.13 | F136: 866.82 | G136: 855.68 | H136: 848.37 | I136: 885.27 | J136: 892.58 | K136: 903.72 | L136: 881.45 | M136: 863 | N136: 1139400 | O136: 18.98%
A137: 127 | B137: Technology | C137: MINDTREE | D137: 910.70 | E137: 908.25 | F137: 900.70 | G137: 890.70 | H137: 883.15 | I137: 918.25 | J137: 925.80 | K137: 935.80 | L137: 915.8 | M137: 898.25 | N137: 2977800 | O137: 6.14%
A138: 128 | B138: Automobile | C138: MOTHERSUMI | D138: 158.30 | E138: 153.68 | F138: 147.77 | G138: 137.23 | H138: 131.32 | I138: 164.22 | J138: 170.13 | K138: 180.67 | L138: 159.6 | M138: 143.15 | N138: 32239200 | O138: 12.47%
A139: 129 | B139: Automobile | C139: MRF | D139: 55490.45 | E139: 55335.83 | F139: 55079.67 | G139: 54668.88 | H139: 54412.72 | I139: 55746.62 | J139: 56002.78 | K139: 56413.57 | L139: 55592 | M139: 54925.05 | N139: 39060 | O139: -0.10%
A140: 130 | B140: Others | C140: MRPL | D140: 63.90 | E140: 63.68 | F140: 62.97 | G140: 62.03 | H140: 61.32 | I140: 64.62 | J140: 65.33 | K140: 66.27 | L140: 64.4 | M140: 62.75 | N140: 5873000 | O140: -3.45%
A141: 131 | B141: Finance | C141: MUTHOOTFIN | D141: 537.85 | E141: 537.25 | F141: 533.50 | G141: 529.15 | H141: 525.40 | I141: 541.60 | J141: 545.35 | K141: 549.70 | L141: 541 | M141: 532.9 | N141: 2118000 | O141: 5.06%
A142: 132 | B142: Others | C142: NATIONALUM | D142: 48.55 | E142: 48.47 | F142: 47.68 | G142: 46.82 | H142: 46.03 | I142: 49.33 | J142: 50.12 | K142: 50.98 | L142: 49.25 | M142: 47.6 | N142: 83712000 | O142: 1.92%
A143: 133 | B143: Others | C143: NBCC | D143: 53.50 | E143: 53.42 | F143: 53.08 | G143: 52.67 | H143: 52.33 | I143: 53.83 | J143: 54.17 | K143: 54.58 | L143: 53.75 | M143: 53 | N143: 33240000 | O143: -6.71%
A144: 134 | B144: Infrastructure | C144: NCC | D144: 83.70 | E144: 83.90 | F144: 82.10 | G144: 80.50 | H144: 78.70 | I144: 85.50 | J144: 87.30 | K144: 88.90 | L144: 85.7 | M144: 82.3 | N144: 51824000 | O144: 3.88%
A145: 135 | B145: Others | C145: NESTLEIND | D145: 10855.10 | E145: 10807.18 | F145: 10737.92 | G145: 10620.73 | H145: 10551.47 | I145: 10924.37 | J145: 10993.63 | K145: 11110.82 | L145: 10876.45 | M145: 10690 | N145: 298300 | O145: -2.31%
A146: 136 | B146: Power | C146: NHPC | D146: 23.45 | E146: 23.30 | F146: 23.00 | G146: 22.55 | H146: 22.25 | I146: 23.75 | J146: 24.05 | K146: 24.50 | L146: 23.6 | M146: 22.85 | N146: 37746000 | O146: -8.51%
A147: 137 | B147: Technology | C147: NIITTECH | D147: 1315.90 | E147: 1308.90 | F147: 1298.05 | G147: 1280.20 | H147: 1269.35 | I147: 1326.75 | J147: 1337.60 | K147: 1355.45 | L147: 1319.75 | M147: 1291.05 | N147: 1647000 | O147: 2.33%
A148: 138 | B148: Metals | C148: NMDC | D148: 97.10 | E148: 97.13 | F148: 96.52 | G148: 95.93 | H148: 95.32 | I148: 97.72 | J148: 98.33 | K148: 98.92 | L148: 97.75 | M148: 96.55 | N148: 19668000 | O148: -2.61%
A149: 139 | B149: Power | C149: NTPC | D149: 140.40 | E149: 139.90 | F149: 137.10 | G149: 133.80 | H149: 131.00 | I149: 143.20 | J149: 146.00 | K149: 149.30 | L149: 142.7 | M149: 136.6 | N149: 76240000 | O149: 6.31%
A150: 140 | B150: Technology | C150: OFSS | D150: 3516.20 | E150: 3495.98 | F150: 3465.22 | G150: 3414.23 | H150: 3383.47 | I150: 3546.97 | J150: 3577.73 | K150: 3628.72 | L150: 3526.75 | M150: 3445 | N150: 165000 | O150: 0.64%
A151: 141 | B151: Oil_Gas | C151: OIL | D151: 174.85 | E151: 174.62 | F151: 170.58 | G151: 166.32 | H151: 162.28 | I151: 178.88 | J151: 182.92 | K151: 187.18 | L151: 178.65 | M151: 170.35 | N151: 6461499 | O151: 7.58%
A152: 142 | B152: Oil_Gas | C152: ONGC | D152: 143.05 | E152: 142.72 | F152: 140.88 | G152: 138.72 | H152: 136.88 | I152: 144.88 | J152: 146.72 | K152: 148.88 | L152: 144.55 | M152: 140.55 | N152: 44261250 | O152: -2.28%
A153: 143 | B153: Banking | C153: ORIENTBANK | D153: 82.85 | E153: 83.08 | F153: 82.02 | G153: 81.18 | H153: 80.12 | I153: 83.92 | J153: 84.98 | K153: 85.82 | L153: 84.15 | M153: 82.25 | N153: 13300000 | O153: 5.79%
A154: 144 | B154: Textile | C154: PAGEIND | D154: 21999.10 | E154: 21953.37 | F154: 21416.73 | G154: 20834.37 | H154: 20297.73 | I154: 22535.73 | J154: 23072.37 | K154: 23654.73 | L154: 22490 | M154: 21371 | N154: 179225 | O154: -6.19%
A155: 145 | B155: Others | C155: PCJEWELLER | D155: 68.00 | E155: 67.83 | F155: 66.67 | G155: 65.33 | H155: 64.17 | I155: 69.17 | J155: 70.33 | K155: 71.67 | L155: 69 | M155: 66.5 | N155: 11966500 | O155: -10.06%
A156: 146 | B156: Pharma | C156: PEL | D156: 2321.50 | E156: 2313.60 | F156: 2290.40 | G156: 2259.30 | H156: 2236.10 | I156: 2344.70 | J156: 2367.90 | K156: 2399.00 | L156: 2336.8 | M156: 2282.5 | N156: 4070356 | O156: 1.51%
A157: 147 | B157: Oil_Gas | C157: PETRONET | D157: 218.70 | E157: 217.67 | F157: 215.48 | G157: 212.27 | H157: 210.08 | I157: 220.88 | J157: 223.07 | K157: 226.28 | L157: 219.85 | M157: 214.45 | N157: 13074000 | O157: 0.21%
A158: 148 | B158: Finance | C158: PFC | D158: 111.50 | E158: 111.52 | F158: 110.43 | G158: 109.37 | H158: 108.28 | I158: 112.58 | J158: 113.67 | K158: 114.73 | L158: 112.6 | M158: 110.45 | N158: 28377400 | O158: -6.00%
A159: 149 | B159: FMCG | C159: PIDILITIND | D159: 1105.35 | E159: 1098.90 | F159: 1085.65 | G159: 1065.95 | H159: 1052.70 | I159: 1118.60 | J159: 1131.85 | K159: 1151.55 | L159: 1112.15 | M159: 1079.2 | N159: 2516000 | O159: -4.81%
A160: 150 | B160: Banking | C160: PNB | D160: 73.60 | E160: 73.45 | F160: 73.05 | G160: 72.50 | H160: 72.10 | I160: 74.00 | J160: 74.40 | K160: 74.95 | L160: 73.85 | M160: 72.9 | N160: 136255000 | O160: 9.72%
A161: 151 | B161: Power | C161: POWERGRID | D161: 182.10 | E161: 181.32 | F161: 179.93 | G161: 177.77 | H161: 176.38 | I161: 183.48 | J161: 184.87 | K161: 187.03 | L161: 182.7 | M161: 179.15 | N161: 23692000 | O161: -3.78%
A162: 152 | B162: Others | C162: PVR | D162: 1494.80 | E162: 1496.32 | F162: 1486.78 | G162: 1478.77 | H162: 1469.23 | I162: 1504.33 | J162: 1513.87 | K162: 1521.88 | L162: 1505.85 | M162: 1488.3 | N162: 1462400 | O162: -0.65%
A163: 153 | B163: Cement | C163: RAMCOCEM | D163: 648.25 | E163: 643.42 | F163: 631.78 | G163: 615.32 | H163: 603.68 | I163: 659.88 | J163: 671.52 | K163: 687.98 | L163: 655.05 | M163: 626.95 | N163: 864000 | O163: -4.85%
A164: 154 | B164: Others | C164: RAYMOND | D164: 759.25 | E164: 750.70 | F164: 737.40 | G164: 715.55 | H164: 702.25 | I164: 772.55 | J164: 785.85 | K164: 807.70 | L164: 764 | M164: 728.85 | N164: 4088000 | O164: 5.17%
A165: 155 | B165: Banking | C165: RBLBANK | D165: 574.75 | E165: 569.32 | F165: 559.93 | G165: 545.12 | H165: 535.73 | I165: 584.13 | J165: 593.52 | K165: 608.33 | L165: 578.7 | M165: 554.5 | N165: 5218800 | O165: -2.40%
A166: 156 | B166: Telecom | C166: RCOM | D166: 6.05 | E166: 6.13 | F166: 5.77 | G166: 5.48 | H166: 5.12 | I166: 6.42 | J166: 6.78 | K166: 7.07 | L166: 6.5 | M166: 5.85 | N166: 64226000 | O166: -7.36%
A167: 157 | B167: Power | C167: RECLTD | D167: 132.95 | E167: 133.37 | F167: 130.93 | G167: 128.92 | H167: 126.48 | I167: 135.38 | J167: 137.82 | K167: 139.83 | L167: 135.8 | M167: 131.35 | N167: 33714000 | O167: -2.68%
A168: 158 | B168: Finance | C168: RELCAPITAL | D168: 163.75 | E168: 164.50 | F168: 160.65 | G168: 157.55 | H168: 153.70 | I168: 167.60 | J168: 171.45 | K168: 174.55 | L168: 168.35 | M168: 161.4 | N168: 8461500 | O168: 9.68%
A169: 159 | B169: Oil_Gas | C169: RELIANCE | D169: 1234.55 | E169: 1235.22 | F169: 1224.43 | G169: 1214.32 | H169: 1203.53 | I169: 1245.33 | J169: 1256.12 | K169: 1266.23 | L169: 1246 | M169: 1225.1 | N169: 54759000 | O169: -3.07%
A170: 160 | B170: Power | C170: RELINFRA | D170: 131.50 | E170: 132.80 | F170: 127.80 | G170: 124.10 | H170: 119.10 | I170: 136.50 | J170: 141.50 | K170: 145.20 | L170: 137.8 | M170: 129.1 | N170: 9691500 | O170: 9.89%
A171: 161 | B171: Others | C171: REPCOHOME | D171: 331.45 | E171: 331.65 | F171: 328.10 | G171: 324.75 | H171: 321.20 | I171: 335.00 | J171: 338.55 | K171: 341.90 | L171: 335.2 | M171: 328.3 | N171: 1138500 | O171: -2.27%
A172: 162 | B172: Power | C172: RPOWER | D172: 11.10 | E172: 11.32 | F172: 10.78 | G172: 10.47 | H172: 9.93 | I172: 11.63 | J172: 12.17 | K172: 12.48 | L172: 11.85 | M172: 11 | N172: 73792000 | O172: -2.80%
A173: 163 | B173: Metals | C173: SAIL | D173: 48.80 | E173: 49.43 | F173: 47.72 | G173: 46.63 | H173: 44.92 | I173: 50.52 | J173: 52.23 | K173: 53.32 | L173: 51.15 | M173: 48.35 | N173: 107352000 | O173: 12.44%
A174: 164 | B174: Banking | C174: SBIN | D174: 270.90 | E174: 270.47 | F174: 269.08 | G174: 267.27 | H174: 265.88 | I174: 272.28 | J174: 273.67 | K174: 275.48 | L174: 271.85 | M174: 268.65 | N174: 83757000 | O174: -0.07%
A175: 165 | B175: Cement | C175: SHREECEM | D175: 16544.30 | E175: 16465.12 | F175: 16306.18 | G175: 16068.07 | H175: 15909.13 | I175: 16703.23 | J175: 16862.17 | K175: 17100.28 | L175: 16624.05 | M175: 16227 | N175: 102000 | O175: -1.31%
A176: 166 | B176: Capital_Goods | C176: SIEMENS | D176: 989.30 | E176: 992.13 | F176: 980.77 | G176: 972.23 | H176: 960.87 | I176: 1000.67 | J176: 1012.03 | K176: 1020.57 | L176: 1003.5 | M176: 983.6 | N176: 1843600 | O176: -1.15%
A177: 167 | B177: Banking | C177: SOUTHBANK | D177: 13.50 | E177: 13.50 | F177: 13.30 | G177: 13.10 | H177: 12.90 | I177: 13.70 | J177: 13.90 | K177: 14.10 | L177: 13.7 | M177: 13.3 | N177: 163153143 | O177: 4.17%
A178: 168 | B178: Others | C178: SREINFRA | D178: 28.00 | E178: 27.95 | F178: 27.40 | G178: 26.80 | H178: 26.25 | I178: 28.55 | J178: 29.10 | K178: 29.70 | L178: 28.5 | M178: 27.35 | N178: 6348000 | O178: -4.17%
A179: 169 | B179: Textile | C179: SRF | D179: 2238.75 | E179: 2230.77 | F179: 2203.58 | G179: 2168.42 | H179: 2141.23 | I179: 2265.93 | J179: 2293.12 | K179: 2328.28 | L179: 2257.95 | M179: 2195.6 | N179: 897500 | O179: 5.84%
A180: 170 | B180: Finance | C180: SRTRANSFIN | D180: 1099.55 | E180: 1091.90 | F180: 1075.80 | G180: 1052.05 | H180: 1035.95 | I180: 1115.65 | J180: 1131.75 | K180: 1155.50 | L180: 1108 | M180: 1068.15 | N180: 4549200 | O180: -3.04%
A181: 171 | B181: Pharma | C181: STAR | D181: 419.05 | E181: 421.43 | F181: 415.62 | G181: 412.18 | H181: 406.37 | I181: 424.87 | J181: 430.68 | K181: 434.12 | L181: 427.25 | M181: 418 | N181: 4860900 | O181: 1.12%
A182: 172 | B182: Pharma | C182: SUNPHARMA | D182: 436.60 | E182: 434.62 | F182: 430.28 | G182: 423.97 | H182: 419.63 | I182: 440.93 | J182: 445.27 | K182: 451.58 | L182: 438.95 | M182: 428.3 | N182: 55081400 | O182: 0.01%
A183: 173 | B183: Media | C183: SUNTV | D183: 588.70 | E183: 588.35 | F183: 582.75 | G183: 576.80 | H183: 571.20 | I183: 594.30 | J183: 599.90 | K183: 605.85 | L183: 593.95 | M183: 582.4 | N183: 6942000 | O183: 0.43%
A184: 174 | B184: Power | C184: SUZLON | D184: 5.60 | E184: 5.58 | F184: 5.17 | G184: 4.73 | H184: 4.32 | I184: 6.02 | J184: 6.43 | K184: 6.87 | L184: 6 | M184: 5.15 | N184: 263720000 | O184: -7.27%
A185: 175 | B185: Banking | C185: SYNDIBANK | D185: 33.15 | E185: 33.27 | F185: 32.93 | G185: 32.72 | H185: 32.38 | I185: 33.48 | J185: 33.82 | K185: 34.03 | L185: 33.6 | M185: 33.05 | N185: 30765000 | O185: 3.07%
A186: 176 | B186: Fertilisers | C186: TATACHEM | D186: 568.50 | E186: 567.47 | F186: 564.08 | G186: 559.67 | H186: 556.28 | I186: 571.88 | J186: 575.27 | K186: 579.68 | L186: 570.85 | M186: 563.05 | N186: 3126750 | O186: 8.43%
A187: 177 | B187: Telecom | C187: TATACOMM | D187: 551.95 | E187: 545.53 | F187: 535.32 | G187: 518.68 | H187: 508.47 | I187: 562.17 | J187: 572.38 | K187: 589.02 | L187: 555.75 | M187: 528.9 | N187: 3046000 | O187: 8.05%
A188: 178 | B188: Technology | C188: TATAELXSI | D188: 904.70 | E188: 906.73 | F188: 899.97 | G188: 895.23 | H188: 888.47 | I188: 911.47 | J188: 918.23 | K188: 922.97 | L188: 913.5 | M188: 902 | N188: 1509600 | O188: -0.68%
A189: 179 | B189: FMCG | C189: TATAGLOBAL | D189: 191.75 | E189: 191.20 | F189: 189.35 | G189: 186.95 | H189: 185.10 | I189: 193.60 | J189: 195.45 | K189: 197.85 | L189: 193.05 | M189: 188.8 | N189: 10419750 | O189: -2.13%
A190: 180 | B190: Automobile | C190: TATAMOTORS | D190: 176.10 | E190: 175.68 | F190: 173.97 | G190: 171.83 | H190: 170.12 | I190: 177.82 | J190: 179.53 | K190: 181.67 | L190: 177.4 | M190: 173.55 | N190: 55490000 | O190: -1.11%
A191: 181 | B191: Automobile | C191: TATAMTRDVR | D191: 89.95 | E191: 89.92 | F191: 88.88 | G191: 87.82 | H191: 86.78 | I191: 90.98 | J191: 92.02 | K191: 93.08 | L191: 90.95 | M191: 88.85 | N191: 31152400 | O191: -2.80%
A192: 182 | B192: Power | C192: TATAPOWER | D192: 66.80 | E192: 67.05 | F192: 66.40 | G192: 66.00 | H192: 65.35 | I192: 67.45 | J192: 68.10 | K192: 68.50 | L192: 67.7 | M192: 66.65 | N192: 52263000 | O192: 2.87%
A193: 183 | B193: Metals | C193: TATASTEEL | D193: 505.60 | E193: 504.72 | F193: 499.48 | G193: 493.37 | H193: 488.13 | I193: 510.83 | J193: 516.07 | K193: 522.18 | L193: 509.95 | M193: 498.6 | N193: 36701051 | O193: 0.01%
A194: 184 | B194: Technology | C194: TCS | D194: 1986.20 | E194: 1970.32 | F194: 1948.58 | G194: 1910.97 | H194: 1889.23 | I194: 2007.93 | J194: 2029.67 | K194: 2067.28 | L194: 1992.05 | M194: 1932.7 | N194: 15214000 | O194: -3.24%
A195: 185 | B195: Technology | C195: TECHM | D195: 831.85 | E195: 830.18 | F195: 825.42 | G195: 818.98 | H195: 814.22 | I195: 836.62 | J195: 841.38 | K195: 847.82 | L195: 834.95 | M195: 823.75 | N195: 16436400 | O195: -1.08%
A196: 186 | B196: FMCG | C196: TITAN | D196: 1046.25 | E196: 1047.23 | F196: 1038.17 | G196: 1030.08 | H196: 1021.02 | I196: 1055.32 | J196: 1064.38 | K196: 1072.47 | L196: 1056.3 | M196: 1039.15 | N196: 12978750 | O196: -0.57%
A197: 187 | B197: Pharma | C197: TORNTPHARM | D197: 1812.55 | E197: 1803.85 | F197: 1783.70 | G197: 1754.85 | H197: 1734.70 | I197: 1832.70 | J197: 1852.85 | K197: 1881.70 | L197: 1824 | M197: 1775 | N197: 534000 | O197: 7.77%
A198: 188 | B198: Power | C198: TORNTPOWER | D198: 239.90 | E198: 237.75 | F198: 232.75 | G198: 225.60 | H198: 220.60 | I198: 244.90 | J198: 249.90 | K198: 257.05 | L198: 242.75 | M198: 230.6 | N198: 1737000 | O198: -26.05%
A199: 189 | B199: Media | C199: TV18BRDCST | D199: 33.40 | E199: 33.28 | F199: 33.12 | G199: 32.83 | H199: 32.67 | I199: 33.57 | J199: 33.73 | K199: 34.02 | L199: 33.45 | M199: 33 | N199: 67990000 | O199: 5.06%
A200: 190 | B200: Automobile | C200: TVSMOTOR | D200: 463.95 | E200: 468.05 | F200: 458.30 | G200: 452.65 | H200: 442.90 | I200: 473.70 | J200: 483.45 | K200: 489.10 | L200: 477.8 | M200: 462.4 | N200: 7370000 | O200: 6.56%
A201: 191 | B201: FMCG | C201: UBL | D201: 1359.75 | E201: 1359.38 | F201: 1345.77 | G201: 1331.78 | H201: 1318.17 | I201: 1373.37 | J201: 1386.98 | K201: 1400.97 | L201: 1373 | M201: 1345.4 | N201: 2958200 | O201: -1.65%
A202: 192 | B202: Finance | C202: UJJIVAN | D202: 279.85 | E202: 281.70 | F202: 275.90 | G202: 271.95 | H202: 266.15 | I202: 285.65 | J202: 291.45 | K202: 295.40 | L202: 287.5 | M202: 277.75 | N202: 5003200 | O202: 14.79%
A203: 193 | B203: Cement | C203: ULTRACEMCO | D203: 3720.00 | E203: 3692.13 | F203: 3658.77 | G203: 3597.53 | H203: 3564.17 | I203: 3753.37 | J203: 3786.73 | K203: 3847.97 | L203: 3725.5 | M203: 3630.9 | N203: 2067000 | O203: -4.01%
A204: 194 | B204: Banking | C204: UNIONBANK | D204: 71.30 | E204: 71.22 | F204: 70.73 | G204: 70.17 | H204: 69.68 | I204: 71.78 | J204: 72.27 | K204: 72.83 | L204: 71.7 | M204: 70.65 | N204: 34629000 | O204: -2.85%
A205: 195 | B205: Fertilisers | C205: UPL | D205: 847.50 | E205: 842.45 | F205: 833.05 | G205: 818.60 | H205: 809.20 | I205: 856.90 | J205: 866.30 | K205: 880.75 | L205: 851.85 | M205: 828 | N205: 16075200 | O205: -1.06%
A206: 196 | B206: Metals | C206: VEDL | D206: 171.55 | E206: 170.40 | F206: 168.80 | G206: 166.05 | H206: 164.45 | I206: 173.15 | J206: 174.75 | K206: 177.50 | L206: 172 | M206: 167.65 | N206: 48490900 | O206: 3.67%
... 21 more rows

Sheet Cash Intra
M5: Back to Main Page
A6: FOR INTRA DAY TRADING | K6: =Main!B10 -> 2019-02-26
A8: Sr.no | B8: Scrip | C8: CLOSE RATE | D8: Pivot Point | E8: Supports | H8: Resistances
C9: Point | E9: S1 | F9: S2 | G9: S3 | H9: R1 | I9: R2 | J9: R3 | K9: HIGH | L9: LOW | M9: Total Trade Quanity in Lakhs
A10: 1 | B10: Nifty 50 | C10: 10880.1 | D10: 10851.75 | E10: 10816.40 | F10: 10752.70 | G10: 10717.35 | H10: 10915.45 | I10: 10950.80 | J10: 11014.50 | K10: 10887.1 | L10: 10788.05
A11: 2 | B11: Nifty Bank | C11: 27159.25 | D11: 27096.33 | E11: 26995.57 | F11: 26831.88 | G11: 26731.12 | H11: 27260.02 | I11: 27360.78 | J11: 27524.47 | K11: 27197.1 | L11: 26932.65
A12: 3 | B12: Nifty CPSE | C12: 1998.9 | D12: 1990.23 | E12: 1977.22 | F12: 1955.53 | G12: 1942.52 | H12: 2011.92 | I12: 2024.93 | J12: 2046.62 | K12: 2003.25 | L12: 1968.55
A13: 4 | B13: Nifty Infra | C13: 2897.6 | D13: 2896.20 | E13: 2878.20 | F13: 2858.80 | G13: 2840.80 | H13: 2915.60 | I13: 2933.60 | J13: 2953.00 | K13: 2914.2 | L13: 2876.8
A14: 5 | B14: Nifty IT | C14: 16003.7 | D14: 15920.97 | E14: 15811.98 | F14: 15620.27 | G14: 15511.28 | H14: 16112.68 | I14: 16221.67 | J14: 16413.38 | K14: 16029.95 | L14: 15729.25
A15: 6 | B15: Nifty PSE | C15: 3176.3 | D15: 3168.93 | E15: 3149.67 | F15: 3123.03 | G15: 3103.77 | H15: 3195.57 | I15: 3214.83 | J15: 3241.47 | K15: 3188.2 | L15: 3142.3
A16: 7 | B16: Nifty Midcap 50 | C16: 4564.7 | D16: 4559.30 | E16: 4545.10 | F16: 4525.50 | G16: 4511.30 | H16: 4578.90 | I16: 4593.10 | J16: 4612.70 | K16: 4573.5 | L16: 4539.7
A17: 8 | B17: ABB | C17: 1246.55 | D17: 1251.68 | E17: 1238.87 | F17: 1231.18 | G17: 1218.37 | H17: 1259.37 | I17: 1272.18 | J17: 1279.87 | K17: 1264.5 | L17: 1244 | M17: 0.33418
A18: 9 | B18: ACC | C18: 1376.15 | D18: 1379.12 | E18: 1365.43 | F18: 1354.72 | G18: 1341.03 | H18: 1389.83 | I18: 1403.52 | J18: 1414.23 | K18: 1392.8 | L18: 1368.4 | M18: 7.51219
A19: 10 | B19: AIAENG | C19: 1680.15 | D19: 1690.55 | E19: 1657.25 | F19: 1634.35 | G19: 1601.05 | H19: 1713.45 | I19: 1746.75 | J19: 1769.65 | K19: 1723.85 | L19: 1667.65 | M19: 0.07326
A20: 11 | B20: AUBANK | C20: 573.65 | D20: 573.78 | E20: 569.87 | F20: 566.08 | G20: 562.17 | H20: 577.57 | I20: 581.48 | J20: 585.27 | K20: 577.7 | L20: 570 | M20: 0.38197
A21: 12 | B21: ADANIENT | C21: 132 | D21: 129.63 | E21: 125.37 | F21: 118.73 | G21: 114.47 | H21: 136.27 | I21: 140.53 | J21: 147.17 | K21: 133.9 | L21: 123 | M21: 127.69956
A22: 13 | B22: ADANIPORTS | C22: 324.55 | D22: 328.23 | E22: 316.92 | F22: 309.28 | G22: 297.97 | H22: 335.87 | I22: 347.18 | J22: 354.82 | K22: 339.55 | L22: 320.6 | M22: 217.95407
A23: 14 | B23: ADANIPOWER | C23: 40.45 | D23: 39.27 | E23: 37.53 | F23: 34.62 | G23: 32.88 | H23: 42.18 | I23: 43.92 | J23: 46.83 | K23: 41 | L23: 36.35 | M23: 178.35657
A24: 15 | B24: ABFRL | C24: 225.8 | D24: 224.35 | E24: 219.00 | F24: 212.20 | G24: 206.85 | H24: 231.15 | I24: 236.50 | J24: 243.30 | K24: 229.7 | L24: 217.55 | M24: 5.79619
A25: 16 | B25: AJANTPHARM | C25: 972.1 | D25: 975.70 | E25: 961.40 | F25: 950.70 | G25: 936.40 | H25: 986.40 | I25: 1000.70 | J25: 1011.40 | K25: 990 | L25: 965 | M25: 3.41286
A26: 17 | B26: ALKEM | C26: 1779.4 | D26: 1787.18 | E26: 1753.32 | F26: 1727.23 | G26: 1693.37 | H26: 1813.27 | I26: 1847.13 | J26: 1873.22 | K26: 1821.05 | L26: 1761.1 | M26: 1.19469
A27: 18 | B27: AMARAJABAT | C27: 732.1 | D27: 738.43 | E27: 722.47 | F27: 712.83 | G27: 696.87 | H27: 748.07 | I27: 764.03 | J27: 773.67 | K27: 754.4 | L27: 728.8 | M27: 2.64694
A28: 19 | B28: AMBUJACEM | C28: 210.1 | D28: 210.52 | E28: 208.58 | F28: 207.07 | G28: 205.13 | H28: 212.03 | I28: 213.97 | J28: 215.48 | K28: 212.45 | L28: 209 | M28: 13.23218
A29: 20 | B29: APOLLOHOSP | C29: 1187.45 | D29: 1172.28 | E29: 1146.57 | F29: 1105.68 | G29: 1079.97 | H29: 1213.17 | I29: 1238.88 | J29: 1279.77 | K29: 1198 | L29: 1131.4 | M29: 13.74338
A30: 21 | B30: APOLLOTYRE | C30: 211.25 | D30: 211.97 | E30: 209.53 | F30: 207.82 | G30: 205.38 | H30: 213.68 | I30: 216.12 | J30: 217.83 | K30: 214.4 | L30: 210.25 | M30: 24.45738
A31: 22 | B31: ARVIND | C31: 75.55 | D31: 75.33 | E31: 74.52 | F31: 73.48 | G31: 72.67 | H31: 76.37 | I31: 77.18 | J31: 78.22 | K31: 76.15 | L31: 74.3 | M31: 17.20378
A32: 23 | B32: ASHOKLEY | C32: 83.25 | D32: 82.83 | E32: 82.17 | F32: 81.08 | G32: 80.42 | H32: 83.92 | I32: 84.58 | J32: 85.67 | K32: 83.5 | L32: 81.75 | M32: 172.73781
A33: 24 | B33: ASIANPAINT | C33: 1398.25 | D33: 1398.47 | E33: 1391.13 | F33: 1384.02 | G33: 1376.68 | H33: 1405.58 | I33: 1412.92 | J33: 1420.03 | K33: 1405.8 | L33: 1391.35 | M33: 7.11217
A34: 25 | B34: AUROPHARMA | C34: 708.85 | D34: 717.45 | E34: 696.40 | F34: 683.95 | G34: 662.90 | H34: 729.90 | I34: 750.95 | J34: 763.40 | K34: 738.5 | L34: 705 | M34: 52.73045
A35: 26 | B35: DMART | C35: 1495.95 | D35: 1492.32 | E35: 1474.63 | F35: 1453.32 | G35: 1435.63 | H35: 1513.63 | I35: 1531.32 | J35: 1552.63 | K35: 1510 | L35: 1471 | M35: 5.40619
A36: 27 | B36: AXISBANK | C36: 703.7 | D36: 701.87 | E36: 697.93 | F36: 692.17 | G36: 688.23 | H36: 707.63 | I36: 711.57 | J36: 717.33 | K36: 705.8 | L36: 696.1 | M36: 114.28024
A37: 28 | B37: BAJAJ-AUTO | C37: 2847.55 | D37: 2839.72 | E37: 2824.73 | F37: 2801.92 | G37: 2786.93 | H37: 2862.53 | I37: 2877.52 | J37: 2900.33 | K37: 2854.7 | L37: 2816.9 | M37: 3.22524
A38: 29 | B38: BAJFINANCE | C38: 2657.75 | D38: 2648.83 | E38: 2622.67 | F38: 2587.58 | G38: 2561.42 | H38: 2683.92 | I38: 2710.08 | J38: 2745.17 | K38: 2675 | L38: 2613.75 | M38: 10.2404
A39: 30 | B39: BAJAJFINSV | C39: 6333.55 | D39: 6301.62 | E39: 6211.93 | F39: 6090.32 | G39: 6000.63 | H39: 6423.23 | I39: 6512.92 | J39: 6634.53 | K39: 6391.3 | L39: 6180 | M39: 2.3217
A40: 31 | B40: BALKRISIND | C40: 873.05 | D40: 866.18 | E40: 854.97 | F40: 836.88 | G40: 825.67 | H40: 884.27 | I40: 895.48 | J40: 913.57 | K40: 877.4 | L40: 848.1 | M40: 13.03253
A41: 32 | B41: BANKBARODA | C41: 102.9 | D41: 103.05 | E41: 102.35 | F41: 101.80 | G41: 101.10 | H41: 103.60 | I41: 104.30 | J41: 104.85 | K41: 103.75 | L41: 102.5 | M41: 109.77553
A42: 33 | B42: BANKINDIA | C42: 82.9 | D42: 82.82 | E42: 82.03 | F42: 81.17 | G42: 80.38 | H42: 83.68 | I42: 84.47 | J42: 85.33 | K42: 83.6 | L42: 81.95 | M42: 55.86375
A43: 34 | B43: BATAINDIA | C43: 1311.5 | D43: 1314.22 | E43: 1298.53 | F43: 1285.57 | G43: 1269.88 | H43: 1327.18 | I43: 1342.87 | J43: 1355.83 | K43: 1329.9 | L43: 1301.25 | M43: 16.60247
A44: 35 | B44: BERGEPAINT | C44: 295.55 | D44: 297.25 | E44: 289.45 | F44: 283.35 | G44: 275.55 | H44: 303.35 | I44: 311.15 | J44: 317.25 | K44: 305.05 | L44: 291.15 | M44: 5.85369
A45: 36 | B45: BEL | C45: 80.9 | D45: 79.77 | E45: 78.23 | F45: 75.57 | G45: 74.03 | H45: 82.43 | I45: 83.97 | J45: 86.63 | K45: 81.3 | L45: 77.1 | M45: 220.0938
A46: 37 | B46: BHARATFIN | C46: 938.1 | D46: 933.17 | E46: 925.03 | F46: 911.97 | G46: 903.83 | H46: 946.23 | I46: 954.37 | J46: 967.43 | K46: 941.3 | L46: 920.1 | M46: 1.47841
A47: 38 | B47: BHARATFORG | C47: 494.55 | D47: 492.38 | E47: 488.52 | F47: 482.48 | G47: 478.62 | H47: 498.42 | I47: 502.28 | J47: 508.32 | K47: 496.25 | L47: 486.35 | M47: 17.46291
A48: 39 | B48: BHEL | C48: 64.35 | D48: 64.08 | E48: 63.37 | F48: 62.38 | G48: 61.67 | H48: 65.07 | I48: 65.78 | J48: 66.77 | K48: 64.8 | L48: 63.1 | M48: 40.15688
A49: 40 | B49: BPCL | C49: 336.05 | D49: 338.52 | E49: 331.78 | F49: 327.52 | G49: 320.78 | H49: 342.78 | I49: 349.52 | J49: 353.78 | K49: 345.25 | L49: 334.25 | M49: 70.15596
A50: 41 | B50: BHARTIARTL | C50: 317.25 | D50: 316.28 | E50: 312.57 | F50: 307.88 | G50: 304.17 | H50: 320.97 | I50: 324.68 | J50: 329.37 | K50: 320 | L50: 311.6 | M50: 37.44506
A51: 42 | B51: INFRATEL | C51: 303.95 | D51: 306.73 | E51: 299.67 | F51: 295.38 | G51: 288.32 | H51: 311.02 | I51: 318.08 | J51: 322.37 | K51: 313.8 | L51: 302.45 | M51: 34.80643
A52: 43 | B52: BIOCON | C52: 617.85 | D52: 618.92 | E52: 614.48 | F52: 611.12 | G52: 606.68 | H52: 622.28 | I52: 626.72 | J52: 630.08 | K52: 623.35 | L52: 615.55 | M52: 4.97127
A53: 44 | B53: BOSCHLTD | C53: 18340.65 | D53: 18283.92 | E53: 18156.83 | F53: 17973.02 | G53: 17845.93 | H53: 18467.73 | I53: 18594.82 | J53: 18778.63 | K53: 18411 | L53: 18100.1 | M53: 0.21822
A54: 45 | B54: BRITANNIA | C54: 3048.2 | D54: 3035.73 | E54: 2994.47 | F54: 2940.73 | G54: 2899.47 | H54: 3089.47 | I54: 3130.73 | J54: 3184.47 | K54: 3077 | L54: 2982 | M54: 3.36072
A55: 46 | B55: CRISIL | C55: 1531.65 | D55: 1535.35 | E55: 1520.30 | F55: 1508.95 | G55: 1493.90 | H55: 1546.70 | I55: 1561.75 | J55: 1573.10 | K55: 1550.4 | L55: 1524 | M55: 0.08545
A56: 47 | B56: CADILAHC | C56: 313.75 | D56: 314.80 | E56: 312.00 | F56: 310.25 | G56: 307.45 | H56: 316.55 | I56: 319.35 | J56: 321.10 | K56: 317.6 | L56: 313.05 | M56: 6.81427
A57: 48 | B57: CANBK | C57: 222.8 | D57: 222.67 | E57: 221.53 | F57: 220.27 | G57: 219.13 | H57: 223.93 | I57: 225.07 | J57: 226.33 | K57: 223.8 | L57: 221.4 | M57: 23.18426
A58: 49 | B58: CASTROLIND | C58: 152.65 | D58: 153.92 | E58: 150.93 | F58: 149.22 | G58: 146.23 | H58: 155.63 | I58: 158.62 | J58: 160.33 | K58: 156.9 | L58: 152.2 | M58: 10.32035
A59: 50 | B59: CENTRALBK | C59: 31.65 | D59: 31.80 | E59: 31.25 | F59: 30.85 | G59: 30.30 | H59: 32.20 | I59: 32.75 | J59: 33.15 | K59: 32.35 | L59: 31.4 | M59: 3.05042
A60: 51 | B60: CENTURYTEX | C60: 794.1 | D60: 790.77 | E60: 783.93 | F60: 773.77 | G60: 766.93 | H60: 800.93 | I60: 807.77 | J60: 817.93 | K60: 797.6 | L60: 780.6 | M60: 4.46984
A61: 52 | B61: CHOLAFIN | C61: 1196.6 | D61: 1197.12 | E61: 1184.83 | F61: 1173.07 | G61: 1160.78 | H61: 1208.88 | I61: 1221.17 | J61: 1232.93 | K61: 1209.4 | L61: 1185.35 | M61: 2.62878
A62: 53 | B62: CIPLA | C62: 548.3 | D62: 546.72 | E62: 542.58 | F62: 536.87 | G62: 532.73 | H62: 552.43 | I62: 556.57 | J62: 562.28 | K62: 550.85 | L62: 541 | M62: 19.61905
A63: 54 | B63: COALINDIA | C63: 214.35 | D63: 214.58 | E63: 212.47 | F63: 210.58 | G63: 208.47 | H63: 216.47 | I63: 218.58 | J63: 220.47 | K63: 216.7 | L63: 212.7 | M63: 93.86982
A64: 55 | B64: COLPAL | C64: 1264.05 | D64: 1269.83 | E64: 1253.17 | F64: 1242.28 | G64: 1225.62 | H64: 1280.72 | I64: 1297.38 | J64: 1308.27 | K64: 1286.5 | L64: 1258.95 | M64: 6.03992
A65: 56 | B65: CONCOR | C65: 474.5 | D65: 477.70 | E65: 467.90 | F65: 461.30 | G65: 451.50 | H65: 484.30 | I65: 494.10 | J65: 500.70 | K65: 487.5 | L65: 471.1 | M65: 12.32554
A66: 57 | B66: COROMANDEL | C66: 441.45 | D66: 443.10 | E66: 438.00 | F66: 434.55 | G66: 429.45 | H66: 446.55 | I66: 451.65 | J66: 455.10 | K66: 448.2 | L66: 439.65 | M66: 1.48941
A67: 58 | B67: CROMPTON | C67: 211.15 | D67: 211.82 | E67: 208.88 | F67: 206.62 | G67: 203.68 | H67: 214.08 | I67: 217.02 | J67: 219.28 | K67: 214.75 | L67: 209.55 | M67: 1.84603
A68: 59 | B68: CUMMINSIND | C68: 701.15 | D68: 700.05 | E68: 691.10 | F68: 681.05 | G68: 672.10 | H68: 710.10 | I68: 719.05 | J68: 729.10 | K68: 709 | L68: 690 | M68: 4.52682
A69: 60 | B69: DLF | C69: 168.15 | D69: 169.50 | E69: 165.70 | F69: 163.25 | G69: 159.45 | H69: 171.95 | I69: 175.75 | J69: 178.20 | K69: 173.3 | L69: 167.05 | M69: 130.38685
A70: 61 | B70: DABUR | C70: 431.9 | D70: 433.83 | E70: 427.82 | F70: 423.73 | G70: 417.72 | H70: 437.92 | I70: 443.93 | J70: 448.02 | K70: 439.85 | L70: 429.75 | M70: 16.30382
A71: 62 | B71: DHFL | C71: 136.75 | D71: 138.42 | E71: 133.43 | F71: 130.12 | G71: 125.13 | H71: 141.73 | I71: 146.72 | J71: 150.03 | K71: 143.4 | L71: 135.1 | M71: 117.9254
A72: 63 | B72: DISHTV | C72: 37.4 | D72: 37.65 | E72: 36.85 | F72: 36.30 | G72: 35.50 | H72: 38.20 | I72: 39.00 | J72: 39.55 | K72: 38.45 | L72: 37.1 | M72: 176.89907
A73: 64 | B73: DIVISLAB | C73: 1594.75 | D73: 1586.88 | E73: 1568.87 | F73: 1542.98 | G73: 1524.97 | H73: 1612.77 | I73: 1630.78 | J73: 1656.67 | K73: 1604.9 | L73: 1561 | M73: 5.99083
A74: 65 | B74: LALPATHLAB | C74: 1027.3 | D74: 1029.27 | E74: 1018.03 | F74: 1008.77 | G74: 997.53 | H74: 1038.53 | I74: 1049.77 | J74: 1059.03 | K74: 1040.5 | L74: 1020 | M74: 0.26423
A75: 66 | B75: DRREDDY | C75: 2666.9 | D75: 2661.55 | E75: 2628.15 | F75: 2589.40 | G75: 2556.00 | H75: 2700.30 | I75: 2733.70 | J75: 2772.45 | K75: 2694.95 | L75: 2622.8 | M75: 12.75515
A76: 67 | B76: EDELWEISS | C76: 147.45 | D76: 147.62 | E76: 145.93 | F76: 144.42 | G76: 142.73 | H76: 149.13 | I76: 150.82 | J76: 152.33 | K76: 149.3 | L76: 146.1 | M76: 11.58713
A77: 68 | B77: EICHERMOT | C77: 20704.8 | D77: 20661.92 | E77: 20542.88 | F77: 20380.97 | G77: 20261.93 | H77: 20823.83 | I77: 20942.87 | J77: 21104.78 | K77: 20780.95 | L77: 20500 | M77: 0.4626
A78: 69 | B78: EMAMILTD | C78: 398.6 | D78: 400.20 | E78: 395.40 | F78: 392.20 | G78: 387.40 | H78: 403.40 | I78: 408.20 | J78: 411.40 | K78: 405 | L78: 397 | M78: 2.60198
A79: 70 | B79: ENDURANCE | C79: 1246.75 | D79: 1251.58 | E79: 1235.17 | F79: 1223.58 | G79: 1207.17 | H79: 1263.17 | I79: 1279.58 | J79: 1291.17 | K79: 1268 | L79: 1240 | M79: 0.06215
A80: 71 | B80: ENGINERSIN | C80: 106.4 | D80: 106.97 | E80: 104.98 | F80: 103.57 | G80: 101.58 | H80: 108.38 | I80: 110.37 | J80: 111.78 | K80: 108.95 | L80: 105.55 | M80: 48.64575
A81: 72 | B81: EXIDEIND | C81: 217.35 | D81: 216.55 | E81: 213.10 | F81: 208.85 | G81: 205.40 | H81: 220.80 | I81: 224.25 | J81: 228.50 | K81: 220 | L81: 212.3 | M81: 20.12689
A82: 73 | B82: FEDERALBNK | C82: 80.8 | D82: 80.40 | E82: 79.60 | F82: 78.40 | G82: 77.60 | H82: 81.60 | I82: 82.40 | J82: 83.60 | K82: 81.2 | L82: 79.2 | M82: 117.78486
A83: 74 | B83: GAIL | C83: 327.8 | D83: 326.50 | E83: 323.50 | F83: 319.20 | G83: 316.20 | H83: 330.80 | I83: 333.80 | J83: 338.10 | K83: 329.5 | L83: 322.2 | M83: 87.24063
A84: 75 | B84: GMRINFRA | C84: 16.4 | D84: 16.42 | E84: 16.23 | F84: 16.07 | G84: 15.88 | H84: 16.58 | I84: 16.77 | J84: 16.93 | K84: 16.6 | L84: 16.25 | M84: 87.01329
A85: 76 | B85: GSKCONS | C85: 7269.2 | D85: 7271.43 | E85: 7223.87 | F85: 7178.53 | G85: 7130.97 | H85: 7316.77 | I85: 7364.33 | J85: 7409.67 | K85: 7319 | L85: 7226.1 | M85: 0.29704
A86: 77 | B86: GLAXO | C86: 1341.9 | D86: 1342.30 | E86: 1330.60 | F86: 1319.30 | G86: 1307.60 | H86: 1353.60 | I86: 1365.30 | J86: 1376.60 | K86: 1354 | L86: 1331 | M86: 0.12365
A87: 78 | B87: GLENMARK | C87: 593 | D87: 595.50 | E87: 587.65 | F87: 582.30 | G87: 574.45 | H87: 600.85 | I87: 608.70 | J87: 614.05 | K87: 603.35 | L87: 590.15 | M87: 4.96779
A88: 79 | B88: GODREJCP | C88: 660.05 | D88: 664.03 | E88: 654.42 | F88: 648.78 | G88: 639.17 | H88: 669.67 | I88: 679.28 | J88: 684.92 | K88: 673.65 | L88: 658.4 | M88: 6.74339
A89: 80 | B89: GODREJIND | C89: 481.45 | D89: 483.28 | E89: 478.22 | F89: 474.98 | G89: 469.92 | H89: 486.52 | I89: 491.58 | J89: 494.82 | K89: 488.35 | L89: 480.05 | M89: 2.42527
A90: 81 | B90: GRUH | C90: 248.75 | D90: 251.77 | E90: 244.53 | F90: 240.32 | G90: 233.08 | H90: 255.98 | I90: 263.22 | J90: 267.43 | K90: 259 | L90: 247.55 | M90: 5.22291
A91: 82 | B91: GPPL | C91: 77.95 | D91: 78.30 | E91: 77.15 | F91: 76.35 | G91: 75.20 | H91: 79.10 | I91: 80.25 | J91: 81.05 | K91: 79.45 | L91: 77.5 | M91: 9.43057
A92: 83 | B92: GSPL | C92: 158.7 | D92: 159.02 | E92: 154.88 | F92: 151.07 | G92: 146.93 | H92: 162.83 | I92: 166.97 | J92: 170.78 | K92: 163.15 | L92: 155.2 | M92: 7.54241
A93: 84 | B93: HCLTECH | C93: 1082.25 | D93: 1076.73 | E93: 1068.47 | F93: 1054.68 | G93: 1046.42 | H93: 1090.52 | I93: 1098.78 | J93: 1112.57 | K93: 1085 | L93: 1062.95 | M93: 11.7047
A94: 85 | B94: HDFCBANK | C94: 2125.4 | D94: 2116.83 | E94: 2103.72 | F94: 2082.03 | G94: 2068.92 | H94: 2138.52 | I94: 2151.63 | J94: 2173.32 | K94: 2129.95 | L94: 2095.15 | M94: 20.35149
A95: 86 | B95: HAVELLS | C95: 702.8 | D95: 699.27 | E95: 693.53 | F95: 684.27 | G95: 678.53 | H95: 708.53 | I95: 714.27 | J95: 723.53 | K95: 705 | L95: 690 | M95: 6.99539
A96: 87 | B96: HEROMOTOCO | C96: 2712.5 | D96: 2708.70 | E96: 2693.80 | F96: 2675.10 | G96: 2660.20 | H96: 2727.40 | I96: 2742.30 | J96: 2761.00 | K96: 2723.6 | L96: 2690 | M96: 4.43819
A97: 88 | B97: HEXAWARE | C97: 353.7 | D97: 355.93 | E97: 350.27 | F97: 346.83 | G97: 341.17 | H97: 359.37 | I97: 365.03 | J97: 368.47 | K97: 361.6 | L97: 352.5 | M97: 4.97918
A98: 89 | B98: HINDALCO | C98: 196.5 | D98: 196.45 | E98: 194.40 | F98: 192.30 | G98: 190.25 | H98: 198.55 | I98: 200.60 | J98: 202.70 | K98: 198.5 | L98: 194.35 | M98: 61.69952
A99: 90 | B99: HINDPETRO | C99: 228.15 | D99: 228.72 | E99: 225.43 | F99: 222.72 | G99: 219.43 | H99: 231.43 | I99: 234.72 | J99: 237.43 | K99: 232 | L99: 226 | M99: 35.17474
A100: 91 | B100: HINDUNILVR | C100: 1770.15 | D100: 1768.32 | E100: 1760.83 | F100: 1751.52 | G100: 1744.03 | H100: 1777.63 | I100: 1785.12 | J100: 1794.43 | K100: 1775.8 | L100: 1759 | M100: 14.90746
A101: 92 | B101: HINDZINC | C101: 262.25 | D101: 261.58 | E101: 259.87 | F101: 257.48 | G101: 255.77 | H101: 263.97 | I101: 265.68 | J101: 268.07 | K101: 263.3 | L101: 259.2 | M101: 6.31433
A102: 93 | B102: HUDCO | C102: 42.35 | D102: 42.42 | E102: 41.33 | F102: 40.32 | G102: 39.23 | H102: 43.43 | I102: 44.52 | J102: 45.53 | K102: 43.5 | L102: 41.4 | M102: 23.42519
A103: 94 | B103: HDFC | C103: 1894.5 | D103: 1887.97 | E103: 1878.03 | F103: 1861.57 | G103: 1851.63 | H103: 1904.43 | I103: 1914.37 | J103: 1930.83 | K103: 1897.9 | L103: 1871.5 | M103: 20.49742
A104: 95 | B104: ITC | C104: 276.7 | D104: 275.62 | E104: 274.08 | F104: 271.47 | G104: 269.93 | H104: 278.23 | I104: 279.77 | J104: 282.38 | K104: 277.15 | L104: 273 | M104: 300.47503
A105: 96 | B105: ICICIBANK | C105: 355.6 | D105: 355.37 | E105: 353.28 | F105: 350.97 | G105: 348.88 | H105: 357.68 | I105: 359.77 | J105: 362.08 | K105: 357.45 | L105: 353.05 | M105: 103.44411
A106: 97 | B106: ICICIPRULI | C106: 317.15 | D106: 319.50 | E106: 310.70 | F106: 304.25 | G106: 295.45 | H106: 325.95 | I106: 334.75 | J106: 341.20 | K106: 328.3 | L106: 313.05 | M106: 23.85566
A107: 98 | B107: IDBI | C107: 42.95 | D107: 43.07 | E107: 42.48 | F107: 42.02 | G107: 41.43 | H107: 43.53 | I107: 44.12 | J107: 44.58 | K107: 43.65 | L107: 42.6 | M107: 33.05017
A108: 99 | B108: IDFCFIRSTB | C108: 45.9 | D108: 45.90 | E108: 45.55 | F108: 45.20 | G108: 44.85 | H108: 46.25 | I108: 46.60 | J108: 46.95 | K108: 46.25 | L108: 45.55 | M108: 97.93857
A109: 100 | B109: IDFC | C109: 37.4 | D109: 37.25 | E109: 36.95 | F109: 36.50 | G109: 36.20 | H109: 37.70 | I109: 38.00 | J109: 38.45 | K109: 37.55 | L109: 36.8 | M109: 32.08036
A110: 101 | B110: IRB | C110: 132.1 | D110: 131.12 | E110: 129.48 | F110: 126.87 | G110: 125.23 | H110: 133.73 | I110: 135.37 | J110: 137.98 | K110: 132.75 | L110: 128.5 | M110: 31.34654
A111: 102 | B111: IDEA | C111: 30.5 | D111: 30.57 | E111: 30.13 | F111: 29.77 | G111: 29.33 | H111: 30.93 | I111: 31.37 | J111: 31.73 | K111: 31 | L111: 30.2 | M111: 223.58483
A112: 103 | B112: IBULHSGFIN | C112: 678.8 | D112: 681.40 | E112: 667.85 | F112: 656.90 | G112: 643.35 | H112: 692.35 | I112: 705.90 | J112: 716.85 | K112: 694.95 | L112: 670.45 | M112: 71.7028
A113: 104 | B113: INDIANB | C113: 218.3 | D113: 219.17 | E113: 215.88 | F113: 213.47 | G113: 210.18 | H113: 221.58 | I113: 224.87 | J113: 227.28 | K113: 222.45 | L113: 216.75 | M113: 11.80012
A114: 105 | B114: INDHOTEL | C114: 142.15 | D114: 143.05 | E114: 140.70 | F114: 139.25 | G114: 136.90 | H114: 144.50 | I114: 146.85 | J114: 148.30 | K114: 145.4 | L114: 141.6 | M114: 5.21791
A115: 106 | B115: IOC | C115: 138.6 | D115: 137.55 | E115: 135.60 | F115: 132.60 | G115: 130.65 | H115: 140.55 | I115: 142.50 | J115: 145.50 | K115: 139.5 | L115: 134.55 | M115: 170.4647
A116: 107 | B116: IGL | C116: 287.35 | D116: 285.98 | E116: 283.47 | F116: 279.58 | G116: 277.07 | H116: 289.87 | I116: 292.38 | J116: 296.27 | K116: 288.5 | L116: 282.1 | M116: 15.11066
A117: 108 | B117: INDUSINDBK | C117: 1491.2 | D117: 1482.42 | E117: 1469.83 | F117: 1448.47 | G117: 1435.88 | H117: 1503.78 | I117: 1516.37 | J117: 1537.73 | K117: 1495 | L117: 1461.05 | M117: 10.55629
A118: 109 | B118: NAUKRI | C118: 1662.8 | D118: 1658.85 | E118: 1640.95 | F118: 1619.10 | G118: 1601.20 | H118: 1680.70 | I118: 1698.60 | J118: 1720.45 | K118: 1676.75 | L118: 1637 | M118: 0.5255
A119: 110 | B119: INFY | C119: 754.9 | D119: 749.48 | E119: 740.97 | F119: 727.03 | G119: 718.52 | H119: 763.42 | I119: 771.93 | J119: 785.87 | K119: 758 | L119: 735.55 | M119: 65.47552
A120: 111 | B120: INDIGO | C120: 1117.55 | D120: 1116.77 | E120: 1109.03 | F120: 1100.52 | G120: 1092.78 | H120: 1125.28 | I120: 1133.02 | J120: 1141.53 | K120: 1124.5 | L120: 1108.25 | M120: 3.34137
A121: 112 | B121: IPCALAB | C121: 796.1 | D121: 802.97 | E121: 786.13 | F121: 776.17 | G121: 759.33 | H121: 812.93 | I121: 829.77 | J121: 839.73 | K121: 819.8 | L121: 793 | M121: 2.45429
A122: 113 | B122: JSWENERGY | C122: 65.95 | D122: 65.87 | E122: 65.38 | F122: 64.82 | G122: 64.33 | H122: 66.43 | I122: 66.92 | J122: 67.48 | K122: 66.35 | L122: 65.3 | M122: 2.11963
A123: 114 | B123: JSWSTEEL | C123: 287.8 | D123: 289.32 | E123: 284.83 | F123: 281.87 | G123: 277.38 | H123: 292.28 | I123: 296.77 | J123: 299.73 | K123: 293.8 | L123: 286.35 | M123: 125.51599
A124: 115 | B124: JINDALSTEL | C124: 159 | D124: 159.97 | E124: 155.53 | F124: 152.07 | G124: 147.63 | H124: 163.43 | I124: 167.87 | J124: 171.33 | K124: 164.4 | L124: 156.5 | M124: 172.65199
A125: 116 | B125: JUBLFOOD | C125: 1268.65 | D125: 1282.05 | E125: 1250.60 | F125: 1232.55 | G125: 1201.10 | H125: 1300.10 | I125: 1331.55 | J125: 1349.60 | K125: 1313.5 | L125: 1264 | M125: 25.47385
A126: 117 | B126: JUBILANT | C126: 774.7 | D126: 771.27 | E126: 756.53 | F126: 738.37 | G126: 723.63 | H126: 789.43 | I126: 804.17 | J126: 822.33 | K126: 786 | L126: 753.1 | M126: 5.70415
A127: 118 | B127: KARURVYSYA | C127: 68.1 | D127: 67.88 | E127: 66.87 | F127: 65.63 | G127: 64.62 | H127: 69.12 | I127: 70.13 | J127: 71.37 | K127: 68.9 | L127: 66.65 | M127: 8.54572
A128: 119 | B128: KOTAKBANK | C128: 1240.95 | D128: 1239.27 | E128: 1231.68 | F128: 1222.42 | G128: 1214.83 | H128: 1248.53 | I128: 1256.12 | J128: 1265.38 | K128: 1246.85 | L128: 1230 | M128: 37.3559
A129: 120 | B129: L&TFH | C129: 126.5 | D129: 126.58 | E129: 125.22 | F129: 123.93 | G129: 122.57 | H129: 127.87 | I129: 129.23 | J129: 130.52 | K129: 127.95 | L129: 125.3 | M129: 36.47263
A130: 121 | B130: LICHSGFIN | C130: 467.8 | D130: 470.27 | E130: 463.63 | F130: 459.47 | G130: 452.83 | H130: 474.43 | I130: 481.07 | J130: 485.23 | K130: 476.9 | L130: 466.1 | M130: 13.52213
A131: 122 | B131: LT | C131: 1275.85 | D131: 1275.43 | E131: 1264.42 | F131: 1252.98 | G131: 1241.97 | H131: 1286.87 | I131: 1297.88 | J131: 1309.32 | K131: 1286.45 | L131: 1264 | M131: 58.7373
A132: 123 | B132: LUPIN | C132: 777.45 | D132: 777.58 | E132: 770.37 | F132: 763.28 | G132: 756.07 | H132: 784.67 | I132: 791.88 | J132: 798.97 | K132: 784.8 | L132: 770.5 | M132: 10.69147
A133: 124 | B133: MRF | C133: 55340.15 | D133: 55221.05 | E133: 54974.10 | F133: 54608.05 | G133: 54361.10 | H133: 55587.10 | I133: 55834.05 | J133: 56200.10 | K133: 55468 | L133: 54855 | M133: 0.04311
A134: 125 | B134: MGL | C134: 876.15 | D134: 872.92 | E134: 864.83 | F134: 853.52 | G134: 845.43 | H134: 884.23 | I134: 892.32 | J134: 903.63 | K134: 881 | L134: 861.6 | M134: 2.30445
A135: 126 | B135: M&MFIN | C135: 396.45 | D135: 398.67 | E135: 392.93 | F135: 389.42 | G135: 383.68 | H135: 402.18 | I135: 407.92 | J135: 411.43 | K135: 404.4 | L135: 395.15 | M135: 11.10801
A136: 127 | B136: M&M | C136: 650.7 | D136: 648.98 | E136: 644.02 | F136: 637.33 | G136: 632.37 | H136: 655.67 | I136: 660.63 | J136: 667.32 | K136: 653.95 | L136: 642.3 | M136: 18.63303
A137: 128 | B137: MANAPPURAM | C137: 113.6 | D137: 113.27 | E137: 111.88 | F137: 110.17 | G137: 108.78 | H137: 114.98 | I137: 116.37 | J137: 118.08 | K137: 114.65 | L137: 111.55 | M137: 40.982
A138: 129 | B138: MRPL | C138: 63.75 | D138: 63.50 | E138: 62.80 | F138: 61.85 | G138: 61.15 | H138: 64.45 | I138: 65.15 | J138: 66.10 | K138: 64.2 | L138: 62.55 | M138: 8.26828
A139: 130 | B139: MARICO | C139: 340.05 | D139: 339.70 | E139: 335.45 | F139: 330.85 | G139: 326.60 | H139: 344.30 | I139: 348.55 | J139: 353.15 | K139: 343.95 | L139: 335.1 | M139: 14.00061
A140: 131 | B140: MARUTI | C140: 6924.9 | D140: 6926.62 | E140: 6868.33 | F140: 6811.77 | G140: 6753.48 | H140: 6983.18 | I140: 7041.47 | J140: 7098.03 | K140: 6984.9 | L140: 6870.05 | M140: 4.95728
A141: 132 | B141: MFSL | C141: 414.7 | D141: 411.42 | E141: 406.68 | F141: 398.67 | G141: 393.93 | H141: 419.43 | I141: 424.17 | J141: 432.18 | K141: 416.15 | L141: 403.4 | M141: 4.8259
A142: 133 | B142: MINDTREE | C142: 907.75 | D142: 905.43 | E142: 897.97 | F142: 888.18 | G142: 880.72 | H142: 915.22 | I142: 922.68 | J142: 932.47 | K142: 912.9 | L142: 895.65 | M142: 10.18766
A143: 134 | B143: MOTHERSUMI | C143: 159.2 | D143: 154.53 | E143: 148.17 | F143: 137.13 | G143: 130.77 | H143: 165.57 | I143: 171.93 | J143: 182.97 | K143: 160.9 | L143: 143.5 | M143: 447.76867
A144: 135 | B144: MPHASIS | C144: 1022.8 | D144: 1020.28 | E144: 1008.57 | F144: 994.33 | G144: 982.62 | H144: 1034.52 | I144: 1046.23 | J144: 1060.47 | K144: 1032 | L144: 1006.05 | M144: 1.68525
A145: 136 | B145: MUTHOOTFIN | C145: 536.65 | D145: 537.45 | E145: 532.20 | F145: 527.75 | G145: 522.50 | H145: 541.90 | I145: 547.15 | J145: 551.60 | K145: 542.7 | L145: 533 | M145: 8.69664
A146: 137 | B146: NATCOPHARM | C146: 575.4 | D146: 579.47 | E146: 568.93 | F146: 562.47 | G146: 551.93 | H146: 585.93 | I146: 596.47 | J146: 602.93 | K146: 590 | L146: 573 | M146: 1.90419
A147: 138 | B147: NBCC | C147: 53.3 | D147: 53.33 | E147: 52.87 | F147: 52.43 | G147: 51.97 | H147: 53.77 | I147: 54.23 | J147: 54.67 | K147: 53.8 | L147: 52.9 | M147: 110.09074
A148: 139 | B148: NHPC | C148: 23.35 | D148: 23.37 | E148: 23.03 | F148: 22.72 | G148: 22.38 | H148: 23.68 | I148: 24.02 | J148: 24.33 | K148: 23.7 | L148: 23.05 | M148: 207.25372
A149: 140 | B149: NMDC | C149: 97.1 | D149: 97.08 | E149: 96.57 | F149: 96.03 | G149: 95.52 | H149: 97.62 | I149: 98.13 | J149: 98.67 | K149: 97.6 | L149: 96.55 | M149: 40.21994
A150: 141 | B150: NTPC | C150: 140.35 | D150: 139.20 | E150: 137.40 | F150: 134.45 | G150: 132.65 | H150: 142.15 | I150: 143.95 | J150: 146.90 | K150: 141 | L150: 136.25 | M150: 229.64823
A151: 142 | B151: NATIONALUM | C151: 48.35 | D151: 48.38 | E151: 47.57 | F151: 46.78 | G151: 45.97 | H151: 49.17 | I151: 49.98 | J151: 50.77 | K151: 49.2 | L151: 47.6 | M151: 478.1994
A152: 143 | B152: OBEROIRLTY | C152: 488.15 | D152: 498.05 | E152: 471.10 | F152: 454.05 | G152: 427.10 | H152: 515.10 | I152: 542.05 | J152: 559.10 | K152: 525 | L152: 481 | M152: 16.99463
A153: 144 | B153: ONGC | C153: 147.75 | D153: 147.60 | E153: 145.85 | F153: 143.95 | G153: 142.20 | H153: 149.50 | I153: 151.25 | J153: 153.15 | K153: 149.35 | L153: 145.7 | M153: 202.16077
A154: 145 | B154: OIL | C154: 174.2 | D154: 173.95 | E154: 169.90 | F154: 165.60 | G154: 161.55 | H154: 178.25 | I154: 182.30 | J154: 186.60 | K154: 178 | L154: 169.65 | M154: 39.1523
A155: 146 | B155: OFSS | C155: 3503.1 | D155: 3486.00 | E155: 3452.10 | F155: 3401.10 | G155: 3367.20 | H155: 3537.00 | I155: 3570.90 | J155: 3621.90 | K155: 3519.9 | L155: 3435 | M155: 0.27546
A156: 147 | B156: PCJEWELLER | C156: 67.9 | D156: 67.77 | E156: 66.43 | F156: 64.97 | G156: 63.63 | H156: 69.23 | I156: 70.57 | J156: 72.03 | K156: 69.1 | L156: 66.3 | M156: 41.34983
A157: 148 | B157: PIIND | C157: 920.65 | D157: 919.40 | E157: 906.10 | F157: 891.55 | G157: 878.25 | H157: 933.95 | I157: 947.25 | J157: 961.80 | K157: 932.7 | L157: 904.85 | M157: 1.16365
A158: 149 | B158: PNBHOUSING | C158: 916.65 | D158: 933.88 | E158: 892.87 | F158: 869.08 | G158: 828.07 | H158: 957.67 | I158: 998.68 | J158: 1022.47 | K158: 974.9 | L158: 910.1 | M158: 1.00511
A159: 150 | B159: PAGEIND | C159: 21996.1 | D159: 21940.90 | E159: 21388.50 | F159: 20780.90 | G159: 20228.50 | H159: 22548.50 | I159: 23100.90 | J159: 23708.50 | K159: 22493.3 | L159: 21333.3 | M159: 0.76735
A160: 151 | B160: PETRONET | C160: 218.35 | D160: 217.93 | E160: 216.17 | F160: 213.98 | G160: 212.22 | H160: 220.12 | I160: 221.88 | J160: 224.07 | K160: 219.7 | L160: 215.75 | M160: 12.96182
A161: 152 | B161: PIDILITIND | C161: 1105.7 | D161: 1097.83 | E161: 1083.87 | F161: 1062.03 | G161: 1048.07 | H161: 1119.67 | I161: 1133.63 | J161: 1155.47 | K161: 1111.8 | L161: 1076 | M161: 6.72893
A162: 153 | B162: PEL | C162: 2323.2 | D162: 2315.40 | E162: 2292.80 | F162: 2262.40 | G162: 2239.80 | H162: 2345.80 | I162: 2368.40 | J162: 2398.80 | K162: 2338 | L162: 2285 | M162: 5.33083
A163: 154 | B163: PFC | C163: 111.1 | D163: 111.22 | E163: 109.98 | F163: 108.87 | G163: 107.63 | H163: 112.33 | I163: 113.57 | J163: 114.68 | K163: 112.45 | L163: 110.1 | M163: 94.08448
A164: 155 | B164: POWERGRID | C164: 181.95 | D164: 180.98 | E164: 179.47 | F164: 176.98 | G164: 175.47 | H164: 183.47 | I164: 184.98 | J164: 187.47 | K164: 182.5 | L164: 178.5 | M164: 168.22873
A165: 156 | B165: PRESTIGE | C165: 210.05 | D165: 212.33 | E165: 205.72 | F165: 201.38 | G165: 194.77 | H165: 216.67 | I165: 223.28 | J165: 227.62 | K165: 218.95 | L165: 208 | M165: 5.84566
A166: 157 | B166: PGHH | C166: 10086.85 | D166: 10129.83 | E166: 9989.67 | F166: 9892.48 | G166: 9752.32 | H166: 10227.02 | I166: 10367.18 | J166: 10464.37 | K166: 10270 | L166: 10032.65 | M166: 0.06587
A167: 158 | B167: PNB | C167: 73.5 | D167: 73.38 | E167: 73.02 | F167: 72.53 | G167: 72.17 | H167: 73.87 | I167: 74.23 | J167: 74.72 | K167: 73.75 | L167: 72.9 | M167: 101.43437
A168: 159 | B168: RBLBANK | C168: 574.3 | D168: 570.03 | E168: 561.57 | F168: 548.83 | G168: 540.37 | H168: 582.77 | I168: 591.23 | J168: 603.97 | K168: 578.5 | L168: 557.3 | M168: 11.89374
A169: 160 | B169: RAJESHEXPO | C169: 556.85 | D169: 560.18 | E169: 552.67 | F169: 548.48 | G169: 540.97 | H169: 564.37 | I169: 571.88 | J169: 576.07 | K169: 567.7 | L169: 556 | M169: 1.63727
A170: 161 | B170: RELCAPITAL | C170: 163.65 | D170: 164.23 | E170: 160.47 | F170: 157.28 | G170: 153.52 | H170: 167.42 | I170: 171.18 | J170: 174.37 | K170: 168 | L170: 161.05 | M170: 111.10457
A171: 162 | B171: RCOM | C171: 6 | D171: 6.13 | E171: 5.77 | F171: 5.53 | G171: 5.17 | H171: 6.37 | I171: 6.73 | J171: 6.97 | K171: 6.5 | L171: 5.9 | M171: 952.47158
A172: 163 | B172: RELIANCE | C172: 1232.3 | D172: 1231.98 | E172: 1220.97 | F172: 1209.63 | G172: 1198.62 | H172: 1243.32 | I172: 1254.33 | J172: 1265.67 | K172: 1243 | L172: 1220.65 | M172: 78.52528
A173: 164 | B173: RELINFRA | C173: 131.15 | D173: 132.53 | E173: 127.47 | F173: 123.78 | G173: 118.72 | H173: 136.22 | I173: 141.28 | J173: 144.97 | K173: 137.6 | L173: 128.85 | M173: 174.53561
A174: 165 | B174: RPOWER | C174: 11.05 | D174: 11.25 | E174: 10.75 | F174: 10.45 | G174: 9.95 | H174: 11.55 | I174: 12.05 | J174: 12.35 | K174: 11.75 | L174: 10.95 | M174: 391.23929
A175: 166 | B175: RECLTD | C175: 132.35 | D175: 132.93 | E175: 130.27 | F175: 128.18 | G175: 125.52 | H175: 135.02 | I175: 137.68 | J175: 139.77 | K175: 135.6 | L175: 130.85 | M175: 100.47885
A176: 167 | B176: SRF | C176: 2237.6 | D176: 2226.82 | E176: 2199.63 | F176: 2161.67 | G176: 2134.48 | H176: 2264.78 | I176: 2291.97 | J176: 2329.93 | K176: 2254 | L176: 2188.85 | M176: 5.42138
A177: 168 | B177: SHREECEM | C177: 16515.85 | D177: 16435.97 | E177: 16251.93 | F177: 15988.02 | G177: 15803.98 | H177: 16699.88 | I177: 16883.92 | J177: 17147.83 | K177: 16620 | L177: 16172.05 | M177: 0.19223
A178: 169 | B178: SRTRANSFIN | C178: 1099.3 | D178: 1093.17 | E178: 1079.93 | F178: 1060.57 | G178: 1047.33 | H178: 1112.53 | I178: 1125.77 | J178: 1145.13 | K178: 1106.4 | L178: 1073.8 | M178: 10.29089
A179: 170 | B179: SIEMENS | C179: 988.95 | D179: 990.22 | E179: 979.73 | F179: 970.52 | G179: 960.03 | H179: 999.43 | I179: 1009.92 | J179: 1019.13 | K179: 1000.7 | L179: 981 | M179: 1.68772
A180: 171 | B180: SBIN | C180: 270.15 | D180: 269.82 | E180: 268.23 | F180: 266.32 | G180: 264.73 | H180: 271.73 | I180: 273.32 | J180: 275.23 | K180: 271.4 | L180: 267.9 | M180: 207.93897
A181: 172 | B181: SAIL | C181: 48.6 | D181: 49.07 | E181: 47.73 | F181: 46.87 | G181: 45.53 | H181: 49.93 | I181: 51.27 | J181: 52.13 | K181: 50.4 | L181: 48.2 | M181: 203.67117
A182: 173 | B182: SPARC | C182: 174 | D182: 172.97 | E182: 169.93 | F182: 165.87 | G182: 162.83 | H182: 177.03 | I182: 180.07 | J182: 184.13 | K182: 176 | L182: 168.9 | M182: 5.86304
A183: 174 | B183: SUNPHARMA | C183: 436.1 | D183: 434.12 | E183: 429.48 | F183: 422.87 | G183: 418.23 | H183: 440.73 | I183: 445.37 | J183: 451.98 | K183: 438.75 | L183: 427.5 | M183: 48.49697
A184: 175 | B184: SUNTV | C184: 587.05 | D184: 587.75 | E184: 580.90 | F184: 574.75 | G184: 567.90 | H184: 593.90 | I184: 600.75 | J184: 606.90 | K184: 594.6 | L184: 581.6 | M184: 19.82254
A185: 176 | B185: SUZLON | C185: 5.65 | D185: 5.60 | E185: 5.15 | F185: 4.65 | G185: 4.20 | H185: 6.10 | I185: 6.55 | J185: 7.05 | K185: 6.05 | L185: 5.1 | M185: 1949.8741
A186: 177 | B186: SYNDIBANK | C186: 33.1 | D186: 33.30 | E186: 32.80 | F186: 32.50 | G186: 32.00 | H186: 33.60 | I186: 34.10 | J186: 34.40 | K186: 33.8 | L186: 33 | M186: 23.94555
A187: 178 | B187: SYNGENE | C187: 586.25 | D187: 591.02 | E187: 578.88 | F187: 571.52 | G187: 559.38 | H187: 598.38 | I187: 610.52 | J187: 617.88 | K187: 603.15 | L187: 583.65 | M187: 0.21356
A188: 179 | B188: TV18BRDCST | C188: 33.3 | D188: 33.23 | E188: 32.97 | F188: 32.63 | G188: 32.37 | H188: 33.57 | I188: 33.83 | J188: 34.17 | K188: 33.5 | L188: 32.9 | M188: 16.95216
A189: 180 | B189: TVSMOTOR | C189: 462.85 | D189: 467.47 | E189: 456.53 | F189: 450.22 | G189: 439.28 | H189: 473.78 | I189: 484.72 | J189: 491.03 | K189: 478.4 | L189: 461.15 | M189: 15.33842
A190: 181 | B190: TATACHEM | C190: 566.55 | D190: 566.25 | E190: 562.35 | F190: 558.15 | G190: 554.25 | H190: 570.45 | I190: 574.35 | J190: 578.55 | K190: 570.15 | L190: 562.05 | M190: 5.68359
A191: 182 | B191: TATACOMM | C191: 552.05 | D191: 545.20 | E191: 534.55 | F191: 517.05 | G191: 506.40 | H191: 562.70 | I191: 573.35 | J191: 590.85 | K191: 555.85 | L191: 527.7 | M191: 7.60753
A192: 183 | B192: TCS | C192: 1985.15 | D192: 1968.55 | E192: 1947.10 | F192: 1909.05 | G192: 1887.60 | H192: 2006.60 | I192: 2028.05 | J192: 2066.10 | K192: 1990 | L192: 1930.5 | M192: 29.3488
A193: 184 | B193: TATAGLOBAL | C193: 191.1 | D193: 190.95 | E193: 188.70 | F193: 186.30 | G193: 184.05 | H193: 193.35 | I193: 195.60 | J193: 198.00 | K193: 193.2 | L193: 188.55 | M193: 13.73833
A194: 185 | B194: TATAMTRDVR | C194: 89.65 | D194: 89.63 | E194: 88.62 | F194: 87.58 | G194: 86.57 | H194: 90.67 | I194: 91.68 | J194: 92.72 | K194: 90.65 | L194: 88.6 | M194: 25.69945
A195: 186 | B195: TATAMOTORS | C195: 175.75 | D195: 175.58 | E195: 173.67 | F195: 171.58 | G195: 169.67 | H195: 177.67 | I195: 179.58 | J195: 181.67 | K195: 177.5 | L195: 173.5 | M195: 155.54532
A196: 187 | B196: TATAPOWER | C196: 66.55 | D196: 66.80 | E196: 66.15 | F196: 65.75 | G196: 65.10 | H196: 67.20 | I196: 67.85 | J196: 68.25 | K196: 67.45 | L196: 66.4 | M196: 31.61336
A197: 188 | B197: TATASTEEL | C197: 505.1 | D197: 504.28 | E197: 499.07 | F197: 493.03 | G197: 487.82 | H197: 510.32 | I197: 515.53 | J197: 521.57 | K197: 509.5 | L197: 498.25 | M197: 103.57604
A198: 189 | B198: TECHM | C198: 830.65 | D198: 828.68 | E198: 824.47 | F198: 818.28 | G198: 814.07 | H198: 834.87 | I198: 839.08 | J198: 845.27 | K198: 832.9 | L198: 822.5 | M198: 28.81535
A199: 190 | B199: RAMCOCEM | C199: 645.35 | D199: 641.12 | E199: 629.18 | F199: 613.02 | G199: 601.08 | H199: 657.28 | I199: 669.22 | J199: 685.38 | K199: 653.05 | L199: 624.95 | M199: 3.98858
A200: 191 | B200: TITAN | C200: 1043 | D200: 1044.53 | E200: 1034.07 | F200: 1025.13 | G200: 1014.67 | H200: 1053.47 | I200: 1063.93 | J200: 1072.87 | K200: 1055 | L200: 1035.6 | M200: 16.91809
A201: 192 | B201: TORNTPHARM | C201: 1805.6 | D201: 1797.53 | E201: 1774.07 | F201: 1742.53 | G201: 1719.07 | H201: 1829.07 | I201: 1852.53 | J201: 1884.07 | K201: 1821 | L201: 1766 | M201: 2.00602
A202: 193 | B202: TORNTPOWER | C202: 240.55 | D202: 238.62 | E202: 232.13 | F202: 223.72 | G202: 217.23 | H202: 247.03 | I202: 253.52 | J202: 261.93 | K202: 245.1 | L202: 230.2 | M202: 22.13736
A203: 194 | B203: UPL | C203: 847.65 | D203: 842.52 | E203: 833.13 | F203: 818.62 | G203: 809.23 | H203: 857.03 | I203: 866.42 | J203: 880.93 | K203: 851.9 | L203: 828 | M203: 36.85601
A204: 195 | B204: ULTRACEMCO | C204: 3716.6 | D204: 3686.02 | E204: 3647.58 | F204: 3578.57 | G204: 3540.13 | H204: 3755.03 | I204: 3793.47 | J204: 3862.48 | K204: 3724.45 | L204: 3617 | M204: 4.45514
A205: 196 | B205: UNIONBANK | C205: 71.25 | D205: 71.18 | E205: 70.72 | F205: 70.18 | G205: 69.72 | H205: 71.72 | I205: 72.18 | J205: 72.72 | K205: 71.65 | L205: 70.65 | M205: 40.46656
... 29 more rows

Sheet MidCap Intra
L5: Back To Main Page
A6: FOR INTRA DAY TRADING | K6: =Main!B10 -> 2019-02-26
A9: Sr.no | B9: Scrip | C9: CLOSE RATE | D9: Pivot Point | E9: Supports | H9: Resistances
C10: Point | E10: S1 | F10: S2 | G10: S3 | H10: R1 | I10: R2 | J10: R3 | K10: HIGH | L10: LOW | M10: Total Trade Quanity in Lakhs
A11: 1 | B11: 3MINDIA | C11: 23648.35 | D11: 23789.30 | E11: 23078.60 | F11: 22508.85 | G11: 21798.15 | H11: 24359.05 | I11: 25069.75 | J11: 25639.50 | K11: 24500 | L11: 23219.55 | M11: 0.04558
A12: 2 | B12: 8KMILES | C12: 109.8 | D12: 110.83 | E12: 108.17 | F12: 106.53 | G12: 103.87 | H12: 112.47 | I12: 115.13 | J12: 116.77 | K12: 113.5 | L12: 109.2 | M12: 1.30176
A13: 3 | B13: AARTIIND | C13: 1413.4 | D13: 1414.47 | E13: 1398.93 | F13: 1384.47 | G13: 1368.93 | H13: 1428.93 | I13: 1444.47 | J13: 1458.93 | K13: 1430 | L13: 1400 | M13: 0.66086
A14: 4 | B14: ABAN | C14: 54.5 | D14: 54.43 | E14: 53.57 | F14: 52.63 | G14: 51.77 | H14: 55.37 | I14: 56.23 | J14: 57.17 | K14: 55.3 | L14: 53.5 | M14: 4.88704
A15: 5 | B15: ABB | C15: 1246.55 | D15: 1251.68 | E15: 1238.87 | F15: 1231.18 | G15: 1218.37 | H15: 1259.37 | I15: 1272.18 | J15: 1279.87 | K15: 1264.5 | L15: 1244 | M15: 0.33418
A16: 6 | B16: ABCAPITAL | C16: 88.7 | D16: 88.67 | E16: 87.53 | F16: 86.37 | G16: 85.23 | H16: 89.83 | I16: 90.97 | J16: 92.13 | K16: 89.8 | L16: 87.5 | M16: 38.64761
A17: 7 | B17: ABFRL | C17: 225.8 | D17: 224.35 | E17: 219.00 | F17: 212.20 | G17: 206.85 | H17: 231.15 | I17: 236.50 | J17: 243.30 | K17: 229.7 | L17: 217.55 | M17: 5.79619
A18: 8 | B18: ACC | C18: 1376.15 | D18: 1379.12 | E18: 1365.43 | F18: 1354.72 | G18: 1341.03 | H18: 1389.83 | I18: 1403.52 | J18: 1414.23 | K18: 1392.8 | L18: 1368.4 | M18: 7.51219
A19: 9 | B19: ADANIPORTS | C19: 324.55 | D19: 328.23 | E19: 316.92 | F19: 309.28 | G19: 297.97 | H19: 335.87 | I19: 347.18 | J19: 354.82 | K19: 339.55 | L19: 320.6 | M19: 217.95407
A20: 10 | B20: ADANIPOWER | C20: 40.45 | D20: 39.27 | E20: 37.53 | F20: 34.62 | G20: 32.88 | H20: 42.18 | I20: 43.92 | J20: 46.83 | K20: 41 | L20: 36.35 | M20: 178.35657
A21: 11 | B21: ADANITRANS | C21: 210.3 | D21: 211.80 | E21: 207.25 | F21: 204.20 | G21: 199.65 | H21: 214.85 | I21: 219.40 | J21: 222.45 | K21: 216.35 | L21: 208.75 | M21: 1.04497
A22: 12 | B22: ADVENZYMES | C22: 151.9 | D22: 152.33 | E22: 150.77 | F22: 149.63 | G22: 148.07 | H22: 153.47 | I22: 155.03 | J22: 156.17 | K22: 153.9 | L22: 151.2 | M22: 4.79896
A23: 13 | B23: AEGISCHEM | C23: 199.45 | D23: 198.98 | E23: 197.97 | F23: 196.48 | G23: 195.47 | H23: 200.47 | I23: 201.48 | J23: 202.97 | K23: 200 | L23: 197.5 | M23: 1.1618
A24: 14 | B24: AIAENG | C24: 1680.15 | D24: 1690.55 | E24: 1657.25 | F24: 1634.35 | G24: 1601.05 | H24: 1713.45 | I24: 1746.75 | J24: 1769.65 | K24: 1723.85 | L24: 1667.65 | M24: 0.07326
A25: 15 | B25: AJANTPHARM | C25: 972.1 | D25: 975.70 | E25: 961.40 | F25: 950.70 | G25: 936.40 | H25: 986.40 | I25: 1000.70 | J25: 1011.40 | K25: 990 | L25: 965 | M25: 3.41286
A26: 16 | B26: AKZOINDIA | C26: 1690.65 | D26: 1704.50 | E26: 1669.15 | F26: 1647.65 | G26: 1612.30 | H26: 1726.00 | I26: 1761.35 | J26: 1782.85 | K26: 1739.85 | L26: 1683 | M26: 0.02458
A27: 17 | B27: ALBK | C27: 45.05 | D27: 45.20 | E27: 44.55 | F27: 44.05 | G27: 43.40 | H27: 45.70 | I27: 46.35 | J27: 46.85 | K27: 45.85 | L27: 44.7 | M27: 46.92895
A28: 18 | B28: ALKEM | C28: 1779.4 | D28: 1787.18 | E28: 1753.32 | F28: 1727.23 | G28: 1693.37 | H28: 1813.27 | I28: 1847.13 | J28: 1873.22 | K28: 1821.05 | L28: 1761.1 | M28: 1.19469
A29: 19 | B29: ALLCARGO | C29: 100.4 | D29: 101.33 | E29: 99.17 | F29: 97.93 | G29: 95.77 | H29: 102.57 | I29: 104.73 | J29: 105.97 | K29: 103.5 | L29: 100.1 | M29: 1.06994
A30: 20 | B30: AMARAJABAT | C30: 732.1 | D30: 738.43 | E30: 722.47 | F30: 712.83 | G30: 696.87 | H30: 748.07 | I30: 764.03 | J30: 773.67 | K30: 754.4 | L30: 728.8 | M30: 2.64694
A31: 21 | B31: AMBUJACEM | C31: 210.1 | D31: 210.52 | E31: 208.58 | F31: 207.07 | G31: 205.13 | H31: 212.03 | I31: 213.97 | J31: 215.48 | K31: 212.45 | L31: 209 | M31: 13.23218
A32: 22 | B32: ANDHRABANK | C32: 25.05 | D32: 25.12 | E32: 24.93 | F32: 24.82 | G32: 24.63 | H32: 25.23 | I32: 25.42 | J32: 25.53 | K32: 25.3 | L32: 25 | M32: 3.58538
A33: 23 | B33: APLAPOLLO | C33: 1174.65 | D33: 1174.88 | E33: 1159.77 | F33: 1144.88 | G33: 1129.77 | H33: 1189.77 | I33: 1204.88 | J33: 1219.77 | K33: 1190 | L33: 1160 | M33: 0.15247
A34: 24 | B34: APLLTD | C34: 539.6 | D34: 534.88 | E34: 525.77 | F34: 511.93 | G34: 502.82 | H34: 548.72 | I34: 557.83 | J34: 571.67 | K34: 544 | L34: 521.05 | M34: 0.23986
A35: 25 | B35: APOLLOHOSP | C35: 1187.45 | D35: 1172.28 | E35: 1146.57 | F35: 1105.68 | G35: 1079.97 | H35: 1213.17 | I35: 1238.88 | J35: 1279.77 | K35: 1198 | L35: 1131.4 | M35: 13.74338
A36: 26 | B36: APOLLOTYRE | C36: 211.25 | D36: 211.97 | E36: 209.53 | F36: 207.82 | G36: 205.38 | H36: 213.68 | I36: 216.12 | J36: 217.83 | K36: 214.4 | L36: 210.25 | M36: 24.45738
A37: 27 | B37: ARVIND | C37: 75.55 | D37: 75.33 | E37: 74.52 | F37: 73.48 | G37: 72.67 | H37: 76.37 | I37: 77.18 | J37: 78.22 | K37: 76.15 | L37: 74.3 | M37: 17.20378
A38: 28 | B38: ASAHIINDIA | C38: 251.6 | D38: 252.02 | E38: 249.68 | F38: 247.77 | G38: 245.43 | H38: 253.93 | I38: 256.27 | J38: 258.18 | K38: 254.35 | L38: 250.1 | M38: 0.04739
A39: 29 | B39: ASHOKA | C39: 119.05 | D39: 120.18 | E39: 116.37 | F39: 113.68 | G39: 109.87 | H39: 122.87 | I39: 126.68 | J39: 129.37 | K39: 124 | L39: 117.5 | M39: 1.08976
A40: 30 | B40: ASHOKLEY | C40: 83.25 | D40: 82.83 | E40: 82.17 | F40: 81.08 | G40: 80.42 | H40: 83.92 | I40: 84.58 | J40: 85.67 | K40: 83.5 | L40: 81.75 | M40: 172.73781
A41: 31 | B41: ASIANPAINT | C41: 1398.25 | D41: 1398.47 | E41: 1391.13 | F41: 1384.02 | G41: 1376.68 | H41: 1405.58 | I41: 1412.92 | J41: 1420.03 | K41: 1405.8 | L41: 1391.35 | M41: 7.11217
A42: 32 | B42: ASTRAL | C42: 1099.9 | D42: 1103.48 | E42: 1086.97 | F42: 1074.03 | G42: 1057.52 | H42: 1116.42 | I42: 1132.93 | J42: 1145.87 | K42: 1120 | L42: 1090.55 | M42: 0.26683
A43: 33 | B43: ATUL | C43: 3331.35 | D43: 3347.12 | E43: 3314.23 | F43: 3297.12 | G43: 3264.23 | H43: 3364.23 | I43: 3397.12 | J43: 3414.23 | K43: 3380 | L43: 3330 | M43: 0.03337
A44: 34 | B44: AUBANK | C44: 573.65 | D44: 573.78 | E44: 569.87 | F44: 566.08 | G44: 562.17 | H44: 577.57 | I44: 581.48 | J44: 585.27 | K44: 577.7 | L44: 570 | M44: 0.38197
A45: 35 | B45: AUROPHARMA | C45: 708.85 | D45: 717.45 | E45: 696.40 | F45: 683.95 | G45: 662.90 | H45: 729.90 | I45: 750.95 | J45: 763.40 | K45: 738.5 | L45: 705 | M45: 52.73045
A46: 36 | B46: AVANTIFEED | C46: 346.6 | D46: 346.07 | E46: 340.13 | F46: 333.67 | G46: 327.73 | H46: 352.53 | I46: 358.47 | J46: 364.93 | K46: 352 | L46: 339.6 | M46: 2.7986
A47: 37 | B47: AXISBANK | C47: 703.7 | D47: 701.87 | E47: 697.93 | F47: 692.17 | G47: 688.23 | H47: 707.63 | I47: 711.57 | J47: 717.33 | K47: 705.8 | L47: 696.1 | M47: 114.28024
A48: 38 | B48: BAJAJ-AUTO | C48: 2847.55 | D48: 2839.72 | E48: 2824.73 | F48: 2801.92 | G48: 2786.93 | H48: 2862.53 | I48: 2877.52 | J48: 2900.33 | K48: 2854.7 | L48: 2816.9 | M48: 3.22524
A49: 39 | B49: BAJAJCON | C49: 348.8 | D49: 351.02 | E49: 345.38 | F49: 341.97 | G49: 336.33 | H49: 354.43 | I49: 360.07 | J49: 363.48 | K49: 356.65 | L49: 347.6 | M49: 0.12718
A50: 40 | B50: BAJAJELEC | C50: 462.6 | D50: 464.20 | E50: 458.40 | F50: 454.20 | G50: 448.40 | H50: 468.40 | I50: 474.20 | J50: 478.40 | K50: 470 | L50: 460 | M50: 2.07679
A51: 41 | B51: BAJAJFINSV | C51: 6333.55 | D51: 6301.62 | E51: 6211.93 | F51: 6090.32 | G51: 6000.63 | H51: 6423.23 | I51: 6512.92 | J51: 6634.53 | K51: 6391.3 | L51: 6180 | M51: 2.3217
A52: 42 | B52: BAJAJHIND | C52: 8.8 | D52: 8.68 | E52: 8.27 | F52: 7.73 | G52: 7.32 | H52: 9.22 | I52: 9.63 | J52: 10.17 | K52: 9.1 | L52: 8.15 | M52: 72.82216
A53: 43 | B53: BAJAJHLDNG | C53: 3135.95 | D53: 3144.00 | E53: 3092.95 | F53: 3049.95 | G53: 2998.90 | H53: 3187.00 | I53: 3238.05 | J53: 3281.05 | K53: 3195.05 | L53: 3101 | M53: 0.2597
A54: 44 | B54: BAJFINANCE | C54: 2657.75 | D54: 2648.83 | E54: 2622.67 | F54: 2587.58 | G54: 2561.42 | H54: 2683.92 | I54: 2710.08 | J54: 2745.17 | K54: 2675 | L54: 2613.75 | M54: 10.2404
A55: 45 | B55: BALKRISIND | C55: 873.05 | D55: 866.18 | E55: 854.97 | F55: 836.88 | G55: 825.67 | H55: 884.27 | I55: 895.48 | J55: 913.57 | K55: 877.4 | L55: 848.1 | M55: 13.03253
A56: 46 | B56: BALLARPUR | C56: 3.55 | D56: 3.62 | E56: 3.43 | F56: 3.32 | G56: 3.13 | H56: 3.73 | I56: 3.92 | J56: 4.03 | K56: 3.8 | L56: 3.5 | M56: 6.85013
A57: 47 | B57: BALMLAWRIE | C57: 175.9 | D57: 175.22 | E57: 172.63 | F57: 169.37 | G57: 166.78 | H57: 178.48 | I57: 181.07 | J57: 184.33 | K57: 177.8 | L57: 171.95 | M57: 0.24288
A58: 48 | B58: BALRAMCHIN | C58: 130.15 | D58: 130.17 | E58: 125.98 | F58: 121.82 | G58: 117.63 | H58: 134.33 | I58: 138.52 | J58: 142.68 | K58: 134.35 | L58: 126 | M58: 82.45721
A59: 49 | B59: BANKBARODA | C59: 102.9 | D59: 103.05 | E59: 102.35 | F59: 101.80 | G59: 101.10 | H59: 103.60 | I59: 104.30 | J59: 104.85 | K59: 103.75 | L59: 102.5 | M59: 109.77553
A60: 50 | B60: BANKINDIA | C60: 82.9 | D60: 82.82 | E60: 82.03 | F60: 81.17 | G60: 80.38 | H60: 83.68 | I60: 84.47 | J60: 85.33 | K60: 83.6 | L60: 81.95 | M60: 55.86375
A61: 51 | B61: BASF | C61: 1305.7 | D61: 1311.93 | E61: 1283.87 | F61: 1262.03 | G61: 1233.97 | H61: 1333.77 | I61: 1361.83 | J61: 1383.67 | K61: 1340 | L61: 1290.1 | M61: 0.06122
A62: 52 | B62: BATAINDIA | C62: 1311.5 | D62: 1314.22 | E62: 1298.53 | F62: 1285.57 | G62: 1269.88 | H62: 1327.18 | I62: 1342.87 | J62: 1355.83 | K62: 1329.9 | L62: 1301.25 | M62: 16.60247
A63: 53 | B63: BBTC | C63: 1241.15 | D63: 1230.98 | E63: 1214.17 | F63: 1187.18 | G63: 1170.37 | H63: 1257.97 | I63: 1274.78 | J63: 1301.77 | K63: 1247.8 | L63: 1204 | M63: 1.66505
A64: 54 | B64: BEL | C64: 80.9 | D64: 79.77 | E64: 78.23 | F64: 75.57 | G64: 74.03 | H64: 82.43 | I64: 83.97 | J64: 86.63 | K64: 81.3 | L64: 77.1 | M64: 220.0938
A65: 55 | B65: BEML | C65: 824.75 | D65: 825.85 | E65: 816.00 | F65: 807.25 | G65: 797.40 | H65: 834.60 | I65: 844.45 | J65: 853.20 | K65: 835.7 | L65: 817.1 | M65: 24.65765
A66: 56 | B66: BERGEPAINT | C66: 295.55 | D66: 297.25 | E66: 289.45 | F66: 283.35 | G66: 275.55 | H66: 303.35 | I66: 311.15 | J66: 317.25 | K66: 305.05 | L66: 291.15 | M66: 5.85369
A67: 57 | B67: BFUTILITIE | C67: 180.5 | D67: 181.22 | E67: 173.93 | F67: 167.37 | G67: 160.08 | H67: 187.78 | I67: 195.07 | J67: 201.63 | K67: 188.5 | L67: 174.65 | M67: 15.14496
A68: 58 | B68: BGRENERGY | C68: 50.4 | D68: 50.62 | E68: 49.03 | F68: 47.67 | G68: 46.08 | H68: 51.98 | I68: 53.57 | J68: 54.93 | K68: 52.2 | L68: 49.25 | M68: 1.12037
A69: 59 | B69: BHARATFIN | C69: 938.1 | D69: 933.17 | E69: 925.03 | F69: 911.97 | G69: 903.83 | H69: 946.23 | I69: 954.37 | J69: 967.43 | K69: 941.3 | L69: 920.1 | M69: 1.47841
A70: 60 | B70: BHARATFORG | C70: 494.55 | D70: 492.38 | E70: 488.52 | F70: 482.48 | G70: 478.62 | H70: 498.42 | I70: 502.28 | J70: 508.32 | K70: 496.25 | L70: 486.35 | M70: 17.46291
A71: 61 | B71: BHARTIARTL | C71: 317.25 | D71: 316.28 | E71: 312.57 | F71: 307.88 | G71: 304.17 | H71: 320.97 | I71: 324.68 | J71: 329.37 | K71: 320 | L71: 311.6 | M71: 37.44506
A72: 62 | B72: BHEL | C72: 64.35 | D72: 64.08 | E72: 63.37 | F72: 62.38 | G72: 61.67 | H72: 65.07 | I72: 65.78 | J72: 66.77 | K72: 64.8 | L72: 63.1 | M72: 40.15688
A73: 63 | B73: BIOCON | C73: 617.85 | D73: 618.92 | E73: 614.48 | F73: 611.12 | G73: 606.68 | H73: 622.28 | I73: 626.72 | J73: 630.08 | K73: 623.35 | L73: 615.55 | M73: 4.97127
A74: 64 | B74: BIRLACORPN | C74: 467.05 | D74: 467.02 | E74: 457.53 | F74: 448.02 | G74: 438.53 | H74: 476.53 | I74: 486.02 | J74: 495.53 | K74: 476.5 | L74: 457.5 | M74: 1.31386
A75: 65 | B75: BLISSGVS | C75: 180.3 | D75: 179.93 | E75: 177.37 | F75: 174.43 | G75: 171.87 | H75: 182.87 | I75: 185.43 | J75: 188.37 | K75: 182.5 | L75: 177 | M75: 11.98814
A76: 66 | B76: BLUEDART | C76: 3061.3 | D76: 3086.18 | E76: 3016.12 | F76: 2970.93 | G76: 2900.87 | H76: 3131.37 | I76: 3201.43 | J76: 3246.62 | K76: 3156.25 | L76: 3041 | M76: 0.01936
A77: 67 | B77: BLUESTARCO | C77: 609.7 | D77: 607.25 | E77: 602.50 | F77: 595.30 | G77: 590.55 | H77: 614.45 | I77: 619.20 | J77: 626.40 | K77: 612 | L77: 600.05 | M77: 1.9763
A78: 68 | B78: BOMDYEING | C78: 113.85 | D78: 115.00 | E78: 112.20 | F78: 110.55 | G78: 107.75 | H78: 116.65 | I78: 119.45 | J78: 121.10 | K78: 117.8 | L78: 113.35 | M78: 9.09533
A79: 69 | B79: BOSCHLTD | C79: 18340.65 | D79: 18283.92 | E79: 18156.83 | F79: 17973.02 | G79: 17845.93 | H79: 18467.73 | I79: 18594.82 | J79: 18778.63 | K79: 18411 | L79: 18100.1 | M79: 0.21822
A80: 70 | B80: BPCL | C80: 336.05 | D80: 338.52 | E80: 331.78 | F80: 327.52 | G80: 320.78 | H80: 342.78 | I80: 349.52 | J80: 353.78 | K80: 345.25 | L80: 334.25 | M80: 70.15596
A81: 71 | B81: BRFL | C81: 9.25 | D81: 8.98 | E81: 8.72 | F81: 8.18 | G81: 7.92 | H81: 9.52 | I81: 9.78 | J81: 10.32 | K81: 9.25 | L81: 8.45 | M81: 1.53872
A82: 72 | B82: BRIGADE | C82: 200.15 | D82: 203.10 | E82: 194.50 | F82: 188.85 | G82: 180.25 | H82: 208.75 | I82: 217.35 | J82: 223.00 | K82: 211.7 | L82: 197.45 | M82: 2.24207
A83: 73 | B83: BRITANNIA | C83: 3048.2 | D83: 3035.73 | E83: 2994.47 | F83: 2940.73 | G83: 2899.47 | H83: 3089.47 | I83: 3130.73 | J83: 3184.47 | K83: 3077 | L83: 2982 | M83: 3.36072
A84: 74 | B84: BSE | C84: 576.3 | D84: 575.27 | E84: 567.08 | F84: 557.87 | G84: 549.68 | H84: 584.48 | I84: 592.67 | J84: 601.88 | K84: 583.45 | L84: 566.05 | M84: 0.99402
A85: 75 | B85: CADILAHC | C85: 313.75 | D85: 314.80 | E85: 312.00 | F85: 310.25 | G85: 307.45 | H85: 316.55 | I85: 319.35 | J85: 321.10 | K85: 317.6 | L85: 313.05 | M85: 6.81427
A86: 77 | B86: CANBK | C86: 222.8 | D86: 222.67 | E86: 221.53 | F86: 220.27 | G86: 219.13 | H86: 223.93 | I86: 225.07 | J86: 226.33 | K86: 223.8 | L86: 221.4 | M86: 23.18426
A87: 78 | B87: CANFINHOME | C87: 267.95 | D87: 271.25 | E87: 263.25 | F87: 258.55 | G87: 250.55 | H87: 275.95 | I87: 283.95 | J87: 288.65 | K87: 279.25 | L87: 266.55 | M87: 18.54471
A88: 79 | B88: CAPLIPOINT | C88: 388.75 | D88: 385.03 | E88: 360.17 | F88: 331.58 | G88: 306.72 | H88: 413.62 | I88: 438.48 | J88: 467.07 | K88: 409.9 | L88: 356.45 | M88: 3.2946
A89: 80 | B89: CARBORUNIV | C89: 345.65 | D89: 345.65 | E89: 343.30 | F89: 340.95 | G89: 338.60 | H89: 348.00 | I89: 350.35 | J89: 352.70 | K89: 348 | L89: 343.3 | M89: 0.11693
A90: 81 | B90: CARERATING | C90: 959.95 | D90: 960.02 | E90: 951.43 | F90: 942.92 | G90: 934.33 | H90: 968.53 | I90: 977.12 | J90: 985.63 | K90: 968.6 | L90: 951.5 | M90: 0.50241
A91: 82 | B91: CASTROLIND | C91: 152.65 | D91: 153.92 | E91: 150.93 | F91: 149.22 | G91: 146.23 | H91: 155.63 | I91: 158.62 | J91: 160.33 | K91: 156.9 | L91: 152.2 | M91: 10.32035
A92: 83 | B92: CCL | C92: 282.45 | D92: 281.28 | E92: 278.22 | F92: 273.98 | G92: 270.92 | H92: 285.52 | I92: 288.58 | J92: 292.82 | K92: 284.35 | L92: 277.05 | M92: 0.20358
A93: 84 | B93: CDSL | C93: 218.3 | D93: 218.72 | E93: 209.83 | F93: 201.37 | G93: 192.48 | H93: 227.18 | I93: 236.07 | J93: 244.53 | K93: 227.6 | L93: 210.25 | M93: 6.75142
A94: 85 | B94: CEATLTD | C94: 1078.3 | D94: 1074.10 | E94: 1064.20 | F94: 1050.10 | G94: 1040.20 | H94: 1088.20 | I94: 1098.10 | J94: 1112.20 | K94: 1084 | L94: 1060 | M94: 4.07112
A95: 86 | B95: CENTRALBK | C95: 31.65 | D95: 31.80 | E95: 31.25 | F95: 30.85 | G95: 30.30 | H95: 32.20 | I95: 32.75 | J95: 33.15 | K95: 32.35 | L95: 31.4 | M95: 3.05042
A96: 87 | B96: CENTURYPLY | C96: 165.8 | D96: 164.90 | E96: 162.45 | F96: 159.10 | G96: 156.65 | H96: 168.25 | I96: 170.70 | J96: 174.05 | K96: 167.35 | L96: 161.55 | M96: 1.11887
A97: 88 | B97: CENTURYTEX | C97: 794.1 | D97: 790.77 | E97: 783.93 | F97: 773.77 | G97: 766.93 | H97: 800.93 | I97: 807.77 | J97: 817.93 | K97: 797.6 | L97: 780.6 | M97: 4.46984
A98: 89 | B98: CERA | C98: 2316.5 | D98: 2287.17 | E98: 2239.33 | F98: 2162.17 | G98: 2114.33 | H98: 2364.33 | I98: 2412.17 | J98: 2489.33 | K98: 2335 | L98: 2210 | M98: 0.50553
A99: 90 | B99: CGPOWER | C99: 31.5 | D99: 31.38 | E99: 30.87 | F99: 30.23 | G99: 29.72 | H99: 32.02 | I99: 32.53 | J99: 33.17 | K99: 31.9 | L99: 30.75 | M99: 87.23031
A100: 91 | B100: CHAMBLFERT | C100: 159.35 | D100: 159.78 | E100: 157.67 | F100: 155.98 | G100: 153.87 | H100: 161.47 | I100: 163.58 | J100: 165.27 | K100: 161.9 | L100: 158.1 | M100: 5.62874
A101: 92 | B101: CHENNPETRO | C101: 219.75 | D101: 218.53 | E101: 215.22 | F101: 210.68 | G101: 207.37 | H101: 223.07 | I101: 226.38 | J101: 230.92 | K101: 221.85 | L101: 214 | M101: 7.77574
A102: 93 | B102: CHOLAFIN | C102: 1196.6 | D102: 1197.12 | E102: 1184.83 | F102: 1173.07 | G102: 1160.78 | H102: 1208.88 | I102: 1221.17 | J102: 1232.93 | K102: 1209.4 | L102: 1185.35 | M102: 2.62878
A103: 94 | B103: CIPLA | C103: 548.3 | D103: 546.72 | E103: 542.58 | F103: 536.87 | G103: 532.73 | H103: 552.43 | I103: 556.57 | J103: 562.28 | K103: 550.85 | L103: 541 | M103: 19.61905
A104: 95 | B104: COALINDIA | C104: 214.35 | D104: 214.58 | E104: 212.47 | F104: 210.58 | G104: 208.47 | H104: 216.47 | I104: 218.58 | J104: 220.47 | K104: 216.7 | L104: 212.7 | M104: 93.86982
A105: 96 | B105: COCHINSHIP | C105: 349.1 | D105: 348.03 | E105: 345.07 | F105: 341.03 | G105: 338.07 | H105: 352.07 | I105: 355.03 | J105: 359.07 | K105: 351 | L105: 344 | M105: 0.37597
A106: 97 | B106: COFFEEDAY | C106: 280.85 | D106: 280.27 | E106: 277.58 | F106: 274.32 | G106: 271.63 | H106: 283.53 | I106: 286.22 | J106: 289.48 | K106: 282.95 | L106: 277 | M106: 0.80784
A107: 98 | B107: COLPAL | C107: 1264.05 | D107: 1269.83 | E107: 1253.17 | F107: 1242.28 | G107: 1225.62 | H107: 1280.72 | I107: 1297.38 | J107: 1308.27 | K107: 1286.5 | L107: 1258.95 | M107: 6.03992
A108: 99 | B108: CONCOR | C108: 474.5 | D108: 477.70 | E108: 467.90 | F108: 461.30 | G108: 451.50 | H108: 484.30 | I108: 494.10 | J108: 500.70 | K108: 487.5 | L108: 471.1 | M108: 12.32554
A109: 100 | B109: COROMANDEL | C109: 441.45 | D109: 443.10 | E109: 438.00 | F109: 434.55 | G109: 429.45 | H109: 446.55 | I109: 451.65 | J109: 455.10 | K109: 448.2 | L109: 439.65 | M109: 1.48941
A110: 101 | B110: COX&KINGS | C110: 141.35 | D110: 141.98 | E110: 140.12 | F110: 138.88 | G110: 137.02 | H110: 143.22 | I110: 145.08 | J110: 146.32 | K110: 143.85 | L110: 140.75 | M110: 0.4403
A111: 102 | B111: CRISIL | C111: 1531.65 | D111: 1535.35 | E111: 1520.30 | F111: 1508.95 | G111: 1493.90 | H111: 1546.70 | I111: 1561.75 | J111: 1573.10 | K111: 1550.4 | L111: 1524 | M111: 0.08545
A112: 103 | B112: CROMPTON | C112: 211.15 | D112: 211.82 | E112: 208.88 | F112: 206.62 | G112: 203.68 | H112: 214.08 | I112: 217.02 | J112: 219.28 | K112: 214.75 | L112: 209.55 | M112: 1.84603
A113: 104 | B113: CUB | C113: 177.1 | D113: 177.45 | E113: 175.15 | F113: 173.20 | G113: 170.90 | H113: 179.40 | I113: 181.70 | J113: 183.65 | K113: 179.75 | L113: 175.5 | M113: 4.13347
A114: 105 | B114: CUMMINSIND | C114: 701.15 | D114: 700.05 | E114: 691.10 | F114: 681.05 | G114: 672.10 | H114: 710.10 | I114: 719.05 | J114: 729.10 | K114: 709 | L114: 690 | M114: 4.52682
A115: 106 | B115: CYIENT | C115: 621.35 | D115: 616.73 | E115: 609.22 | F115: 597.08 | G115: 589.57 | H115: 628.87 | I115: 636.38 | J115: 648.52 | K115: 624.25 | L115: 604.6 | M115: 2.46061
A116: 107 | B116: DABUR | C116: 431.9 | D116: 433.83 | E116: 427.82 | F116: 423.73 | G116: 417.72 | H116: 437.92 | I116: 443.93 | J116: 448.02 | K116: 439.85 | L116: 429.75 | M116: 16.30382
A117: 108 | B117: DBCORP | C117: 179 | D117: 179.35 | E117: 177.70 | F117: 176.40 | G117: 174.75 | H117: 180.65 | I117: 182.30 | J117: 183.60 | K117: 181 | L117: 178.05 | M117: 0.26383
A118: 109 | B118: DBL | C118: 433.25 | D118: 437.33 | E118: 426.17 | F118: 419.08 | G118: 407.92 | H118: 444.42 | I118: 455.58 | J118: 462.67 | K118: 448.5 | L118: 430.25 | M118: 3.13799
A119: 110 | B119: DBREALTY | C119: 21.85 | D119: 22.32 | E119: 21.18 | F119: 20.52 | G119: 19.38 | H119: 22.98 | I119: 24.12 | J119: 24.78 | K119: 23.45 | L119: 21.65 | M119: 3.82248
A120: 111 | B120: DCAL | C120: 184.75 | D120: 186.52 | E120: 181.03 | F120: 177.32 | G120: 171.83 | H120: 190.23 | I120: 195.72 | J120: 199.43 | K120: 192 | L120: 182.8 | M120: 0.78589
A121: 112 | B121: DCBBANK | C121: 182.65 | D121: 180.17 | E121: 175.33 | F121: 168.02 | G121: 163.18 | H121: 187.48 | I121: 192.32 | J121: 199.63 | K121: 185 | L121: 172.85 | M121: 32.55502
A122: 113 | B122: DCMSHRIRAM | C122: 393.95 | D122: 386.35 | E122: 374.10 | F122: 354.25 | G122: 342.00 | H122: 406.20 | I122: 418.45 | J122: 438.30 | K122: 398.6 | L122: 366.5 | M122: 4.23697
A123: 114 | B123: DEEPAKFERT | C123: 131 | D123: 131.08 | E123: 128.72 | F123: 126.43 | G123: 124.07 | H123: 133.37 | I123: 135.73 | J123: 138.02 | K123: 133.45 | L123: 128.8 | M123: 1.93006
A124: 115 | B124: DELTACORP | C124: 240.2 | D124: 237.58 | E124: 233.67 | F124: 227.13 | G124: 223.22 | H124: 244.12 | I124: 248.03 | J124: 254.57 | K124: 241.5 | L124: 231.05 | M124: 11.91242
A125: 116 | B125: DEN | C125: 68.1 | D125: 68.65 | E125: 65.30 | F125: 62.50 | G125: 59.15 | H125: 71.45 | I125: 74.80 | J125: 77.60 | K125: 72 | L125: 65.85 | M125: 1.19459
A126: 117 | B126: DENABANK | C126: 11.3 | D126: 11.28 | E126: 11.22 | F126: 11.13 | G126: 11.07 | H126: 11.37 | I126: 11.43 | J126: 11.52 | K126: 11.35 | L126: 11.2 | M126: 7.07708
A127: 118 | B127: DHFL | C127: 136.75 | D127: 138.42 | E127: 133.43 | F127: 130.12 | G127: 125.13 | H127: 141.73 | I127: 146.72 | J127: 150.03 | K127: 143.4 | L127: 135.1 | M127: 117.9254
A128: 119 | B128: DISHTV | C128: 37.4 | D128: 37.65 | E128: 36.85 | F128: 36.30 | G128: 35.50 | H128: 38.20 | I128: 39.00 | J128: 39.55 | K128: 38.45 | L128: 37.1 | M128: 176.89907
A129: 120 | B129: DIVISLAB | C129: 1594.75 | D129: 1586.88 | E129: 1568.87 | F129: 1542.98 | G129: 1524.97 | H129: 1612.77 | I129: 1630.78 | J129: 1656.67 | K129: 1604.9 | L129: 1561 | M129: 5.99083
A130: 121 | B130: DIXON | C130: 2233.2 | D130: 2242.72 | E130: 2210.48 | F130: 2187.77 | G130: 2155.53 | H130: 2265.43 | I130: 2297.67 | J130: 2320.38 | K130: 2274.95 | L130: 2220 | M130: 0.01314
A131: 122 | B131: DLF | C131: 168.15 | D131: 169.50 | E131: 165.70 | F131: 163.25 | G131: 159.45 | H131: 171.95 | I131: 175.75 | J131: 178.20 | K131: 173.3 | L131: 167.05 | M131: 130.38685
A132: 123 | B132: DMART | C132: 1495.95 | D132: 1492.32 | E132: 1474.63 | F132: 1453.32 | G132: 1435.63 | H132: 1513.63 | I132: 1531.32 | J132: 1552.63 | K132: 1510 | L132: 1471 | M132: 5.40619
A133: 124 | B133: DREDGECORP | C133: 355.2 | D133: 355.08 | E133: 348.17 | F133: 341.13 | G133: 334.22 | H133: 362.12 | I133: 369.03 | J133: 376.07 | K133: 362 | L133: 348.05 | M133: 2.16628
A134: 125 | B134: DRREDDY | C134: 2666.9 | D134: 2661.55 | E134: 2628.15 | F134: 2589.40 | G134: 2556.00 | H134: 2700.30 | I134: 2733.70 | J134: 2772.45 | K134: 2694.95 | L134: 2622.8 | M134: 12.75515
A135: 126 | B135: ECLERX | C135: 1010.95 | D135: 1005.18 | E135: 986.77 | F135: 962.58 | G135: 944.17 | H135: 1029.37 | I135: 1047.78 | J135: 1071.97 | K135: 1023.6 | L135: 981 | M135: 0.06565
A136: 127 | B136: EDELWEISS | C136: 147.45 | D136: 147.62 | E136: 145.93 | F136: 144.42 | G136: 142.73 | H136: 149.13 | I136: 150.82 | J136: 152.33 | K136: 149.3 | L136: 146.1 | M136: 11.58713
A137: 128 | B137: EICHERMOT | C137: 20704.8 | D137: 20661.92 | E137: 20542.88 | F137: 20380.97 | G137: 20261.93 | H137: 20823.83 | I137: 20942.87 | J137: 21104.78 | K137: 20780.95 | L137: 20500 | M137: 0.4626
A138: 129 | B138: EIDPARRY | C138: 193.45 | D138: 193.38 | E138: 188.37 | F138: 183.28 | G138: 178.27 | H138: 198.47 | I138: 203.48 | J138: 208.57 | K138: 198.4 | L138: 188.3 | M138: 5.50347
A139: 130 | B139: EIHOTEL | C139: 184.7 | D139: 185.40 | E139: 182.55 | F139: 180.40 | G139: 177.55 | H139: 187.55 | I139: 190.40 | J139: 192.55 | K139: 188.25 | L139: 183.25 | M139: 0.95478
A140: 131 | B140: EMAMILTD | C140: 398.6 | D140: 400.20 | E140: 395.40 | F140: 392.20 | G140: 387.40 | H140: 403.40 | I140: 408.20 | J140: 411.40 | K140: 405 | L140: 397 | M140: 2.60198
A141: 132 | B141: ENDURANCE | C141: 1246.75 | D141: 1251.58 | E141: 1235.17 | F141: 1223.58 | G141: 1207.17 | H141: 1263.17 | I141: 1279.58 | J141: 1291.17 | K141: 1268 | L141: 1240 | M141: 0.06215
A142: 133 | B142: ENGINERSIN | C142: 106.4 | D142: 106.97 | E142: 104.98 | F142: 103.57 | G142: 101.58 | H142: 108.38 | I142: 110.37 | J142: 111.78 | K142: 108.95 | L142: 105.55 | M142: 48.64575
A143: 134 | B143: EQUITAS | C143: 114 | D143: 115.22 | E143: 112.23 | F143: 110.47 | G143: 107.48 | H143: 116.98 | I143: 119.97 | J143: 121.73 | K143: 118.2 | L143: 113.45 | M143: 16.99899
A144: 135 | B144: ERIS | C144: 609.05 | D144: 614.32 | E144: 599.83 | F144: 590.62 | G144: 576.13 | H144: 623.53 | I144: 638.02 | J144: 647.23 | K144: 628.8 | L144: 605.1 | M144: 0.1753
A145: 136 | B145: EROSMEDIA | C145: 80.05 | D145: 79.52 | E145: 77.53 | F145: 75.02 | G145: 73.03 | H145: 82.03 | I145: 84.02 | J145: 86.53 | K145: 81.5 | L145: 77 | M145: 4.82129
A146: 137 | B146: ESCORTS | C146: 654.45 | D146: 653.92 | E146: 646.03 | F146: 637.62 | G146: 629.73 | H146: 662.33 | I146: 670.22 | J146: 678.63 | K146: 661.8 | L146: 645.5 | M146: 9.642
A147: 138 | B147: EVEREADY | C147: 198.7 | D147: 199.88 | E147: 196.82 | F147: 194.93 | G147: 191.87 | H147: 201.77 | I147: 204.83 | J147: 206.72 | K147: 202.95 | L147: 198 | M147: 1.33189
A148: 139 | B148: EXIDEIND | C148: 217.35 | D148: 216.55 | E148: 213.10 | F148: 208.85 | G148: 205.40 | H148: 220.80 | I148: 224.25 | J148: 228.50 | K148: 220 | L148: 212.3 | M148: 20.12689
A149: 140 | B149: FCONSUMER | C149: 45 | D149: 45.22 | E149: 44.43 | F149: 43.87 | G149: 43.08 | H149: 45.78 | I149: 46.57 | J149: 47.13 | K149: 46 | L149: 44.65 | M149: 8.89678
A150: 141 | B150: FEDERALBNK | C150: 80.8 | D150: 80.40 | E150: 79.60 | F150: 78.40 | G150: 77.60 | H150: 81.60 | I150: 82.40 | J150: 83.60 | K150: 81.2 | L150: 79.2 | M150: 117.78486
A151: 142 | B151: FINCABLES | C151: 380.05 | D151: 380.68 | E151: 377.42 | F151: 374.78 | G151: 371.52 | H151: 383.32 | I151: 386.58 | J151: 389.22 | K151: 383.95 | L151: 378.05 | M151: 0.48716
A152: 143 | B152: FINPIPE | C152: 461.9 | D152: 462.30 | E152: 456.60 | F152: 451.30 | G152: 445.60 | H152: 467.60 | I152: 473.30 | J152: 478.60 | K152: 468 | L152: 457 | M152: 0.24619
A153: 144 | B153: FLFL | C153: 429.65 | D153: 430.48 | E153: 425.42 | F153: 421.18 | G153: 416.12 | H153: 434.72 | I153: 439.78 | J153: 444.02 | K153: 435.55 | L153: 426.25 | M153: 0.13098
A154: 145 | B154: FSL | C154: 44.25 | D154: 43.82 | E154: 42.43 | F154: 40.62 | G154: 39.23 | H154: 45.63 | I154: 47.02 | J154: 48.83 | K154: 45.2 | L154: 42 | M154: 30.45261
A155: 146 | B155: GAIL | C155: 327.8 | D155: 326.50 | E155: 323.50 | F155: 319.20 | G155: 316.20 | H155: 330.80 | I155: 333.80 | J155: 338.10 | K155: 329.5 | L155: 322.2 | M155: 87.24063
A156: 147 | B156: GATI | C156: 80.15 | D156: 81.15 | E156: 77.50 | F156: 74.85 | G156: 71.20 | H156: 83.80 | I156: 87.45 | J156: 90.10 | K156: 84.8 | L156: 78.5 | M156: 29.98581
A157: 148 | B157: GDL | C157: 108.45 | D157: 108.90 | E157: 106.95 | F157: 105.45 | G157: 103.50 | H157: 110.40 | I157: 112.35 | J157: 113.85 | K157: 110.85 | L157: 107.4 | M157: 0.57802
A158: 149 | B158: GEPIL | C158: 794.45 | D158: 783.75 | E158: 764.70 | F158: 734.95 | G158: 715.90 | H158: 813.50 | I158: 832.55 | J158: 862.30 | K158: 802.8 | L158: 754 | M158: 0.10438
A159: 150 | B159: GESHIP | C159: 279.55 | D159: 278.35 | E159: 274.20 | F159: 268.85 | G159: 264.70 | H159: 283.70 | I159: 287.85 | J159: 293.20 | K159: 282.5 | L159: 273 | M159: 0.27948
A160: 151 | B160: GET&D | C160: 291.95 | D160: 294.43 | E160: 286.92 | F160: 281.88 | G160: 274.37 | H160: 299.47 | I160: 306.98 | J160: 312.02 | K160: 301.95 | L160: 289.4 | M160: 0.37788
A161: 152 | B161: GHCL | C161: 229.2 | D161: 226.32 | E161: 222.88 | F161: 216.57 | G161: 213.13 | H161: 232.63 | I161: 236.07 | J161: 242.38 | K161: 229.75 | L161: 220 | M161: 1.01953
A162: 153 | B162: GICRE | C162: 221 | D162: 221.60 | E162: 219.55 | F162: 218.10 | G162: 216.05 | H162: 223.05 | I162: 225.10 | J162: 226.55 | K162: 223.65 | L162: 220.15 | M162: 0.27532
A163: 154 | B163: GILLETTE | C163: 6323.1 | D163: 6346.37 | E163: 6145.73 | F163: 5968.37 | G163: 5767.73 | H163: 6523.73 | I163: 6724.37 | J163: 6901.73 | K163: 6547 | L163: 6169 | M163: 0.20831
A164: 155 | B164: GLAXO | C164: 1341.9 | D164: 1342.30 | E164: 1330.60 | F164: 1319.30 | G164: 1307.60 | H164: 1353.60 | I164: 1365.30 | J164: 1376.60 | K164: 1354 | L164: 1331 | M164: 0.12365
A165: 156 | B165: GLENMARK | C165: 593 | D165: 595.50 | E165: 587.65 | F165: 582.30 | G165: 574.45 | H165: 600.85 | I165: 608.70 | J165: 614.05 | K165: 603.35 | L165: 590.15 | M165: 4.96779
A166: 157 | B166: GMDCLTD | C166: 75.95 | D166: 76.18 | E166: 75.27 | F166: 74.58 | G166: 73.67 | H166: 76.87 | I166: 77.78 | J166: 78.47 | K166: 77.1 | L166: 75.5 | M166: 0.9769
A167: 158 | B167: GMRINFRA | C167: 16.4 | D167: 16.42 | E167: 16.23 | F167: 16.07 | G167: 15.88 | H167: 16.58 | I167: 16.77 | J167: 16.93 | K167: 16.6 | L167: 16.25 | M167: 87.01329
A168: 159 | B168: GNFC | C168: 264.75 | D168: 263.03 | E168: 259.72 | F168: 254.68 | G168: 251.37 | H168: 268.07 | I168: 271.38 | J168: 276.42 | K168: 266.35 | L168: 258 | M168: 4.78666
A169: 160 | B169: GODFRYPHLP | C169: 914.95 | D169: 919.77 | E169: 907.53 | F169: 900.12 | G169: 887.88 | H169: 927.18 | I169: 939.42 | J169: 946.83 | K169: 932 | L169: 912.35 | M169: 1.15447
A170: 161 | B170: GODREJAGRO | C170: 481.95 | D170: 480.02 | E170: 475.78 | F170: 469.62 | G170: 465.38 | H170: 486.18 | I170: 490.42 | J170: 496.58 | K170: 484.25 | L170: 473.85 | M170: 1.03085
A171: 162 | B171: GODREJCP | C171: 660.05 | D171: 664.03 | E171: 654.42 | F171: 648.78 | G171: 639.17 | H171: 669.67 | I171: 679.28 | J171: 684.92 | K171: 673.65 | L171: 658.4 | M171: 6.74339
A172: 163 | B172: GODREJIND | C172: 481.45 | D172: 483.28 | E172: 478.22 | F172: 474.98 | G172: 469.92 | H172: 486.52 | I172: 491.58 | J172: 494.82 | K172: 488.35 | L172: 480.05 | M172: 2.42527
A173: 164 | B173: GODREJPROP | C173: 727.6 | D173: 730.83 | E173: 711.77 | F173: 695.93 | G173: 676.87 | H173: 746.67 | I173: 765.73 | J173: 781.57 | K173: 749.9 | L173: 715 | M173: 2.3503
A174: 165 | B174: GPPL | C174: 77.95 | D174: 78.30 | E174: 77.15 | F174: 76.35 | G174: 75.20 | H174: 79.10 | I174: 80.25 | J174: 81.05 | K174: 79.45 | L174: 77.5 | M174: 9.43057
A175: 166 | B175: GRANULES | C175: 94.65 | D175: 94.32 | E175: 93.63 | F175: 92.62 | G175: 91.93 | H175: 95.33 | I175: 96.02 | J175: 97.03 | K175: 95 | L175: 93.3 | M175: 7.03907
A176: 167 | B176: GRAPHITE | C176: 413.6 | D176: 416.83 | E176: 408.77 | F176: 403.93 | G176: 395.87 | H176: 421.67 | I176: 429.73 | J176: 434.57 | K176: 424.9 | L176: 412 | M176: 11.39511
A177: 168 | B177: GRASIM | C177: 778.65 | D177: 770.05 | E177: 758.60 | F177: 738.55 | G177: 727.10 | H177: 790.10 | I177: 801.55 | J177: 821.60 | K177: 781.5 | L177: 750 | M177: 19.01398
A178: 169 | B178: GREAVESCOT | C178: 119.3 | D178: 119.18 | E178: 118.52 | F178: 117.73 | G178: 117.07 | H178: 119.97 | I178: 120.63 | J178: 121.42 | K178: 119.85 | L178: 118.4 | M178: 0.85539
A179: 170 | B179: GREENPLY | C179: 139.45 | D179: 137.77 | E179: 133.68 | F179: 127.92 | G179: 123.83 | H179: 143.53 | I179: 147.62 | J179: 153.38 | K179: 141.85 | L179: 132 | M179: 1.58101
A180: 171 | B180: GRUH | C180: 248.75 | D180: 251.77 | E180: 244.53 | F180: 240.32 | G180: 233.08 | H180: 255.98 | I180: 263.22 | J180: 267.43 | K180: 259 | L180: 247.55 | M180: 5.22291
A181: 172 | B181: GSFC | C181: 92.5 | D181: 92.42 | E181: 91.18 | F181: 89.87 | G181: 88.63 | H181: 93.73 | I181: 94.97 | J181: 96.28 | K181: 93.65 | L181: 91.1 | M181: 13.63519
A182: 173 | B182: GSKCONS | C182: 7269.2 | D182: 7271.43 | E182: 7223.87 | F182: 7178.53 | G182: 7130.97 | H182: 7316.77 | I182: 7364.33 | J182: 7409.67 | K182: 7319 | L182: 7226.1 | M182: 0.29704
A183: 174 | B183: GSPL | C183: 158.7 | D183: 159.02 | E183: 154.88 | F183: 151.07 | G183: 146.93 | H183: 162.83 | I183: 166.97 | J183: 170.78 | K183: 163.15 | L183: 155.2 | M183: 7.54241
A184: 175 | B184: GUJALKALI | C184: 450.85 | D184: 450.95 | E184: 443.90 | F184: 436.95 | G184: 429.90 | H184: 457.90 | I184: 464.95 | J184: 471.90 | K184: 458 | L184: 444 | M184: 0.68748
A185: 176 | B185: GUJFLUORO | C185: 899.75 | D185: 892.93 | E185: 876.87 | F185: 853.98 | G185: 837.92 | H185: 915.82 | I185: 931.88 | J185: 954.77 | K185: 909 | L185: 870.05 | M185: 0.35058
A186: 177 | B186: GUJGASLTD | C186: 120.45 | D186: 119.98 | E186: 118.17 | F186: 115.88 | G186: 114.07 | H186: 122.27 | I186: 124.08 | J186: 126.37 | K186: 121.8 | L186: 117.7 | M186: 1.61651
A187: 178 | B187: GULFOILLUB | C187: 884.9 | D187: 887.33 | E187: 877.67 | F187: 870.43 | G187: 860.77 | H187: 894.57 | I187: 904.23 | J187: 911.47 | K187: 897 | L187: 880.1 | M187: 0.39449
A188: 179 | B188: GVKPIL | C188: 8 | D188: 8.08 | E188: 7.57 | F188: 7.13 | G188: 6.62 | H188: 8.52 | I188: 9.03 | J188: 9.47 | K188: 8.6 | L188: 7.65 | M188: 173.1995
A189: 180 | B189: HATHWAY | C189: 24.95 | D189: 24.95 | E189: 24.70 | F189: 24.45 | G189: 24.20 | H189: 25.20 | I189: 25.45 | J189: 25.70 | K189: 25.2 | L189: 24.7 | M189: 0.74116
A190: 181 | B190: HATSUN | C190: 660.5 | D190: 660.30 | E190: 654.55 | F190: 648.60 | G190: 642.85 | H190: 666.25 | I190: 672.00 | J190: 677.95 | K190: 666.05 | L190: 654.35 | M190: 0.04972
A191: 182 | B191: HAVELLS | C191: 702.8 | D191: 699.27 | E191: 693.53 | F191: 684.27 | G191: 678.53 | H191: 708.53 | I191: 714.27 | J191: 723.53 | K191: 705 | L191: 690 | M191: 6.99539
A192: 183 | B192: HCC | C192: 12.45 | D192: 12.60 | E192: 12.25 | F192: 12.05 | G192: 11.70 | H192: 12.80 | I192: 13.15 | J192: 13.35 | K192: 12.95 | L192: 12.4 | M192: 11.50197
A193: 184 | B193: HCL-INSYS | C193: 20 | D193: 20.18 | E193: 19.67 | F193: 19.33 | G193: 18.82 | H193: 20.52 | I193: 21.03 | J193: 21.37 | K193: 20.7 | L193: 19.85 | M193: 5.56758
A194: 185 | B194: HCLTECH | C194: 1082.25 | D194: 1076.73 | E194: 1068.47 | F194: 1054.68 | G194: 1046.42 | H194: 1090.52 | I194: 1098.78 | J194: 1112.57 | K194: 1085 | L194: 1062.95 | M194: 11.7047
A195: 186 | B195: HDFC | C195: 1894.5 | D195: 1887.97 | E195: 1878.03 | F195: 1861.57 | G195: 1851.63 | H195: 1904.43 | I195: 1914.37 | J195: 1930.83 | K195: 1897.9 | L195: 1871.5 | M195: 20.49742
A196: 187 | B196: HDFCBANK | C196: 2125.4 | D196: 2116.83 | E196: 2103.72 | F196: 2082.03 | G196: 2068.92 | H196: 2138.52 | I196: 2151.63 | J196: 2173.32 | K196: 2129.95 | L196: 2095.15 | M196: 20.35149
A197: 188 | B197: HDIL | C197: 24.05 | D197: 24.27 | E197: 23.63 | F197: 23.22 | G197: 22.58 | H197: 24.68 | I197: 25.32 | J197: 25.73 | K197: 24.9 | L197: 23.85 | M197: 70.60614
A198: 189 | B198: HEG | C198: 2113.6 | D198: 2124.90 | E198: 2094.80 | F198: 2076.00 | G198: 2045.90 | H198: 2143.70 | I198: 2173.80 | J198: 2192.60 | K198: 2155 | L198: 2106.1 | M198: 1.86752
A199: 190 | B199: HEIDELBERG | C199: 151.05 | D199: 151.07 | E199: 149.98 | F199: 148.92 | G199: 147.83 | H199: 152.13 | I199: 153.22 | J199: 154.28 | K199: 152.15 | L199: 150 | M199: 1.23777
A200: 191 | B200: HERITGFOOD | C200: 442.95 | D200: 445.18 | E200: 436.07 | F200: 429.18 | G200: 420.07 | H200: 452.07 | I200: 461.18 | J200: 468.07 | K200: 454.3 | L200: 438.3 | M200: 0.15114
A201: 192 | B201: HEROMOTOCO | C201: 2712.5 | D201: 2708.70 | E201: 2693.80 | F201: 2675.10 | G201: 2660.20 | H201: 2727.40 | I201: 2742.30 | J201: 2761.00 | K201: 2723.6 | L201: 2690 | M201: 4.43819
A202: 193 | B202: HEXAWARE | C202: 353.7 | D202: 355.93 | E202: 350.27 | F202: 346.83 | G202: 341.17 | H202: 359.37 | I202: 365.03 | J202: 368.47 | K202: 361.6 | L202: 352.5 | M202: 4.97918
A203: 194 | B203: HFCL | C203: 21.6 | D203: 21.70 | E203: 21.40 | F203: 21.20 | G203: 20.90 | H203: 21.90 | I203: 22.20 | J203: 22.40 | K203: 22 | L203: 21.5 | M203: 10.6616
A204: 195 | B204: HIMATSEIDE | C204: 167.05 | D204: 168.20 | E204: 164.75 | F204: 162.45 | G204: 159.00 | H204: 170.50 | I204: 173.95 | J204: 176.25 | K204: 171.65 | L204: 165.9 | M204: 0.60388
A205: 196 | B205: HINDALCO | C205: 196.5 | D205: 196.45 | E205: 194.40 | F205: 192.30 | G205: 190.25 | H205: 198.55 | I205: 200.60 | J205: 202.70 | K205: 198.5 | L205: 194.35 | M205: 61.69952
A206: 197 | B206: HINDCOPPER | C206: 46.45 | D206: 46.08 | E206: 45.42 | F206: 44.38 | G206: 43.72 | H206: 47.12 | I206: 47.78 | J206: 48.82 | K206: 46.75 | L206: 45.05 | M206: 5.87009
... 304 more rows

Sheet Bulk Deals
E6: Back To Main Page
A7: Subject : | B7: BULK DEAL | D7: =Main!B10 -> 2019-02-26
A9: Date | B9: Scrip code | C9: Scrip Name | D9: Client Name | E9: Buy / Sell | F9: Quantity Traded | G9: Trade Price / Wt.Avg.trade price | H9: Exchange
A10: 25/02/2019 | B10: 542437 | C10: ANMOL | D10: SUNIL KUMAR GUPTA | E10: BUY | F10: 64,000 | G10: 33.57 | H10: BSE
A11: 25/02/2019 | B11: 537766 | C11: BCP | D11: PINKI AGARWAL | E11: BUY | F11: 363,552 | G11: 38.12 | H11: BSE
A12: 25/02/2019 | B12: 537766 | C12: BCP | D12: PINKI AGARWAL | E12: SELL | F12: 363552 | G12: 38.12 | H12: BSE
A13: 25/02/2019 | B13: 531977 | C13: CHLOGIST | D13: LALITKUMAR G GANDHI | E13: BUY | F13: 500000 | G13: 6.19 | H13: BSE
A14: 25/02/2019 | B14: 539853 | C14: GOLDENCAP | D14: ROSELIN MENDES | E14: BUY | F14: 20700 | G14: 25.4 | H14: BSE
A15: 25/02/2019 | B15: 539853 | C15: GOLDENCAP | D15: BHARATI ARVIND SHAH | E15: BUY | F15: 35000 | G15: 25.4 | H15: BSE
A16: 25/02/2019 | B16: 539853 | C16: GOLDENCAP | D16: SONAM PANKAJKUMAR SHAH | E16: SELL | F16: 29707 | G16: 25.4 | H16: BSE
A17: 25/02/2019 | B17: 531687 | C17: KGL | D17: IBELIVE FITNESS SOLUTIONS PRIVATE LIMITED | E17: SELL | F17: 5500000 | G17: 1.35 | H17: BSE
A18: 25/02/2019 | B18: 532067 | C18: KILPEST | D18: ALPNA VARSHNEY | E18: SELL | F18: 38988 | G18: 66.03 | H18: BSE
A19: 25/02/2019 | B19: 539520 | C19: SHAILJA | D19: MAHADEO VISHNU TORASKAR | E19: SELL | F19: 23634 | G19: 16.75 | H19: BSE
A20: 25/02/2019 | B20: 539520 | C20: SHAILJA | D20: YASH MANISH MEHTA | E20: SELL | F20: 52000 | G20: 17.23 | H20: BSE
A21: 25/02/2019 | B21: 539520 | C21: SHAILJA | D21: VIKAS JAGDISHCHANDRA SINGHANIA | E21: BUY | F21: 20000 | G21: 17.25 | H21: BSE
A22: 25/02/2019 | B22: 539520 | C22: SHAILJA | D22: NAVEEN GUPTA | E22: BUY | F22: 18429 | G22: 16.76 | H22: BSE
A23: 25/02/2019 | B23: 539520 | C23: SHAILJA | D23: NAVEEN GUPTA | E23: SELL | F23: 18,532 | G23: 17.06 | H23: BSE
A24: 25/02/2019 | B24: 532531 | C24: STAR | D24: ABUSHA INVESTMENT & MANAGEMENT SERVICES LLP | E24: SELL | F24: 500,000 | G24: 426.5 | H24: BSE
A25: 25/02/2019 | B25: 532531 | C25: STAR | D25: LIFECELL INTERNATIONAL PRIVATE LIMITED | E25: BUY | F25: 500,000 | G25: 426.5 | H25: BSE
A26: 25/02/2019 | B26: 539835 | C26: SUPERIOR | D26: AHMED ZAHEER | E26: BUY | F26: 18,650 | G26: 15.8 | H26: BSE
A27: 25/02/2019 | B27: 519152 | C27: VADILENT | D27: SPS FINQUEST PRIVATE LIMITED | E27: BUY | F27: 9,000 | G27: 854.92 | H27: BSE
A28: 25/02/2019 | B28: 519152 | C28: VADILENT | D28: NILIMA NITIN SANGHAVI | E28: SELL | F28: 4,870 | G28: 845.5 | H28: BSE
A29: 25/02/2019 | B29: 534639 | C29: VINAYAKPOL | D29: BURLINGTON FINANCE LIMITED | E29: SELL | F29: 50,000 | G29: 7.5 | H29: BSE
A30: 25/02/2019 | B30: 534639 | C30: VINAYAKPOL | D30: VIKRAM BAID | E30: BUY | F30: 50,337 | G30: 7.5 | H30: BSE
A31: 25/02/2019 | B31: 539097 | C31: YOGYA | D31: HANSABEN DIPAKBHAI PUJARA | E31: BUY | F31: 24,000 | G31: 20.6 | H31: BSE
A32: 25/02/2019 | B32: 539097 | C32: YOGYA | D32: IG FINANCIAL SERVICES I PRIVATE LIMITED | E32: BUY | F32: 56,000 | G32: 20.87 | H32: BSE
A33: 25/02/2019 | B33: 539097 | C33: YOGYA | D33: SUJATA MAHESH SANZGIRI | E33: BUY | F33: 80,000 | G33: 20.6 | H33: BSE
A34: 25/02/2019 | B34: 539097 | C34: YOGYA | D34: SHRENI SHARES PRIVATE LIMITED | E34: SELL | F34: 168,000 | G34: 20.6 | H34: BSE
A35: 25/02/2019 | B35: ASTRAMICRO | C35: Astra Microwave Products | D35: RATNABALI CAPITAL MARKETS PRIVATE LIMITED | E35: BUY | F35: 762,000 | G35: 78 | H35: NSE
A36: 25/02/2019 | B36: CESCVENT | C36: CESC Ventures Limited | D36: CANARA ROBECO MUTUAL FUND A/C CANARA ROBECO BALANCE | E36: BUY | F36: 181,030 | G36: 434.2 | H36: NSE
A37: 25/02/2019 | B37: MANGTIMBER | C37: Mangalam Timber Pro Ltd | D37: SHARADA AGARWAL | E37: BUY | F37: 100000 | G37: 20.15 | H37: NSE
A38: 25/02/2019 | B38: ORIENTABRA | C38: Orient Abrasives Limited | D38: SHAH MANAN CHETAN | E38: BUY | F38: 900000 | G38: 23.2 | H38: NSE
A39: 25/02/2019 | B39: PUNJLLOYD | C39: Punj Lloyd Limited | D39: J M GLOBAL EQUITIES PRIVATE LIMITED | E39: BUY | F39: 1250370 | G39: 1.86 | H39: NSE
A40: 25/02/2019 | B40: PUNJLLOYD | C40: Punj Lloyd Limited | D40: MULTIPLIER S AND S ADV PVT LTD | E40: BUY | F40: 2159209 | G40: 1.87 | H40: NSE
A41: 25/02/2019 | B41: RCOM | C41: Reliance Comm. Ltd. | D41: SKYVEIL TRADE SOLUTIONS LLP | E41: BUY | F41: 26034847 | G41: 6.05 | H41: NSE
A42: 25/02/2019 | B42: REFEX | C42: Refex Industries Limited | D42: ANIL JAIN | E42: BUY | F42: 80051 | G42: 28.9 | H42: NSE
A43: 25/02/2019 | B43: SUZLON | C43: Suzlon Energy Limited | D43: SHARE INDIA SECURITIES LIMITED | E43: BUY | F43: 29241239 | G43: 5.67 | H43: NSE
A44: 25/02/2019 | B44: TATAGLOBAL | C44: Tata Global Beverages Ltd | D44: STEWART INVESTORS GLOBAL EMERGING MARKETS LEADERS FUND | E44: BUY | F44: 3463275 | G44: 189.25 | H44: NSE
A45: 25/02/2019 | B45: TATAPOWER | C45: Tata Power Co. Ltd. | D45: STEWART INVESTORS GLOBAL EMERGING MARKETS LEADERS FUND | E45: BUY | F45: 17787259 | G45: 67.1 | H45: NSE
A46: 25/02/2019 | B46: ASTRAMICRO | C46: Astra Microwave Products | D46: HDFC MUTUAL FUND | E46: SELL | F46: 981912 | G46: 78 | H46: NSE
A47: 25/02/2019 | B47: AVADHSUGAR | C47: Avadh Sug & Energy Ltd | D47: LIFE INSURANCE CORPORATION (SCHEME 5) | E47: SELL | F47: 58259 | G47: 475.83 | H47: NSE
A48: 25/02/2019 | B48: CESCVENT | C48: CESC Ventures Limited | D48: CANEQUITY DIVERSIFIED | E48: SELL | F48: 181030 | G48: 434.2 | H48: NSE
A49: 25/02/2019 | B49: MANGTIMBER | C49: Mangalam Timber Pro Ltd | D49: RAMKRISHNA AGARWAL | E49: SELL | F49: 100000 | G49: 20.15 | H49: NSE
A50: 25/02/2019 | B50: NATIONALUM | C50: National Alum Co Ltd | D50: ICICI PRUDENTIAL MUTUAL FUND - BHARAT 22 ETF | E50: SELL | F50: 12412768 | G50: 48.03 | H50: NSE
A51: 25/02/2019 | B51: ORIENTABRA | C51: Orient Abrasives Limited | D51: BOMBAY MINERALS LIMITED | E51: SELL | F51: 900000 | G51: 23.2 | H51: NSE
A52: 25/02/2019 | B52: PUNJLLOYD | C52: Punj Lloyd Limited | D52: J M GLOBAL EQUITIES PRIVATE LIMITED | E52: SELL | F52: 2149625 | G52: 1.91 | H52: NSE
A53: 25/02/2019 | B53: PUNJLLOYD | C53: Punj Lloyd Limited | D53: MULTIPLIER S AND S ADV PVT LTD | E53: SELL | F53: 3416085 | G53: 1.89 | H53: NSE
A54: 25/02/2019 | B54: RCOM | C54: Reliance Comm. Ltd. | D54: SKYVEIL TRADE SOLUTIONS LLP | E54: SELL | F54: 26402532 | G54: 6.07 | H54: NSE
A55: 25/02/2019 | B55: REFEX | C55: Refex Industries Limited | D55: ARIHANTS SECURITIES LTD | E55: SELL | F55: 100000 | G55: 28.9 | H55: NSE
A56: 25/02/2019 | B56: SUZLON | C56: Suzlon Energy Limited | D56: SHARE INDIA SECURITIES LIMITED | E56: SELL | F56: 33041239 | G56: 5.67 | H56: NSE
A57: 25/02/2019 | B57: TATAGLOBAL | C57: Tata Global Beverages Ltd | D57: FIRST STATE INVT ICVC STEWART INVESTORS GL EMER MKTS LEAD FD | E57: SELL | F57: 3463275 | G57: 189.25 | H57: NSE
A58: 25/02/2019 | B58: TATAPOWER | C58: Tata Power Co. Ltd. | D58: FIRST STATE INVT ICVC STEWART INVESTORS GL EMER MKTS LEAD FD | E58: SELL | F58: 17787259 | G58: 67.1 | H58: NSE
A59: 25/02/2019 | B59: VIJIFIN | C59: Viji Finance Limited | D59: VIJAY KOTHARI | E59: SELL | F59: 751650 | G59: 0.7 | H59: NSE

Sheet Call Tracker (Equity & F&O)
M5: Back To Main Page
A6: Retail Research Technical Calls & Fundamental Performance Report for the month of February -2019
M7: =Main!B10 -> 2019-02-26
B8: Positional Call
A9: Sr.no | B9: Date | D9: Company | E9: Rec | F9: Rec Price | G9: Stop Loss*** | H9: Call Closed At | I9: Target | J9: Remark | K9: Profit / Loss per Share | L9: Gain / Loss % | M9: Status | N9: Closed Date | O9: NSE Closed Price
A10: 1 | B10: 2019-01-24 | D10: ITC | E10: Buy | F10: 279-281 | G10: 268 | I10: 305 | J10: Open | O10: =VLOOKUP(D10,Sheet2!A10:M1505,6,0) -> 276.7 | R10: R
A11: 2 | B11: 2019-01-25 | D11: UBL | E11: Sell | F11: 1435 | G11: 1510 | H11: 1392.5 | I11: 1300-1280 | J11: Profit of Rs.42.50/- | K11: 42.5 | L11: =K11/F11 -> 2.96% | M11: Successful | N11: 2019-01-28 | R11: H
A12: 3 | B12: 2019-01-29 | D12: MARUTI | E12: Buy | F12: 6575 | G12: 6290 | H12: 6910 | I12: 7000-7100 | J12: Profit of Rs.335/- | K12: =H12-F12 -> 335 | L12: 5.10% | M12: Successful | N12: 2019-02-01 | R12: R
A13: 4 | B13: 2019-01-30 | D13: ULTRACEMCO | E13: Buy | F13: 3400 | G13: 3230 | H13: 3592.5 | I13: 3750-3800 | J13: Profit of Rs.192.5/- | K13: 192.5 | L13: =K13/F13 -> 5.66% | M13: Successful | N13: 2019-02-07 | R13: H
A14: 5 | B14: 2019-02-05 | D14: MCDOWELL-N | E14: Buy | F14: 552.5 | G14: 526.7 | H14: 571 | I14: 600-610 | J14: Profit of Rs.18.5/- | K14: 18.5 | L14: 3.35% | M14: Successful | N14: 2019-02-07 | R14: R
A15: 6 | B15: 2019-02-07 | D15: APOLLOTYRE | E15: Buy | F15: 200 | G15: 189.5 | H15: 207.5 | I15: 215-220 | J15: Profit of Rs.7.5/- | K15: =H15-F15 -> 7.5 | L15: =K15/F15 -> 3.75% | M15: Successful | N15: 2019-02-08 | R15: H
A16: 7 | B16: 2019-02-07 | D16: CENTURYTEX | E16: Buy | F16: 769 | G16: 728 | H16: 730.5 | I16: 820-840 | J16: Loss of Rs 38.5/- | K16: -38.5 | L16: -5.01% | M16: UnSuccessful | N16: 2019-02-13 | R16: H
A17: 8 | B17: 2019-02-11 | D17: APOLLOTYRE | E17: Buy | F17: 200.5 | G17: 189.5 | H17: 207.5 | I17: 215-220 | J17: Profit of Rs.7/- | K17: =H17-F17 -> 7 | L17: =K17/F17 -> 3.49% | M17: Successful | N17: 2019-02-19 | R17: H
A18: 9 | B18: 2019-02-12 | D18: LT | E18: Buy | F18: 1244 | G18: 1188 | H18: 1284 | I18: 1340-1370 | J18: Part Profit of Rs.40/- | K18: =H18-F18 -> 40 | L18: =K18/F18 -> 3.22% | M18: Successful | N18: 2019-02-21 | R18: H
A19: 10 | B19: 2019-02-14 | D19: HINDALCO | E19: Buy | F19: 195 | G19: 186.2 | H19: 186 | I19: 210-215 | J19: Loss of Rs 9/- | K19: =H19-F19 -> -9 | L19: =K19/F19 -> -4.62% | M19: UnSuccessful | N19: 2019-02-15 | R19: R
A20: 11 | B20: 2019-02-19 | D20: BRITANNIA | E20: Buy | F20: 2955 | G20: 2780 | H20: 3045 | I20: 3200-3250 | J20: Part Profit of Rs.40/- | K20: 90 | L20: 3.05% | M20: Successful | N20: 2019-02-25 | R20: R
A21: 12 | B21: 2019-02-20 | D21: TATAELXSI | E21: Buy | F21: 868.5 | G21: 822.2 | H21: 904 | I21: 950-960 | J21: Profit of Rs.35.5/- | K21: =H21-F21 -> 35.5 | L21: =K21/F21 -> 4.09% | M21: Successful | N21: 2019-02-21 | R21: R
A22: 13 | B22: 2019-02-25 | D22: TATAMOTORS | E22: Sell | F22: 175-177 | G22: 183 | I22: 165-160 | J22: Open | R22: H
A30: CLBS = Closing Basis *** | F30: Reinitiated $
A31: Dividend adjusted <> | F31: Revised stoploss #
A32: Part book {}
A33: Master Trade High Risk
A34: Sr.no | B34: Date | D34: Company | E34: Rec | F34: Rec Price | G34: Stop Loss | H34: Call Closed At | I34: Target | J34: Remark | K34: Profit / Loss per share | L34: Gain / Loss per Lot | M34: Lot | N34: Status | O34: Closed Date
A35: 1 | B35: 2019-02-01 | D35: NIFTY FEB FUT | E35: Sell | F35: 10955 | G35: 10860 | H35: 10885 | I35: 10800 | J35: Profit of Rs.70/- | K35: =F35-H35 -> 70 | L35: =M35*K35 -> 5250 | M35: 75 | N35: Successful | O35: 2019-02-02 | R35: R
A36: 2 | B36: 2019-02-06 | D36: NIFTY FEB FUT | E36: Sell | F36: 11005 | G36: 11120 | H36: 11120 | I36: 10800 | J36: Loss of Rs.115/- | K36: =F36-H36 -> -115 | L36: =M36*K36 -> -8625 | M36: 75 | N36: UnSuccessful | O36: 2019-02-07 | R36: R
A37: 3 | B37: 2019-02-06 | D37: BANKNIFTY FEB FUT | E37: Sell | F37: 27420 | G37: 27720 | H37: 27230 | I37: 27000-26900 | J37: Profit of Rs.190/- | K37: =F37-H37 -> 190 | L37: 3800 | M37: 20 | N37: Successful | O37: 2019-02-11 | R37: R
A38: 4 | B38: 2019-02-14 | D38: NIFTY FEB FUT | E38: Buy | F38: 10765 | G38: 10630 | H38: 10620 | I38: 11000 | J38: Loss of Rs.103/- | K38: =H38-F38 -> -145 | L38: =-103*75 -> -7725 | M38: 75 | N38: UnSuccessful | O38: 2019-02-19 | R38: H
D39: Nifty FEB 10900 CE | E39: Sell | F39: 61 | H39: 19 | K39: =F39-H39 -> 42 | R39: H
A40: 5 | B40: 2019-02-21 | D40: HDFC FEB FUT | E40: Buy | F40: 1876 | G40: 1835 | H40: 1899 | I40: 1920 | J40: Profit of Rs.17/- | K40: =H40-F40 -> 23 | L40: =M40*17 -> 8500 | M40: 500 | N40: Successful | O40: 2019-02-21 | R40: H
D41: HDFC FEB 1900 CE | E41: Sell | F41: 15.5 | H41: 21.5 | K41: =F41-H41 -> -6 | R41: H
A42: 6 | B42: 2019-02-22 | D42: M&M FEB FUT | E42: Buy | F42: 644 | G42: 630 | H42: 652.5 | I42: 665 | J42: Profit of Rs.8.5/- | K42: =H42-F42 -> 8.5 | L42: =M42*K42 -> 8500 | M42: 1000 | N42: Successful | O42: 2019-02-25 | R42: H
A47: Master Trade Medium Risk
A48: Sr.no | B48: Date | D48: Company | E48: Rec | F48: Rec Price | G48: Stop Loss | H48: Call Closed At | I48: Target | J48: Remark | K48: Profit/ Loss per lot | L48: Gain / Loss per Lot | M48: Lot | N48: Status | O48: Closed Date
A49: 1 | B49: 2019-02-01 | D49: JSWSTEEL FEB 280 CE | E49: Buy | F49: 8.25 | H49: 12.5 | J49: Profit of Rs.2/- | K49: =H49-F49 -> 4.25 | L49: 3000 | M49: 1500 | N49: Successful | O49: 2019-02-06 | R49: H
D50: JSWSTEEL FEB 290 CE | E50: Sell | F50: 5.25 | H50: 7.5 | K50: =F50-H50 -> -2.25 | R50: H
A51: 2 | B51: 2019-02-04 | D51: NIFTY 10900 CE FEB | E51: Buy | F51: 127.5 | G51: 84 | H51: 143 | I51: 200 | J51: Profit of Rs.15.50/- | K51: =H51-F51 -> 15.5 | L51: =M51*K51 -> 1162.5 | M51: 75 | N51: Successful | O51: 2019-02-04 | R51: R
A52: 3 | B52: 2019-02-05 | D52: RELIANCE 1280 PE FEB | E52: Buy | F52: 30 | H52: 36.5 | J52: Profit of Rs.6/- | K52: =H52-F52 -> 6.5 | L52: =M52*6 -> 3000 | M52: 500 | N52: Successful | O52: 2019-02-11 | R52: H
D53: RELIANCE at Rs.1240 PE | E53: Sell | F53: 18 | H53: 18.5 | K53: =F53-H53 -> -0.5 | R53: H
A54: 4 | B54: 2019-02-06 | D54: NIFTY 10900 PE FEB | E54: Buy | F54: 107.5 | G54: 70 | H54: 71 | I54: 180 | J54: Loss of Rs.36.5/- | K54: =H54-F54 -> -36.5 | L54: =M54*K54 -> -2737.5 | M54: 75 | N54: UnSuccessful | O54: 2019-02-07 | R54: H
A55: 5 | B55: 2019-02-06 | D55: BAJAJ-AUTO FEB 2650 PE | E55: Buy | F55: 26 | G55: 7 | H55: 9.5 | I55: 60-70 | J55: Loss of Rs.16.5/- | K55: =H55-F55 -> -16.5 | L55: =M55*K55 -> -4125 | M55: 250 | N55: UnSuccessful | O55: 2019-02-14 | R55: H
A56: 6 | B56: 2019-02-11 | D56: RELIANCE 1280 CE | E56: Buy | F56: 26.5 | G56: 18 | H56: 18 | I56: 40 | J56: Loss of Rs.8.5/- | K56: =H56-F56 -> -8.5 | L56: =M56*K56 -> -4250 | M56: 500 | N56: UnSuccessful | O56: 2019-02-13 | R56: H
A57: 7 | B57: 2019-02-12 | D57: HDFCBANK 2160 CE FEB | E57: Buy | F57: 25 | G57: 9 | H57: 9 | I57: 50 | J57: Loss of Rs.16/- | K57: =H57-F57 -> -16 | L57: -4000 | M57: 250 | N57: UnSuccessful | O57: 2019-02-15 | R57: R
A58: 8 | B58: 2019-02-12 | D58: NIFTY 14-Feb 10900 PE | E58: Buy | F58: 39 | H58: 51 | I58: 80-100 | J58: Profit of Rs.12/- | K58: =H58-F58 -> 12 | L58: =M58*K58 -> 900 | M58: 75 | N58: Successful | O58: 2019-02-12 | R58: R
A59: 9 | B59: 2019-02-13 | D59: NIFTY 14-Feb 10850 CE | E59: Buy | F59: 37 | H59: 0 | I59: 80-100 | J59: Loss of Rs.37/- | K59: =H59-F59 -> -37 | L59: =M59*K59 -> -2775 | M59: 75 | N59: UnSuccessful | O59: 2019-02-14 | R59: R
A60: 10 | B60: 2019-02-18 | D60: NIFTY 21-Feb 10700 CE | E60: Buy | F60: 62 | G60: 20 | H60: 76 | I60: 120 | J60: Profit of Rs.14/- | K60: =H60-F60 -> 14 | L60: =M60*K60 -> 1050 | M60: 75 | N60: Successful | O60: 2019-02-19 | R60: R
A61: 11 | B61: 2019-02-25 | D61: HDFCBANK FEB 2100 CE | E61: Buy | F61: 20 | H61: 26.5 | I61: 50 | J61: Profit of Rs.6.5/- | K61: =H61-F61 -> 6.5 | L61: =M61*K61 -> 1625 | M61: 250 | N61: Successful | O61: 2019-02-25
B68: Smart Delivery Trade
A69: Sr.no | B69: Date | D69: Company | E69: Rec | F69: Rec Price | G69: Stop Loss*** | H69: Call Closed At | I69: Target | J69: Remark | K69: Profit / Loss per Share | L69: Gain / Loss % | M69: Status | N69: Closed Date | O69: NSE Closed Price
A70: 1 | B70: 2019-01-29 | D70: UNIONBANK | E70: Buy | F70: 80.5 | G70: 77 | H70: 83.5 | I70: 87-88 | J70: Profit of Rs.3/- | K70: =H70-F70 -> 3 | L70: =K70/F70 -> 3.73% | M70: Successful | N70: 2019-02-01 | R70: H
A71: 2 | B71: 2019-02-01 | D71: INFY | E71: Sell | F71: 753 | G71: 772 | H71: 742.5 | I71: 720-710 | J71: Profit of Rs.10.5/- | K71: =F71-H71 -> 10.5 | L71: =K71/F71 -> 1.39% | M71: Successful | N71: 2019-02-15 | R71: H
A72: 3 | B72: 2019-02-04 | D72: BRITANNIA | E72: Buy | F72: 3275 | G72: 3175 | H72: 3165 | I72: 3450-3480 | J72: Loss of Rs 110/- | K72: =H72-F72 -> -110 | L72: =K72/F72 -> -3.36% | M72: UnSuccessful | N72: 2019-02-05 | R72: R
A73: 4 | B73: 2019-02-05 | D73: TITAN | E73: Sell | F73: 1045 | G73: 1082.7 | I73: 990-980 | J73: Open | O73: =VLOOKUP(D73,Sheet2!A61:M1556,6,0) -> 1043 | R73: R
A74: 5 | B74: 2019-02-05 | D74: UJJIVAN | E74: Buy | F74: 286.5 | G74: 277 | H74: 294.5 | I74: 300-310 | J74: Profit of Rs.8/- | K74: =H74-F74 -> 8 | L74: =K74/F74 -> 2.79% | M74: Successful | N74: 2019-02-01 | R74: H
A75: 6 | B75: 2019-02-07 | D75: IGL | E75: Buy | F75: 298.5 | G75: 288 | H75: 308.5 | I75: 315-320 | J75: Profit of Rs.10/- | K75: =H75-F75 -> 10 | L75: =K75/F75 -> 3.35% | M75: Successful | N75: 2019-02-07 | R75: H
A76: 7 | B76: 2019-02-07 | D76: CHENNPETRO | E76: Buy | F76: 232 | G76: 223.3 | H76: 222 | I76: 245-250 | J76: Loss of Rs 10/- | K76: -10 | L76: -4.31% | M76: UnSuccessful | N76: 2019-02-08 | R76: R
A77: 8 | B77: 2019-02-08 | D77: GUJGASLTD | E77: Buy | F77: 126.5 | G77: 119 | H77: 121.5 | I77: 140 | J77: Loss of Rs 5/- | K77: =H77-F77 -> -5 | L77: =K77/F77 -> -3.95% | M77: UnSuccessful | N77: 2019-02-15 | R77: H
A78: 9 | B78: 2019-02-11 | D78: APOLLOHOSP | E78: Buy | F78: 1189.9 | G78: 1146.6 | H78: 1145 | I78: 1270-1280 | J78: Loss of Rs 44.9/- | K78: =H78-F78 -> -44.9 | L78: =K78/F78 -> -3.77% | M78: UnSuccessful | N78: 2019-02-11 | R78: R
A79: 10 | B79: 2019-02-12 | D79: IGL | E79: Buy | F79: 275 | G79: 267 | H79: 263 | I79: 290-295 | J79: Loss of Rs 12/- | K79: =H79-F79 -> -12 | L79: =K79/F79 -> -4.36% | M79: UnSuccessful | N79: 2019-02-12 | R79: H
A80: 11 | B80: 2019-02-12 | D80: DRREDDY | E80: Buy | F80: 2585 | G80: 2497 | H80: 2645 | I80: 2760-2780 | J80: Profit of Rs.60/- | K80: 60 | L80: 2.32% | M80: Successful | N80: 2019-02-12 | R80: R
A81: 12 | B81: 2019-02-14 | D81: INFRATEL | E81: Buy | F81: 299 | G81: 287 | H81: 308.5 | I81: 320-325 | J81: Profit of Rs.9.5/- | K81: 9.5 | L81: 3.18% | M81: Successful | N81: 2019-02-15 | R81: H
A82: 13 | B82: 2019-02-18 | D82: SBIN | E82: Buy | F82: 264 | G82: 256.6 | H82: 271 | I82: 275-280 | J82: Profit of Rs.7/- | K82: =H82-F82 -> 7 | L82: =K82/F82 -> 2.65% | M82: Successful | N82: 2019-02-22 | R82: R
A83: 14 | B83: 2019-02-19 | D83: UPL | E83: Sell | F83: 821-825 | G83: 855 | I83: 780-770 | J83: Open | O83: =VLOOKUP(D83,Sheet2!A71:M1566,6,0) -> 847.65 | R83: H
A84: 15 | B84: 2019-02-19 | D84: HINDUNILVR | E84: Buy | F84: 1732-1737 | G84: 1677.7 | I84: 1830-1840 | J84: Open | O84: =VLOOKUP(D84,Sheet2!A72:M1567,6,0) -> 1770.15 | R84: R
A85: 16 | B85: 2019-02-20 | D85: BHARATFORG | E85: Buy | F85: 460 | G85: 470 | H85: 471.5 | I85: 490-500 | J85: Profit of Rs.11.5/- | K85: =H85-F85 -> 11.5 | L85: =K85/F85 -> 2.50% | M85: Successful | N85: 2019-02-20 | R85: H
A86: 17 | B86: 2019-02-20 | D86: BIOCON | E86: Buy | F86: 610-614 | G86: 593.3 | I86: 640-650 | J86: Open | O86: =VLOOKUP(D86,Sheet2!A74:M1569,6,0) -> 617.85 | R86: R
A87: 18 | B87: 2019-02-21 | D87: ICICIBANK | E87: Buy | F87: 350-353 | G87: 339 | I87: 370-375 | J87: Open | O87: =VLOOKUP(D87,Sheet2!A75:M1570,6,0) -> 355.6 | R87: H
A88: 19 | B88: 2019-02-21 | D88: TCS | E88: Buy | F88: 1915 | G88: 1857.7 | H88: 1978.5 | I88: 2020-2040 | J88: Profit of Rs.63.5/- | K88: =H88-F88 -> 63.5 | L88: =K88/F88 -> 3.32% | M88: Successful | N88: 2019-02-25 | R88: R
A89: 20 | B89: 2019-02-22 | D89: HDFC | E89: Buy | F89: 1877-1883 | G89: 1819 | I89: 2000 | J89: Open | O89: =VLOOKUP(D89,Sheet2!A77:M1572,6,0) -> 1894.5 | R89: H
A90: 21 | B90: 2019-02-22 | D90: TVSMOTORS | E90: Buy | F90: 468-472 | G90: 456 | I90: 500 | J90: Open | R90: H
A96: CLBS = Closing Basis *** | F96: Reinitiated $
A97: Dividend adjusted <> | F97: Revised stoploss #
B100: Momentum Call
A101: Sr.no | B101: Date | D101: Company | E101: Rec | F101: Rec Price | G101: Stop Loss | H101: Call Closed At | I101: Target | J101: Remark | K101: Profit / Loss per Share/Lot | L101: Gain / Loss % | M101: Gain / Loss per Lot | N101: Lot | O101: Status | P101: Closed Date
A102: 1 | B102: 2019-01-30 | D102: AMARAJABAT FEB FUT | E102: Buy | F102: 751.5 | G102: 735 | H102: 759.5 | I102: 780 | J102: Profit of Rs.8/- | K102: =H102-F102 -> 8 | M102: =N102*K102 -> 5600 | N102: 700 | O102: Successful | P102: 2019-02-01 | R102: H
A103: 2 | B103: 2019-01-30 | D103: RAYMOND FEB FUT | E103: Buy | F103: 760 | G103: 745 | H103: 745 | I103: 790 | J103: Loss of Rs 15/- | K103: -15 | M103: =N103*K103 -> -12000 | N103: 800 | O103: UnSuccessful | P103: 2019-02-01 | R103: N
A104: 3 | B104: 2019-01-31 | D104: RELIANCE | E104: Buy | F104: 1215 | G104: 1179 | H104: 1243 | I104: 1260-1280 | J104: Profit of Rs.28/- | K104: =H104-F104 -> 28 | L104: =K104/F104 -> 2.30% | O104: Successful | P104: 2019-02-01 | R104: H
A105: 4 | B105: 2019-02-01 | D105: BHARTIARTL | E105: Buy | F105: 315 | G105: 308 | H105: 306.5 | I105: 330 | J105: Loss of Rs 8.5/- | K105: -8.5 | L105: -2.70% | O105: UnSuccessful | P105: 2019-02-04 | R105: H
A106: 5 | B106: 2019-02-01 | D106: MINDTREE FEB FUT | E106: Buy | F106: 902 | G106: 882 | H106: 912 | I106: 940 | J106: Profit of Rs.10/- | K106: 10 | M106: =N106*K106 -> 6000 | N106: 600 | O106: Successful | P106: 2019-02-06 | R106: N
A107: 6 | B107: 2019-02-04 | D107: COLPAL FEB FUT | E107: Buy | F107: 1300 | G107: 1283 | H107: 1313 | I107: 1340 | J107: Profit of Rs.13/- | K107: =H107-F107 -> 13 | M107: =N107*K107 -> 9100 | N107: 700 | O107: Successful | P107: 2019-02-04 | R107: N
A108: 7 | B108: 2019-02-04 | D108: ASIANPAINT | E108: Buy | F108: 1438 | G108: 1400 | H108: 1467 | I108: 1510 | J108: Profit of Rs.29/- | K108: 29 | L108: =K108/F108 -> 2.02% | O108: Successful | P108: 2019-02-06 | R108: H
A109: 8 | B109: 2019-02-04 | D109: AJANTPHARM FEB FUT | E109: Buy | F109: 987.5 | G109: 964 | H109: 964 | I109: 1020-1030 | J109: Loss of Rs 23.5/- | K109: =H109-F109 -> -23.5 | M109: =N109*K109 -> -11750 | N109: 500 | O109: UnSuccessful | P109: 2019-02-04 | R109: H
A110: 9 | B110: 2019-02-04 | D110: TATAELXSI FEB FUT | E110: Buy | F110: 899.5 | G110: 874 | H110: 914.5 | I110: 950 | J110: Profit of Rs.15/- | K110: 15 | M110: =N110*K110 -> 6000 | N110: 400 | O110: Successful | P110: 2019-02-06 | R110: R
A111: 10 | B111: 2019-02-04 | D111: BIOCON FEB FUT | E111: Buy | F111: 654.5 | G111: 642 | H111: 663 | I111: 675 | J111: Profit of Rs.8.5/- | K111: =H111-F111 -> 8.5 | M111: =N111*K111 -> 7650 | N111: 900 | O111: Successful | P111: 2019-02-05 | R111: N
A112: 11 | B112: 2019-02-05 | D112: GODREJIND FEB FUT | E112: Buy | F112: 498 | G112: 490 | H112: 491 | I112: 515 | J112: Loss of Rs 7/- | K112: =H112-F112 -> -7 | M112: =N112*K112 -> -10500 | N112: 1500 | O112: UnSuccessful | P112: 2019-02-05 | R112: N
A113: 12 | B113: 2019-02-06 | D113: LT FEB FUT | E113: Buy | F113: 1301.5 | G113: 1274 | H113: 1274 | I113: 1350 | J113: Loss of Rs 27.5/- | K113: -27.5 | M113: =N113*K113 -> -10312.5 | N113: 375 | O113: UnSuccessful | P113: 2019-02-08 | R113: H
A114: 13 | B114: 2019-02-06 | D114: COLPAL FEB FUT | E114: Buy | F114: 1300 | G114: 1283 | H114: 1314.5 | I114: 1340 | J114: Profit of Rs.14.5/- | K114: =H114-F114 -> 14.5 | M114: =N114*K114 -> 10150 | N114: 700 | O114: Successful | P114: 2019-02-07 | R114: N
A115: 14 | B115: 2019-02-07 | D115: BIOCON FEB FUT | E115: Buy | F115: 643 | G115: 630 | H115: 651.5 | I115: 660 | J115: Profit of Rs.8.5/- | K115: =H115-F115 -> 8.5 | M115: =N115*K115 -> 7650 | N115: 900 | O115: Successful | P115: 2019-02-07 | R115: N
A116: 15 | B116: 2019-02-07 | D116: RBLBANK FEB FUT | E116: Buy | F116: 588 | G116: 578 | H116: 578 | I116: 610 | J116: Loss of Rs 10/- | K116: -10 | M116: =N116*K116 -> -12000 | N116: 1200 | O116: UnSuccessful | P116: 2019-02-08 | R116: N
A117: 16 | B117: 2019-02-08 | D117: PIDILITIND | E117: Buy | F117: 1155 | G117: 1134 | H117: 1130 | I117: 1200 | J117: Loss of Rs 25/- | K117: -25 | L117: =K117/F117 -> -2.16% | O117: UnSuccessful | P117: 2019-02-11 | R117: H
A118: 17 | B118: 2019-02-08 | D118: INFRATEL FEB FUT | E118: Sell | F118: 314.5 | G118: 321.2 | H118: 321.2 | I118: 305 | J118: Loss of Rs 6.7/- | K118: =F118-H118 -> -6.7 | M118: =N118*K118 -> -13400 | N118: 2000 | O118: UnSuccessful | P118: 2019-02-08 | R118: R
A119: 18 | B119: 2019-02-11 | D119: TATAELXSI FEB FUT | E119: Buy | F119: 900 | G119: 875 | H119: 914 | I119: 950 | J119: Profit of Rs.14/- | K119: =H119-F119 -> 14 | M119: =N119*K119 -> 5600 | N119: 400 | O119: Successful | P119: 2019-02-12 | R119: N
A120: 19 | B120: 2019-02-11 | D120: BAJAJAUTO FEB FUT | E120: Sell | F120: 2865 | G120: 2910 | H120: 2835 | I120: 2800-2780 | J120: Profit of Rs.30/- | K120: =F120-H120 -> 30 | M120: =N120*K120 -> 7500 | N120: 250 | O120: Successful | P120: 2019-02-12 | R120: H
A121: 20 | B121: 2019-02-11 | D121: COLPAL FEB FUT | E121: Buy | F121: 1279 | G121: 1263 | H121: 1290 | I121: 1310 | J121: Profit of Rs.11/- | K121: =H121-F121 -> 11 | M121: =N121*K121 -> 7700 | N121: 700 | O121: Successful | P121: 2019-02-11 | R121: N
A122: 21 | B122: 2019-02-11 | D122: TATACHEM FEB FUT | E122: Buy | F122: 595 | G122: 581 | H122: 581 | I122: 620 | J122: Loss of Rs 14/- | K122: -14 | M122: =N122*K122 -> -10500 | N122: 750 | O122: UnSuccessful | P122: 2019-02-12 | R122: R
A123: 22 | B123: 2019-02-11 | D123: UBL FEB FUT | E123: Buy | F123: 1396 | G123: 1378 | H123: 1379 | I123: 1430 | J123: Loss of Rs 17/- | K123: =H123-F123 -> -17 | M123: =N123*K123 -> -11900 | N123: 700 | O123: UnSuccessful | P123: 2019-02-11 | R123: N
A124: 23 | B124: 2019-02-12 | D124: BIOCON FEB FUT | E124: Buy | F124: 646 | G124: 633 | H124: 655 | I124: 670 | J124: Profit of Rs.9/- | K124: 9 | M124: =N124*K124 -> 8100 | N124: 900 | O124: Successful | P124: 2019-02-12 | R124: N
A125: 24 | B125: 2019-02-13 | D125: BIOCON FEB FUT | E125: Buy | F125: 642 | G125: 629 | H125: 629 | I125: 655 | J125: Loss of Rs 13/- | K125: -13 | M125: =N125*K125 -> -11700 | N125: 900 | O125: UnSuccessful | P125: 2019-02-15 | R125: N
A126: 25 | B126: 2019-02-13 | D126: COLPAL FEB FUT | E126: Buy | F126: 1281.5 | G126: 1263 | H126: 1263 | I126: 1310 | J126: Loss of Rs 18.5/- | K126: -18.5 | M126: =N126*K126 -> -12950 | N126: 700 | O126: UnSuccessful | P126: 2019-02-13 | R126: N
A127: 26 | B127: 2019-02-13 | D127: JUBLFOOD FEB FUT | E127: Buy | F127: 1292 | G127: 1267 | H127: 1309 | I127: 1340-1350 | J127: Profit of Rs.17/- | K127: =H127-F127 -> 17 | M127: =N127*K127 -> 8500 | N127: 500 | O127: Successful | P127: 2019-02-13 | R127: R
A128: 27 | B128: 2019-02-13 | D128: UPL FEB FUT | E128: Sell | F128: 807 | G128: 817 | H128: 817 | I128: 788 | J128: Loss of Rs 10/- | K128: =F128-H128 -> -10 | M128: =N128*K128 -> -12000 | N128: 1200 | O128: UnSuccessful | P128: 2019-02-13 | R128: R
A129: 28 | B129: 2019-02-14 | D129: HINDUNILVR FEB FUT | E129: Buy | F129: 1788.5 | G129: 1769 | H129: 1769 | I129: 1830 | J129: Loss of Rs 19.5/- | K129: =H129-F129 -> -19.5 | M129: =N129*K129 -> -11700 | N129: 600 | O129: UnSuccessful | P129: 2019-02-15 | R129: N
A130: 29 | B130: 2019-02-15 | D130: RBLBANK | E130: Buy | F130: 552.5 | G130: 539 | H130: 564.5 | I130: 580 | J130: Profit of Rs.12/- | K130: 12 | L130: =K130/F130 -> 2.17% | O130: Successful | P130: 2019-02-22 | R130: H
A131: 30 | B131: 2019-02-18 | D131: RELIANCE FEB FUT | E131: Buy | F131: 1242.5 | G131: 1218 | H131: 1218 | I131: 1295 | J131: Loss of Rs 24.5/- | K131: =H131-F131 -> -24.5 | M131: =N131*K131 -> -12250 | N131: 500 | O131: UnSuccessful | P131: 2019-02-19 | R131: H
A132: 31 | B132: 2019-02-18 | D132: KOTAKBANK FEB FUT | E132: Buy | F132: 1290 | G132: 1275 | H132: 1260 | I132: 1315 | J132: Loss of Rs 30/- | K132: =H132-F132 -> -30 | M132: =N132*K132 -> -24000 | N132: 800 | O132: UnSuccessful | P132: 2019-02-22 | R132: N
A133: 32 | B133: 2019-02-19 | D133: UBL FEB FUT | E133: Buy | F133: 1346 | G133: 1329 | H133: 1356 | I133: 1370 | J133: Profit of Rs.10/- | K133: =H133-F133 -> 10 | M133: =N133*K133 -> 7000 | N133: 700 | O133: Successful | P133: 2019-02-19 | R133: N
A134: 33 | B134: 2019-02-19 | D134: BATAINDIA FEB FUT | E134: Sell | F134: 1264 | G134: 1291 | H134: 1249 | I134: 1220 | J134: Profit of Rs.15/- | K134: =F134-H134 -> 15 | M134: 8250 | N134: 550 | O134: Successful | P134: 2019-02-19 | R134: R
A135: 34 | B135: 2019-02-20 | D135: EXIDEIND FEB FUT | E135: Buy | F135: 206 | G135: 200 | H135: 202 | I135: 218 | J135: Loss of Rs 4/- | K135: =H135-F135 -> -4 | M135: =N135*K135 -> -8000 | N135: 2000 | O135: UnSuccessful | P135: 2019-02-20 | R135: N
A136: 35 | B136: 2019-02-20 | D136: ASIANPAINT FEB FUT | E136: Buy | F136: 1390.5 | G136: 1370 | H136: 1401.5 | I136: 1425 | J136: Profit of Rs.11/- | K136: 11 | M136: =N136*K136 -> 6600 | N136: 600 | O136: Successful | P136: 2019-02-21 | R136: N
A137: 36 | B137: 2019-02-21 | D137: KPIT FEB FUT | E137: Sell | F137: 109.5 | G137: 114.7 | H137: 107.75 | I137: 103.1 | J137: Profit of Rs.1.75/- | K137: =F137-H137 -> 1.75 | M137: =N137*K137 -> 3937.5 | N137: 2250 | O137: Successful | P137: 2019-02-22 | R137: R
A138: 37 | B138: 2019-02-21 | D138: TORNTPHARM FEB FUT | E138: Buy | F138: 1777 | G138: 1754 | H138: 1791 | I138: 1820 | J138: Profit of Rs.14/- | K138: =H138-F138 -> 14 | M138: 9800 | N138: 700 | O138: Successful | P138: 2019-02-25 | R138: N
A139: 38 | B139: 2019-02-25 | D139: MGL FEB FUT | E139: Buy | F139: 873-876 | G139: 854 | I139: 910 | J139: Open | R139: N
A144: CLBS = Closing Basis ***
A145: Dividend adjusted <> | F145: Reinitiated $
F146: Revised stoploss #
B147: Quick Pick Intraday
A148: Sr.no | B148: Date | D148: Company | E148: Rec | F148: Rec Price | G148: Stop Loss*** | H148: Call Closed At | I148: Target | J148: Remark | K148: Profit / Loss per Share | L148: Status | M148: Closed Date
A162: Techno -Funda (positional)
A163: Sr.no | B163: Date | D163: Company | E163: Rec | F163: Rec Price | G163: Stop Loss*** | H163: Call Closed At | I163: Target | J163: Remark | K163: Profit / Loss per Share | L163: Gain / Loss % | M163: Status | N163: Closed Date | O163: NSE Closed Price
A166: CLBS = Closing Basis *** | F166: Reinitiated $
A167: Dividend adjusted <> | F167: Revised stoploss #
B172: Investment Idea
A173: Sr.no | B173: Date | D173: Company | E173: Rec | F173: Rec Price | G173: Point of Review | H173: Close Rate | I173: Target | J173: Remark | K173: Profit / Loss per Share | L173: Gain / Loss % | M173: Status | N173: Closed Date
A174: 1 | B174: 2013-11-01 | D174: L&T Finance Holding | E174: Accu | F174: 82.00 | G174: - | H174: 100 | I174: 100.00 | J174: Target Achieved | K174: =H174-F174 -> 18.00 | L174: =K174/F174 -> 21.95% | M174: Successful | N174: 2016-10-14
A175: 2 | B175: 2014-06-04 | D175: Finolex Inds | E175: Buy | F175: 257.00 | G175: - | H175: 300 | I175: 300.00 | J175: Target Achieved | K175: =H175-F175 -> 43.00 | L175: 16.73% | M175: Successful | N175: 2014-07-02
A176: =1+A175 -> 3 | B176: 2014-07-08 | D176: JK Cement | E176: Buy | F176: 393.00 | G176: - | H176: 468 | I176: 468.00 | J176: Target Achieved | K176: =H176-F176 -> 75.00 | L176: 19.08% | M176: Successful | N176: 2014-08-12
A177: 4 | B177: 2014-08-06 | D177: Finolex Cables | E177: Buy | F177: 205.00 | G177: - | H177: 275 | I177: 250.00 | J177: Target Achieved | K177: 70.00 | L177: 34.15% | M177: Successful | N177: 2014-11-19
A178: 5 | B178: 2014-09-04 | D178: Exide Inds | E178: Buy | F178: 162.00 | G178: - | H178: 190 | I178: 190.00 | J178: Target Achieved | K178: 28.00 | L178: 17.28% | M178: Successful | N178: 2015-01-02
A179: 6 | B179: 2014-09-04 | D179: Deepak Nitrite | E179: Buy | F179: 75.00 | G179: - | H179: 91.5 | I179: 95-100 | J179: Profit of Rs.16.50/- | K179: 16.50 | L179: 22.00% | M179: Successful | N179: 2014-11-11
A180: 7 | B180: 2014-10-01 | D180: Mercks | E180: Buy | F180: 850.00 | G180: - | H180: 982.5 | I180: 1050.00 | J180: Profit of Rs.132.50/- | K180: 132.50 | L180: 15.59% | M180: Successful | N180: 2015-02-04
A181: 8 | B181: 2014-10-01 | D181: Grindwell Norton | E181: Buy | F181: 475.00 | G181: - | H181: 515 | I181: 600.00 | J181: Profit of Rs.40/- | K181: 40.00 | L181: 8.42% | M181: Successful | N181: 2014-10-27
A182: 9 | B182: 2014-10-01 | D182: Snowman Logistics | E182: Buy | F182: 86.00 | G182: - | H182: 99 | I182: 140.00 | J182: Profit of Rs.13.00/- | K182: 13.00 | L182: 15.12% | M182: Successful | N182: 2014-10-27
A183: 10 | B183: 2014-10-14 | D183: Birla Corp | E183: Buy | F183: 496.60 | G183: - | H183: 621 | I183: 580.00 | J183: Target Achieved | K183: 124.40 | L183: 25.05% | M183: Successful | N183: 2016-08-23
A184: 11 | B184: 2014-10-14 | D184: Ultratech Cem | E184: Buy | F184: 2481.90 | G184: - | H184: 2840 | I184: 2870.00 | J184: Profit of Rs.358.10/- | K184: 358.10 | L184: 14.43% | M184: Successful | N184: 2015-01-13
A185: =1+A182 -> 10 | B185: 2014-10-16 | D185: Sintex Inds | E185: Buy | F185: 84.50 | G185: - | H185: 93 | I185: 110.00 | J185: Profit of Rs.8.50/- | K185: 8.50 | L185: 10.06% | M185: Successful | N185: 2014-10-27
A186: =1+A185 -> 11 | B186: 2014-10-16 | D186: HSIL | E186: Buy | F186: 401.00 | G186: - | H186: 428 | I186: 450.00 | J186: Profit of Rs.27.00/- | K186: 27.00 | L186: 6.73% | M186: Successful | N186: 2015-01-16
A187: 12 | B187: 2014-10-16 | D187: Eveready Inds | E187: Buy | F187: 101.00 | G187: - | H187: 112 | I187: 120.00 | J187: Profit of Rs.11.00/- | K187: 11.00 | L187: 10.89% | M187: Successful | N187: 2014-10-27
A188: 13 | B188: 2014-11-11 | D188: Pennar Inds | E188: Buy | F188: 59.00 | G188: - | H188: 76 | I188: 76.00 | J188: Target Achieved | K188: 17.00 | L188: 28.81% | M188: Successful | N188: 2017-10-24
A189: 14 | B189: 2014-11-11 | D189: Snowman Logistics | E189: Buy | F189: 99.00 | G189: - | H189: 120 | I189: 120.00 | J189: Profit of Rs.21/- | K189: 21.00 | L189: 21.21% | M189: Successful | N189: 2014-11-17
A190: 15 | B190: 2014-11-13 | D190: Dharamsi Morarji Chem | E190: Buy | F190: 22.00 | G190: - | H190: 33.55 | I190: 32.00 | J190: Profit of Rs 11.55/- | K190: 11.55 | L190: 52.50% | M190: Successful | N190: 2015-07-03
A191: 16 | B191: 2014-12-03 | D191: Tatachem | E191: Buy | F191: 440.00 | G191: - | H191: 520 | I191: 520.00 | J191: Profit of Rs 80.00/- | K191: 80.00 | L191: 18.18% | M191: Successful | N191: 2015-07-23
A192: 17 | B192: 2014-12-03 | D192: Advanta | E192: Buy | F192: 360.00 | G192: - | H192: 427 | I192: 425.00 | J192: Profit of Rs.67.00/- | K192: 67.00 | L192: 18.61% | M192: Successful | N192: 2015-02-23
A193: 18 | B193: 2015-01-08 | D193: GDL | E193: Buy | F193: 360.00 | G193: - | H193: 455 | I193: 420.00 | J193: Profit of Rs.95.00/- | K193: 95.00 | L193: 26.39% | M193: Successful | N193: 2015-01-20
A194: 19 | B194: 2015-01-08 | D194: NRB Bearing | E194: Buy | F194: 130.00 | H194: 175.5 | I194: 165.00 | J194: Profit of Rs 45.50/- | K194: 45.50 | L194: 35.00% | M194: Successful | N194: 2017-12-19
A195: 20 | B195: 2015-02-05 | D195: GSFC | E195: Accu | F195: 98.00 | H195: 120 | I195: 120.00 | J195: Target Achieved | K195: 22.00 | L195: 22.45% | M195: Successful | N195: 2017-01-18
A196: 21 | B196: 2015-02-05 | D196: Sundrmfast | E196: Accu | F196: 196.00 | H196: 262 | I196: 255.00 | J196: Target Achieved | K196: 66.00 | L196: 33.67% | M196: Successful | N196: 2016-08-17
A197: 22 | B197: 2015-03-04 | D197: GPPL | E197: Accu | F197: 230-240 | I197: 280-285 | J197: Open
A198: 23 | B198: 2015-03-04 | D198: ORIENTCEM | E198: Accu | F198: 185.00 | H198: 224 | I198: 220-225 | J198: Target Achieved | K198: 39.00 | L198: =K198/F198 -> 21.08% | M198: Successful | N198: 2016-10-04
A199: 24 | B199: 2015-03-27 | D199: PFS | E199: Accu | F199: 49-50 | I199: 67.00 | J199: Open
A200: 25 | B200: 2015-03-30 | D200: Walchandnagar Ind Ltd | E200: Accu | F200: 183.50 | H200: 219 | I200: 218.00 | J200: Profit of Rs.35.50/- | K200: 35.50 | L200: =K200/F200 -> 19.35% | M200: Successful | N200: 2015-04-09
A201: 26 | B201: 2015-04-20 | D201: Kalpataru Power Transmission Ltd | E201: Accu | F201: =(227+237)/2 -> 232.00 | H201: 298 | I201: 298.00 | J201: Target Achieved | K201: 66.00 | L201: 28.45% | M201: Successful | N201: 2017-03-29
A202: 27 | B202: 2015-05-04 | D202: Mastek Ltd | E202: Buy | F202: 385.00 | H202: =212.5+331 -> 543.5 | I202: 510.00 | J202: Profit of Rs 158.50/- | K202: 158.50 | L202: 41.17% | M202: Successful | N202: 2015-08-19
A203: 28 | B203: 2015-05-04 | D203: Suprajit Eng | E203: Buy | F203: 115.50 | H203: 146 | I203: 142.00 | J203: Profit of Rs 30.50/- | K203: 30.50 | L203: 26.41% | M203: Successful | N203: 2015-07-17
A204: 29 | B204: 2015-05-27 | D204: TCI | E204: Buy | F204: 237.50 | H204: 279.5 | I204: 278.00 | J204: Target Achieved | K204: 42.00 | L204: 17.68% | M204: Successful | N204: 2015-08-06
A205: 30 | B205: 2015-06-19 | D205: HSIL | E205: Accu | F205: 340.00 | H205: 448 | I205: 448.00 | J205: Target Achieved | K205: 108.00 | L205: 31.76% | M205: Successful | N205: 2017-10-10
A206: 31 | B206: 2015-07-06 | D206: Capital First | E206: Accu | F206: 390.00 | H206: 460 | I206: 460.00 | J206: Target Achieved | K206: 70.00 | L206: 17.95% | M206: Successful | N206: 2016-04-18
A207: 32 | B207: 2015-07-10 | D207: Dolphin OffShore | E207: Accu | F207: 122.5 | H207: 61.00 | I207: 172.00 | J207: Loss of Rs.61.50/- | K207: -61.50 | L207: -50.20% | M207: Unsuccessful | N207: 2018-08-21
A208: 33 | B208: 2015-08-03 | D208: Allcargo logistics | E208: Accu | F208: 297.50 | H208: 350 | I208: 360.00 | J208: Profit of Rs 52.50/- | K208: 52.50 | L208: =K208/F208 -> 17.65% | M208: Successful | N208: 2015-08-16
A209: 34 | B209: 2015-08-03 | D209: Camline Fine | E209: Accu | F209: 115.50 | H209: 149 | I209: 140.00 | J209: Profit of Rs 33.50/- | K209: 33.50 | L209: 29.00% | M209: Successful | N209: 2017-01-05
A210: 35 | B210: 2015-09-04 | D210: TCI | E210: Accu | F210: 226.00 | H210: 292 | I210: 292.00 | J210: Target Achieved | K210: 66.00 | L210: 29.20% | M210: Successful | N210: 2015-10-09
A211: 36 | B211: 2015-09-07 | D211: Kalpataru Power Transmission Ltd | E211: Accu | F211: 232.50 | H211: 312.5 | I211: 310.00 | J211: Target Achieved | K211: 80.00 | L211: 34.41% | M211: Successful | N211: 2017-03-29
A212: 37 | B212: 2015-09-21 | D212: LLOYD ELECTRIC & ENG LTD | E212: Accu | F212: 196.50 | H212: 238 | I212: 238.00 | J212: Target Achieved | K212: 41.50 | L212: 21.12% | M212: Successful | N212: 2015-10-14
A213: 38 | B213: 2015-09-24 | D213: L&T Finance Holding | E213: Accu | F213: 65.00 | H213: 82 | I213: 82.00 | J213: Target Achieved | K213: 17.00 | L213: 26.15% | M213: Successful | N213: 2016-07-27
A214: 39 | B214: 2015-10-14 | D214: KEC International ltd | E214: Accu | F214: 144.00 | H214: 182.5 | I214: 181.00 | J214: Target Achieved | K214: 38.50 | L214: 26.74% | M214: Successful | N214: 2017-03-23
A215: 40 | B215: 2015-10-14 | D215: Gruh Finance | E215: Accu | F215: 264.00 | H215: 311 | I215: 311.00 | J215: Target Achieved | K215: 47.00 | L215: 17.80% | M215: Successful | N215: 2016-08-22
A216: 41 | B216: 2015-11-10 | D216: Pidilitind | E216: Buy | F216: 549.50 | H216: 630 | I216: 630.00 | J216: Target Achieved | K216: 80.50 | L216: 14.65% | M216: Successful | N216: 2016-02-19
A217: 42 | B217: 2015-12-04 | D217: Zensar Technology | E217: Accu | F217: 1027.50 | H217: 1315 | I217: 1250.00 | J217: Target Achieved | K217: =H217-F217 -> 287.50 | L217: 27.98% | M217: Successful | N217: 2018-05-24
A218: 43 | B218: 2015-12-29 | D218: Vinati Organics Ltd | E218: Accu | F218: 465.00 | H218: 540 | I218: 540.00 | J218: Target Achieved | K218: 75.00 | L218: =K218/F218 -> 16.13% | M218: Successful | N218: 2016-06-09
A219: 44 | B219: 2016-01-11 | D219: GSFC | E219: Buy | F219: 81.00 | H219: 110 | I219: 110.00 | J219: Target Achieved | K219: 29.00 | L219: 35.80% | M219: Successful | N219: 2017-01-10
A220: 45 | B220: 2016-01-13 | D220: SSWL | E220: Buy | F220: 417.50 | H220: 547 | I220: 535.00 | J220: Target Achieved | K220: 129.50 | L220: 31.02% | M220: Successful | N220: 2016-07-27
A221: 46 | B221: 2016-02-08 | D221: Persistent System Ltd | E221: Accu | F221: 650.00 | H221: 800 | I221: 800.00 | J221: Target Achieved | K221: 150.00 | L221: 23.08% | M221: Successful | N221: 2018-02-23
A222: 47 | B222: 2016-03-04 | D222: UPL | E222: Accu | F222: 437.50 | H222: 504.5 | I222: 522.00 | J222: Profit of Rs.67/- | K222: 67.00 | L222: 15.31% | M222: Successful | N222: 2016-04-20
A223: 48 | B223: 2016-03-09 | D223: Ashoka Buildcon Ltd | E223: Accu | F223: 189.50 | H223: 218 | I223: 218.00 | J223: Target Achieved | K223: 28.50 | L223: 15.04% | M223: Successful | N223: 2017-10-26
A224: 49 | B224: 2016-04-11 | D224: PTC INDIA FIN SERV LTD | E224: Accu | F224: 36-37 | I224: 60.00 | J224: Open
A225: 50 | B225: 2016-04-12 | D225: CAMLINFINE $ | E225: Accu | F225: 93.00 | H225: 149 | I225: 140.00 | J225: Profit of Rs 56/- | K225: 56.00 | L225: =K225/F225 -> 60.22% | M225: Successful | N225: 2017-01-05
A226: 51 | B226: 2016-04-12 | D226: Greaves Cotton Ltd. | E226: Accu | F226: 130.00 | H226: 150 | I226: 150-155 | J226: Target Achieved | K226: 20.00 | L226: 15.38% | M226: Successful | N226: 2016-07-13
A227: 52 | B227: 2016-04-13 | D227: DHFL | E227: Accu | F227: 196.00 | H227: 299 | I227: 299.00 | J227: Target Achieved | K227: 103.00 | L227: 52.55% | M227: Successful | N227: 2016-09-07
A228: 53 | B228: 2016-04-13 | D228: Magma | E228: Accu | F228: 88.00 | H228: 103 | I228: 103.00 | J228: Target Achieved | K228: 15.00 | L228: 17.05% | M228: Successful | N228: 2016-06-09
A229: 54 | B229: 2016-05-02 | D229: KEC International ltd $ | E229: Accu | F229: 127.50 | H229: 148 | I229: 148-150 | J229: Target Achieved | K229: 20.50 | L229: 16.08% | M229: Successful | N229: 2016-07-13
A230: 55 | B230: 2016-05-03 | D230: Mindtree | E230: Accu | F230: 675.00 | H230: 815 | I230: 790-800 | J230: Target Achieved | K230: 140.00 | L230: 20.74% | M230: Successful | N230: 2018-02-23
A231: 56 | B231: 2016-06-01 | D231: Atulauto | E231: Accu | F231: 495-505 | I231: 565-570 | J231: Open
A232: 57 | B232: 2016-06-06 | D232: TRITURBINE | E232: Accu | F232: 110.00 | H232: 126.5 | I232: 125.00 | J232: Profit of Rs.16.50/- | K232: 16.50 | L232: =K232/F232 -> 15.00% | M232: Successful | N232: 2016-07-01
A233: 58 | B233: 2016-06-17 | D233: Pennar Industries Ltd | E233: Accu | F233: 44.00 | H233: 69.5 | I233: 69.50 | J233: Profit of Rs.25.50/- | K233: 25.50 | L233: =K233/F233 -> 57.95% | M233: Successful | N233: 2017-08-30
A234: 59 | B234: 2016-06-28 | D234: EVEREADY INDS. IND. LTD. | E234: Accu | F234: 262.50 | H234: 340 | I234: 333.00 | J234: Profit of Rs.77.50/- | K234: 77.50 | L234: =K234/F234 -> 29.52% | M234: Successful | N234: 2017-10-09
A235: 60 | B235: 2016-06-28 | D235: FIEM INDUSTRIES LIMITED | E235: Accu | F235: 840.00 | H235: 1230 | I235: 1230.00 | J235: Target Achieved | K235: 390.00 | L235: =K235/F235 -> 46.43% | M235: Successful | N235: 2016-10-06
A236: 61 | B236: 2016-07-05 | D236: Bajaj Corp Ltd | E236: Accu | F236: 395 | H236: 468.50 | I236: 510.00 | J236: Part profit of Rs.73.50/- | K236: 73.50 | L236: =K236/F236 -> 19% | M236: Successful | N236: 2017-08-30
A237: 62 | B237: 2016-08-02 | D237: GPPL $ | E237: Buy | F237: 167-172 | I237: 198-200 | J237: Open
A238: 63 | B238: 2016-08-04 | D238: WONDERLA HOLIDAYS LTD | E238: Accu | F238: 395-405 | I238: 475.00 | J238: Open
A239: 64 | B239: 2016-08-11 | D239: CAMLINFINE | E239: Accu | F239: 86.50 | H239: 130 | I239: 130.00 | J239: Profit of Rs.43.50/- | K239: =H239-F239 -> 43.50 | L239: =K239/F239 -> 50.29% | M239: Successful | N239: 2017-12-22
A240: 65 | B240: 2016-08-18 | D240: GRANULES | E240: Accu | F240: 133.5 | H240: 126.50 | I240: 178.00 | J240: Exit | K240: -7.00 | L240: -5.24% | M240: Unsuccessful | N240: 2016-09-02
A241: 66 | B241: 2016-08-31 | D241: VA TECH WABAG | E241: Accu | F241: 560.00 | H241: 725 | I241: 725.00 | J241: Target Achieved | K241: 165.00 | L241: 29.46% | M241: Successful | N241: 2016-03-27
A242: 67 | B242: 2016-09-01 | D242: SKIPPER LIMITED | E242: Accu | F242: 160.50 | H242: 210 | I242: 210.00 | J242: Target Achieved | K242: 49.50 | L242: 30.84% | M242: Successful | N242: 2017-05-16
A243: 68 | B243: 2016-10-03 | D243: IFB Industries | E243: Accu | F243: 430.00 | H243: 596 | I243: 575.00 | J243: Profit of Rs.166/- | K243: 166.00 | L243: 38.60% | M243: Successful | N243: 2017-02-03
A244: 69 | B244: 2016-10-14 | D244: ASIANTILES | E244: Accu | F244: 280.00 | H244: 345 | I244: 345.00 | J244: Target Achieved | K244: 65.00 | L244: 23.21% | M244: Successful | N244: 2017-03-20
A245: 70 | B245: 2016-10-14 | D245: DEEPIND | E245: Accu | F245: 245.00 | H245: 325.5 | I245: 330.00 | J245: Profit of Rs.80.5/- | K245: 80.50 | L245: 32.86% | M245: Successful | N245: 2017-02-03
A246: 71 | B246: 2016-10-17 | D246: DCBBANK | E246: Accu | F246: 125.00 | H246: 160 | I246: 160.00 | J246: Target Achieved | K246: 35.00 | L246: 28.00% | M246: Successful | N246: 2017-03-09
A247: 72 | B247: 2016-10-17 | D247: ORIENTREF | E247: Accu | F247: 114.00 | H247: 145 | I247: 145.00 | J247: Target Achieved | K247: 31.00 | L247: =K247/F247 -> 27.19% | M247: Successful | N247: 2017-05-04
A248: 73 | B248: 2016-10-17 | D248: GANECOS | E248: Accu | F248: 212.00 | H248: 280 | I248: 276.00 | J248: Profit of Rs.68/- | K248: 68.00 | L248: =K248/F248 -> 32.08% | M248: Successful | N248: 2017-05-03
A249: 74 | B249: 2016-11-04 | D249: NBCC | E249: Accu | F249: 155.00 | H249: 210 | I249: 210.00 | J249: Profit of Rs.55/- | K249: 55.00 | L249: =K249/F249 -> 35.48% | M249: Successful | N249: 2017-07-28
A250: 75 | B250: 2016-12-06 | D250: PRECAM | E250: Accu | F250: 150.5 | H250: 72.50 | I250: 174.00 | J250: Loss of Rs.78/- | K250: -78.00 | L250: =K250/F250 -> -51.83% | M250: Unsuccessful | N250: 2018-08-21
A251: 76 | B251: 2016-12-08 | D251: INFRATEL | E251: Accu | F251: 380.00 | H251: 478 | I251: 468.00 | J251: Target Achieved | K251: 98.00 | L251: =K251/F251 -> 25.79% | M251: Successful | N251: 2017-10-17
... 71 more rows

Sheet Sheet2 (hidden)
A1: SYMBOL | B1: SERIES | C1: OPEN | D1: HIGH | E1: LOW | F1: CLOSE | G1: LAST | H1: PREVCLOSE | I1: TOTTRDQTY | J1: TOTTRDVAL | K1: TIMESTAMP | L1: TOTALTRADES | M1: ISIN | N1: ISIN
A2: 20MICRONS | B2: EQ | C2: 35.2 | D2: 36.2 | E2: 34.5 | F2: 35.9 | G2: 35.55 | H2: 34.65 | I2: 33738 | J2: 1200321.9 | K2: 2019-02-25 | L2: 397 | M2: INE144J01027
A3: 21STCENMGM | B3: EQ | C3: 18.65 | D3: 18.65 | E3: 17.95 | F3: 18 | G3: 18.3 | H3: 18.3 | I3: 2964 | J3: 53552.4 | K3: 2019-02-25 | L3: 25 | M3: INE253B01015
A4: 3IINFOTECH | B4: EQ | C4: 3.95 | D4: 3.95 | E4: 3.7 | F4: 3.75 | G4: 3.75 | H4: 3.9 | I4: 2498830 | J4: 9422261.85 | K4: 2019-02-25 | L4: 1208 | M4: INE748C01020
A5: 3MINDIA | B5: EQ | C5: 23252.2 | D5: 24500 | E5: 23219.55 | F5: 23648.35 | G5: 23450 | H5: 23362.5 | I5: 4558 | J5: 109353752.9 | K5: 2019-02-25 | L5: 2373 | M5: INE470A01017
A6: 3PLAND | B6: EQ | C6: 10.9 | D6: 11.25 | E6: 10.5 | F6: 10.55 | G6: 10.55 | H6: 10.85 | I6: 2297 | J6: 25318.3 | K6: 2019-02-25 | L6: 16 | M6: INE105C01023
A7: 5PAISA | B7: EQ | C7: 228.95 | D7: 235 | E7: 226.35 | F7: 228 | G7: 229.25 | H7: 224.45 | I7: 1612 | J7: 370669.3 | K7: 2019-02-25 | L7: 76 | M7: INE618L01018
A8: 63MOONS | B8: EQ | C8: 76.55 | D8: 83.25 | E8: 76.45 | F8: 80.75 | G8: 80.2 | H8: 75.8 | I8: 570219 | J8: 45779329 | K8: 2019-02-25 | L8: 8022 | M8: INE111B01023
A9: 8KMILES | B9: EQ | C9: 112.4 | D9: 113.5 | E9: 109.2 | F9: 109.8 | G9: 109.7 | H9: 112.2 | I9: 130176 | J9: 14470061.05 | K9: 2019-02-25 | L9: 1505 | M9: INE650K01021
A10: A2ZINFRA | B10: EQ | C10: 15.35 | D10: 16.05 | E10: 15.05 | F10: 16.05 | G10: 16.05 | H10: 15.3 | I10: 590307 | J10: 9260648.35 | K10: 2019-02-25 | L10: 1099 | M10: INE619I01012
A11: AARTIDRUGS | B11: EQ | C11: 589.85 | D11: 604.9 | E11: 589 | F11: 594.2 | G11: 591.5 | H11: 589.85 | I11: 6284 | J11: 3746771.05 | K11: 2019-02-25 | L11: 630 | M11: INE767A01016
A12: AARTIIND | B12: EQ | C12: 1402 | D12: 1430 | E12: 1400 | F12: 1413.4 | G12: 1410.25 | H12: 1409.75 | I12: 66086 | J12: 93925078.9 | K12: 2019-02-25 | L12: 6911 | M12: INE769A01020
A13: AARVEEDEN | B13: EQ | C13: 22.75 | D13: 22.75 | E13: 21.05 | F13: 21.75 | G13: 21.75 | H13: 21.45 | I13: 13167 | J13: 286442.2 | K13: 2019-02-25 | L13: 269 | M13: INE273D01019
A14: AAVAS | B14: EQ | C14: 1000.3 | D14: 1023 | E14: 977 | F14: 987.9 | G14: 985 | H14: 999.3 | I14: 32770 | J14: 32811274.4 | K14: 2019-02-25 | L14: 2081 | M14: INE216P01012
A15: ABAN | B15: EQ | C15: 53.55 | D15: 55.3 | E15: 53.5 | F15: 54.5 | G15: 54.2 | H15: 53.55 | I15: 488704 | J15: 26521156.15 | K15: 2019-02-25 | L15: 4018 | M15: INE421A01028
A16: ABB | B16: EQ | C16: 1250 | D16: 1264.5 | E16: 1244 | F16: 1246.55 | G16: 1245 | H16: 1248.3 | I16: 33418 | J16: 41943942.7 | K16: 2019-02-25 | L16: 2532 | M16: INE117A01022
A17: ABBOTINDIA | B17: EQ | C17: 7231 | D17: 7384.95 | E17: 7220 | F17: 7375 | G17: 7375 | H17: 7230.55 | I17: 2228 | J17: 16334601.5 | K17: 2019-02-25 | L17: 514 | M17: INE358A01014
A18: ABCAPITAL | B18: EQ | C18: 88.1 | D18: 89.8 | E18: 87.5 | F18: 88.7 | G18: 88.5 | H18: 86.8 | I18: 3864761 | J18: 342584113.7 | K18: 2019-02-25 | L18: 51113 | M18: INE674K01013
A19: ABFRL | B19: EQ | C19: 220.25 | D19: 229.7 | E19: 217.55 | F19: 225.8 | G19: 225.55 | H19: 220.25 | I19: 579619 | J19: 129658762.7 | K19: 2019-02-25 | L19: 7419 | M19: INE647O01011
A20: ABSLNN50ET | B20: EQ | C20: 260.24 | D20: 260.24 | E20: 258 | F20: 258 | G20: 258 | H20: 260.24 | I20: 22 | J20: 5698.4 | K20: 2019-02-25 | L20: 2 | M20: INF209KB1B87
A21: ACC | B21: EQ | C21: 1390.6 | D21: 1392.8 | E21: 1368.4 | F21: 1376.15 | G21: 1375 | H21: 1383.7 | I21: 751219 | J21: 1033900247 | K21: 2019-02-25 | L21: 27519 | M21: INE012A01025
A22: ACCELYA | B22: EQ | C22: 930 | D22: 930 | E22: 909.95 | F22: 920.85 | G22: 920 | H22: 923.25 | I22: 5855 | J22: 5376381.8 | K22: 2019-02-25 | L22: 339 | M22: INE793A01012
A23: ACE | B23: EQ | C23: 76.4 | D23: 80.15 | E23: 76.4 | F23: 77.5 | G23: 77.4 | H23: 75.75 | I23: 427544 | J23: 33420033.6 | K23: 2019-02-25 | L23: 7045 | M23: INE731H01025
A24: ADANIENT | B24: EQ | C24: 125 | D24: 133.9 | E24: 123 | F24: 132 | G24: 130.65 | H24: 128.05 | I24: 12769956 | J24: 1654936163 | K24: 2019-02-25 | L24: 70459 | M24: INE423A01024
A25: ADANIGAS | B25: EQ | C25: 102.2 | D25: 103.9 | E25: 100.25 | F25: 100.8 | G25: 100.3 | H25: 102.2 | I25: 344984 | J25: 35038115.15 | K25: 2019-02-25 | L25: 2508 | M25: INE399L01023
A26: ADANIGREEN | B26: EQ | C26: 33.4 | D26: 33.5 | E26: 32.3 | F26: 32.95 | G26: 33 | H26: 32.7 | I26: 493358 | J26: 16196661.8 | K26: 2019-02-25 | L26: 1564 | M26: INE364U01010
A27: ADANIPORTS | B27: EQ | C27: 329 | D27: 339.55 | E27: 320.6 | F27: 324.55 | G27: 325.5 | H27: 354.3 | I27: 21795407 | J27: 7139738423 | K27: 2019-02-25 | L27: 225417 | M27: INE742F01042
A28: ADANIPOWER | B28: EQ | C28: 39.85 | D28: 41 | E28: 36.35 | F28: 40.45 | G28: 40.6 | H28: 39.85 | I28: 17835657 | J28: 699999919 | K28: 2019-02-25 | L28: 36106 | M28: INE814H01011
A29: ADANITRANS | B29: EQ | C29: 213.2 | D29: 216.35 | E29: 208.75 | F29: 210.3 | G29: 208.75 | H29: 213.45 | I29: 104497 | J29: 22115439.9 | K29: 2019-02-25 | L29: 6801 | M29: INE931S01010
A30: ADFFOODS | B30: EQ | C30: 228 | D30: 228 | E30: 219.1 | F30: 221.65 | G30: 221.9 | H30: 230.3 | I30: 37368 | J30: 8294665.65 | K30: 2019-02-25 | L30: 926 | M30: INE982B01019
A31: ADHUNIK | B31: EQ | C31: 1.45 | D31: 1.45 | E31: 1.35 | F31: 1.45 | G31: 1.45 | H31: 1.4 | I31: 45806 | J31: 65194.1 | K31: 2019-02-25 | L31: 52 | M31: INE400H01019
A32: ADHUNIKIND | B32: EQ | C32: 42 | D32: 42.95 | E32: 40 | F32: 41.2 | G32: 41.45 | H32: 40.3 | I32: 114873 | J32: 4759403.65 | K32: 2019-02-25 | L32: 403 | M32: INE452L01012
A33: ADLABS | B33: EQ | C33: 9.6 | D33: 9.6 | E33: 9 | F33: 9.1 | G33: 9.2 | H33: 9.15 | I33: 399060 | J33: 3778140.85 | K33: 2019-02-25 | L33: 438 | M33: INE172N01012
A34: ADORWELD | B34: EQ | C34: 312.05 | D34: 315 | E34: 306.55 | F34: 310.45 | G34: 312.9 | H34: 312.55 | I34: 1781 | J34: 555153.05 | K34: 2019-02-25 | L34: 126 | M34: INE045A01017
A35: ADROITINFO | B35: EQ | C35: 16.05 | D35: 16.15 | E35: 15.65 | F35: 15.95 | G35: 16 | H35: 16 | I35: 809 | J35: 12947.65 | K35: 2019-02-25 | L35: 11 | M35: INE737B01033
A36: ADSL | B36: EQ | C36: 12.6 | D36: 12.6 | E36: 11.9 | F36: 12.55 | G36: 12.6 | H36: 12.25 | I36: 14049 | J36: 169376.55 | K36: 2019-02-25 | L36: 72 | M36: INE102I01027
A37: ADVANIHOTR | B37: EQ | C37: 67.05 | D37: 69 | E37: 66.5 | F37: 68.05 | G37: 68.5 | H37: 66.75 | I37: 1504 | J37: 102421.8 | K37: 2019-02-25 | L37: 56 | M37: INE199C01026
A38: ADVENZYMES | B38: EQ | C38: 153.85 | D38: 153.9 | E38: 151.2 | F38: 151.9 | G38: 152.3 | H38: 153.85 | I38: 479896 | J38: 73498013.95 | K38: 2019-02-25 | L38: 1924 | M38: INE837H01020
A39: AEGISCHEM | B39: EQ | C39: 199.45 | D39: 200 | E39: 197.5 | F39: 199.45 | G39: 199 | H39: 197.45 | I39: 116180 | J39: 23100073.35 | K39: 2019-02-25 | L39: 9326 | M39: INE208C01025
A40: AGARIND | B40: EQ | C40: 164.45 | D40: 175.4 | E40: 164.45 | F40: 168.1 | G40: 168.1 | H40: 163.95 | I40: 4477 | J40: 752517.7 | K40: 2019-02-25 | L40: 35 | M40: INE204E01012
A41: AGCNET | B41: EQ | C41: 102 | D41: 109 | E41: 96.1 | F41: 106.2 | G41: 105.2 | H41: 99.95 | I41: 19503 | J41: 2041693.25 | K41: 2019-02-25 | L41: 171 | M41: INE676A01019
A42: AGLSL | B42: EQ | C42: 61 | D42: 62.5 | E42: 58.25 | F42: 58.95 | G42: 59 | H42: 60.9 | I42: 23597 | J42: 1396611.75 | K42: 2019-02-25 | L42: 305 | M42: INE517U01013
A43: AGRITECH | B43: EQ | C43: 51 | D43: 51 | E43: 49 | F43: 50.7 | G43: 50.8 | H43: 51.15 | I43: 4885 | J43: 243715.1 | K43: 2019-02-25 | L43: 133 | M43: INE449G01018
A44: AHLEAST | B44: EQ | C44: 238.25 | D44: 238.25 | E44: 230 | F44: 232.05 | G44: 232.5 | H44: 232.7 | I44: 729 | J44: 168385.4 | K44: 2019-02-25 | L44: 59 | M44: INE926K01017
A45: AHLUCONT | B45: EQ | C45: 266.55 | D45: 277 | E45: 266 | F45: 274.55 | G45: 276.7 | H45: 262.35 | I45: 75633 | J45: 20742012.95 | K45: 2019-02-25 | L45: 402 | M45: INE758C01029
A46: AHLWEST | B46: EQ | C46: 335 | D46: 356.95 | E46: 326.25 | F46: 348.35 | G46: 345 | H46: 349 | I46: 727 | J46: 251446.25 | K46: 2019-02-25 | L46: 68 | M46: INE915K01010
A47: AIAENG | B47: EQ | C47: 1723.85 | D47: 1723.85 | E47: 1667.65 | F47: 1680.15 | G47: 1671 | H47: 1701.4 | I47: 7326 | J47: 12455647.1 | K47: 2019-02-25 | L47: 1444 | M47: INE212H01026
A48: AIFL | B48: BE | C48: 12.75 | D48: 12.75 | E48: 12.15 | F48: 12.75 | G48: 12.75 | H48: 12.15 | I48: 117666 | J48: 1491222.45 | K48: 2019-02-25 | L48: 323 | M48: INE428O01016
A49: AIONJSW | B49: EQ | C49: 33.2 | D49: 33.35 | E49: 32.1 | F49: 32.85 | G49: 32.75 | H49: 32.7 | I49: 21447 | J49: 703359.35 | K49: 2019-02-25 | L49: 114 | M49: INE743C01021
A50: AJANTPHARM | B50: EQ | C50: 984.25 | D50: 990 | E50: 965 | F50: 972.1 | G50: 971.9 | H50: 984.25 | I50: 341286 | J50: 332330598.1 | K50: 2019-02-25 | L50: 9804 | M50: INE031B01049
A51: AJMERA | B51: EQ | C51: 174.95 | D51: 177.95 | E51: 171.25 | F51: 172.45 | G51: 173 | H51: 170.4 | I51: 408858 | J51: 71283853.65 | K51: 2019-02-25 | L51: 6447 | M51: INE298G01027
A52: AKSHARCHEM | B52: EQ | C52: 325.1 | D52: 326.45 | E52: 315.6 | F52: 321.95 | G52: 317.05 | H52: 330.7 | I52: 2656 | J52: 857063.8 | K52: 2019-02-25 | L52: 202 | M52: INE542B01011
A53: AKSHOPTFBR | B53: EQ | C53: 19.15 | D53: 19.5 | E53: 18.95 | F53: 19.2 | G53: 19.2 | H53: 18.9 | I53: 289555 | J53: 5563355.9 | K53: 2019-02-25 | L53: 1118 | M53: INE523B01011
A54: AKZOINDIA | B54: EQ | C54: 1739.85 | D54: 1739.85 | E54: 1683 | F54: 1690.65 | G54: 1685.9 | H54: 1727.85 | I54: 2458 | J54: 4173227.95 | K54: 2019-02-25 | L54: 564 | M54: INE133A01011
A55: ALANKIT | B55: EQ | C55: 31.2 | D55: 31.2 | E55: 28.5 | F55: 28.8 | G55: 28.65 | H55: 31.3 | I55: 659171 | J55: 19203466.7 | K55: 2019-02-25 | L55: 1745 | M55: INE914E01040
A56: ALBERTDAVD | B56: EQ | C56: 388.2 | D56: 394.8 | E56: 386 | F56: 387.7 | G56: 387.5 | H56: 387.55 | I56: 2466 | J56: 958799.6 | K56: 2019-02-25 | L56: 102 | M56: INE155C01010
A57: ALBK | B57: EQ | C57: 45.25 | D57: 45.85 | E57: 44.7 | F57: 45.05 | G57: 45.1 | H57: 45.85 | I57: 4692895 | J57: 212432053.6 | K57: 2019-02-25 | L57: 10094 | M57: INE428A01015
A58: ALCHEM | B58: BE | C58: 1.85 | D58: 1.85 | E58: 1.8 | F58: 1.85 | G58: 1.85 | H58: 1.85 | I58: 14691 | J58: 26509.35 | K58: 2019-02-25 | L58: 28 | M58: INE964B01033
A59: ALEMBICLTD | B59: EQ | C59: 41.4 | D59: 41.6 | E59: 40.65 | F59: 40.75 | G59: 40.75 | H59: 41.35 | I59: 128019 | J59: 5240163.7 | K59: 2019-02-25 | L59: 839 | M59: INE426A01027
A60: ALICON | B60: EQ | C60: 525 | D60: 548.8 | E60: 525 | F60: 543.35 | G60: 544.5 | H60: 520.35 | I60: 3315 | J60: 1790151.25 | K60: 2019-02-25 | L60: 322 | M60: INE062D01024
A61: ALKALI | B61: EQ | C61: 43.45 | D61: 43.5 | E61: 40.1 | F61: 40.5 | G61: 40.65 | H61: 41.5 | I61: 6009 | J61: 245762.35 | K61: 2019-02-25 | L61: 226 | M61: INE773I01017
A62: ALKEM | B62: EQ | C62: 1814.65 | D62: 1821.05 | E62: 1761.1 | F62: 1779.4 | G62: 1777.25 | H62: 1809.65 | I62: 119469 | J62: 212836434.3 | K62: 2019-02-25 | L62: 7938 | M62: INE540L01014
A63: ALKYLAMINE | B63: EQ | C63: 715.45 | D63: 725.45 | E63: 711 | F63: 718.6 | G63: 716.15 | H63: 711.45 | I63: 3069 | J63: 2205096.45 | K63: 2019-02-25 | L63: 149 | M63: INE150B01021
A64: ALLCARGO | B64: EQ | C64: 103 | D64: 103.5 | E64: 100.1 | F64: 100.4 | G64: 100.5 | H64: 102.75 | I64: 106994 | J64: 10854599.7 | K64: 2019-02-25 | L64: 1534 | M64: INE418H01029
A65: ALLSEC | B65: EQ | C65: 177 | D65: 182.65 | E65: 176 | F65: 180.3 | G65: 181.7 | H65: 178.6 | I65: 24451 | J65: 4334706.15 | K65: 2019-02-25 | L65: 416 | M65: INE835G01018
A66: ALMONDZ | B66: EQ | C66: 23.3 | D66: 23.3 | E66: 21 | F66: 22.2 | G66: 23.2 | H66: 23.3 | I66: 1349 | J66: 29605.6 | K66: 2019-02-25 | L66: 31 | M66: INE326B01027
A67: ALOKTEXT | B67: EQ | C67: 3.5 | D67: 3.5 | E67: 3.35 | F67: 3.4 | G67: 3.4 | H67: 3.45 | I67: 1846488 | J67: 6368490.1 | K67: 2019-02-25 | L67: 750 | M67: INE270A01011
A68: ALPA | B68: EQ | C68: 23.95 | D68: 25.1 | E68: 23.05 | F68: 24.25 | G68: 24.3 | H68: 23.55 | I68: 52176 | J68: 1268655.8 | K68: 2019-02-25 | L68: 461 | M68: INE385I01010
A69: ALPHAGEO | B69: EQ | C69: 400.1 | D69: 410 | E69: 400.1 | F69: 408.05 | G69: 408.9 | H69: 408.4 | I69: 5109 | J69: 2082593.75 | K69: 2019-02-25 | L69: 303 | M69: INE137C01018
A70: AMARAJABAT | B70: EQ | C70: 730.15 | D70: 754.4 | E70: 728.8 | F70: 732.1 | G70: 732.35 | H70: 730.15 | I70: 264694 | J70: 194528088.4 | K70: 2019-02-25 | L70: 8055 | M70: INE885A01032
A71: AMBER | B71: EQ | C71: 666 | D71: 687.5 | E71: 666 | F71: 685.15 | G71: 687.5 | H71: 669.45 | I71: 4260 | J71: 2900883.55 | K71: 2019-02-25 | L71: 430 | M71: INE371P01015
A72: AMBIKCO | B72: EQ | C72: 1145 | D72: 1145 | E72: 1129.95 | F72: 1135.25 | G72: 1135 | H72: 1141.45 | I72: 1348 | J72: 1531215.35 | K72: 2019-02-25 | L72: 167 | M72: INE540G01014
A73: AMBUJACEM | B73: EQ | C73: 211.85 | D73: 212.45 | E73: 209 | F73: 210.1 | G73: 210 | H73: 210.95 | I73: 1323218 | J73: 278280218.2 | K73: 2019-02-25 | L73: 17356 | M73: INE079A01024
A74: AMDIND | B74: EQ | C74: 22.4 | D74: 22.9 | E74: 21.35 | F74: 22.8 | G74: 22.8 | H74: 22.4 | I74: 7875 | J74: 173497.15 | K74: 2019-02-25 | L74: 53 | M74: INE005I01014
A75: AMJLAND | B75: EQ | C75: 19.25 | D75: 20.9 | E75: 19.2 | F75: 20.35 | G75: 20.65 | H75: 19.45 | I75: 6675 | J75: 134207.95 | K75: 2019-02-25 | L75: 58 | M75: INE606A01024
A76: AMRUTANJAN | B76: EQ | C76: 300 | D76: 312.7 | E76: 298 | F76: 301.3 | G76: 302 | H76: 297.2 | I76: 24210 | J76: 7364123.4 | K76: 2019-02-25 | L76: 1986 | M76: INE098F01031
A77: ANANTRAJ | B77: EQ | C77: 33.5 | D77: 33.75 | E77: 32.3 | F77: 32.55 | G77: 32.65 | H77: 32.2 | I77: 1178024 | J77: 38738052 | K77: 2019-02-25 | L77: 5283 | M77: INE242C01024
A78: ANDHRABANK | B78: EQ | C78: 25.25 | D78: 25.3 | E78: 25 | F78: 25.05 | G78: 25 | H78: 25.1 | I78: 358538 | J78: 9008742.1 | K78: 2019-02-25 | L78: 1191 | M78: INE434A01013
A79: ANDHRACEMT | B79: EQ | C79: 4.6 | D79: 5.1 | E79: 4.6 | F79: 4.85 | G79: 4.95 | H79: 4.5 | I79: 275466 | J79: 1331891.6 | K79: 2019-02-25 | L79: 457 | M79: INE666E01012
A80: ANDHRSUGAR | B80: EQ | C80: 315.7 | D80: 358.8 | E80: 314.1 | F80: 344.25 | G80: 340.1 | H80: 314.75 | I80: 464580 | J80: 160815666.9 | K80: 2019-02-25 | L80: 15400 | M80: INE715B01013
A81: ANGIND | B81: BE | C81: 1.2 | D81: 1.25 | E81: 1.15 | F81: 1.2 | G81: 1.2 | H81: 1.2 | I81: 3281 | J81: 3802.65 | K81: 2019-02-25 | L81: 11 | M81: INE017D01010
A82: ANIKINDS | B82: EQ | C82: 17 | D82: 17 | E82: 16.4 | F82: 16.5 | G82: 16.5 | H82: 16.85 | I82: 2366 | J82: 39118.8 | K82: 2019-02-25 | L82: 47 | M82: INE087B01017
A83: ANKITMETAL | B83: BE | C83: 0.5 | D83: 0.5 | E83: 0.45 | F83: 0.45 | G83: 0.5 | H83: 0.45 | I83: 7487 | J83: 3684.7 | K83: 2019-02-25 | L83: 15 | M83: INE106I01010
A84: ANSALAPI | B84: EQ | C84: 13.65 | D84: 13.65 | E84: 12 | F84: 12.1 | G84: 12.15 | H84: 11.95 | I84: 983861 | J84: 12459176.35 | K84: 2019-02-25 | L84: 2709 | M84: INE436A01026
A85: ANSALHSG | B85: EQ | C85: 16.55 | D85: 16.85 | E85: 14.8 | F85: 15 | G85: 15 | H85: 15.35 | I85: 1566215 | J85: 25322509.35 | K85: 2019-02-25 | L85: 4226 | M85: INE880B01015
A86: ANTGRAPHIC | B86: BE | C86: 0.45 | D86: 0.5 | E86: 0.45 | F86: 0.5 | G86: 0.5 | H86: 0.5 | I86: 5786 | J86: 2878.45 | K86: 2019-02-25 | L86: 11 | M86: INE414B01021
A87: APARINDS | B87: EQ | C87: 628.1 | D87: 630.15 | E87: 622.05 | F87: 625.1 | G87: 625 | H87: 628.05 | I87: 6630 | J87: 4141356.45 | K87: 2019-02-25 | L87: 2338 | M87: INE372A01015
A88: APCL | B88: EQ | C88: 107 | D88: 107 | E88: 101.35 | F88: 103.55 | G88: 102.65 | H88: 105.25 | I88: 1543 | J88: 159435.05 | K88: 2019-02-25 | L88: 61 | M88: INE071F01012
A89: APCOTEXIND | B89: EQ | C89: 468.75 | D89: 471.5 | E89: 455.6 | F89: 462.4 | G89: 460 | H89: 459.8 | I89: 1976 | J89: 917091.85 | K89: 2019-02-25 | L89: 278 | M89: INE116A01024
A90: APEX | B90: EQ | C90: 298.9 | D90: 315 | E90: 298.05 | F90: 311.4 | G90: 310.8 | H90: 297.85 | I90: 98236 | J90: 30227873.95 | K90: 2019-02-25 | L90: 2753 | M90: INE346W01013
A91: APLAPOLLO | B91: EQ | C91: 1160 | D91: 1190 | E91: 1160 | F91: 1174.65 | G91: 1178.05 | H91: 1159.05 | I91: 15247 | J91: 17976121.75 | K91: 2019-02-25 | L91: 1000 | M91: INE702C01019
A92: APLLTD | B92: EQ | C92: 525.5 | D92: 544 | E92: 521.05 | F92: 539.6 | G92: 540.05 | H92: 525.5 | I92: 23986 | J92: 12750088.85 | K92: 2019-02-25 | L92: 2264 | M92: INE901L01018
A93: APOLLO | B93: EQ | C93: 100.5 | D93: 106 | E93: 100.5 | F93: 101.75 | G93: 102 | H93: 102.3 | I93: 11689 | J93: 1195619 | K93: 2019-02-25 | L93: 277 | M93: INE713T01010
A94: APOLLOHOSP | B94: EQ | C94: 1145.9 | D94: 1198 | E94: 1131.4 | F94: 1187.45 | G94: 1184 | H94: 1146.2 | I94: 1374338 | J94: 1606636375 | K94: 2019-02-25 | L94: 43442 | M94: INE437A01024
A95: APOLLOTYRE | B95: EQ | C95: 211.05 | D95: 214.4 | E95: 210.25 | F95: 211.25 | G95: 211.5 | H95: 210.15 | I95: 2445738 | J95: 518371283.9 | K95: 2019-02-25 | L95: 26273 | M95: INE438A01022
A96: APOLSINHOT | B96: BE | C96: 906 | D96: 940 | E96: 906 | F96: 917 | G96: 917 | H96: 906 | I96: 272 | J96: 253010.5 | K96: 2019-02-25 | L96: 21 | M96: INE451F01024
A97: APTECHT | B97: EQ | C97: 165.2 | D97: 166.05 | E97: 160.65 | F97: 162.25 | G97: 161.9 | H97: 164.65 | I97: 128026 | J97: 20796562.25 | K97: 2019-02-25 | L97: 2475 | M97: INE266F01018
A98: ARCHIDPLY | B98: EQ | C98: 39.45 | D98: 40.8 | E98: 38.25 | F98: 40.15 | G98: 40.45 | H98: 38.85 | I98: 41848 | J98: 1664657.25 | K98: 2019-02-25 | L98: 680 | M98: INE877I01016
A99: ARCHIES | B99: EQ | C99: 22.45 | D99: 23.9 | E99: 22.4 | F99: 23.05 | G99: 23 | H99: 22.35 | I99: 63983 | J99: 1479299.1 | K99: 2019-02-25 | L99: 520 | M99: INE731A01020
A100: ARCOTECH | B100: EQ | C100: 4.9 | D100: 4.9 | E100: 4.9 | F100: 4.9 | G100: 4.9 | H100: 4.7 | I100: 22869 | J100: 112058.1 | K100: 2019-02-25 | L100: 41 | M100: INE574I01035
A101: ARIES | B101: EQ | C101: 76.35 | D101: 80.65 | E101: 76 | F101: 79.4 | G101: 79.5 | H101: 75.15 | I101: 85073 | J101: 6664317.55 | K101: 2019-02-25 | L101: 1245 | M101: INE298I01015
A102: ARIHANT | B102: EQ | C102: 27 | D102: 29.6 | E102: 26.9 | F102: 27.75 | G102: 27.3 | H102: 28.35 | I102: 8995 | J102: 249894.8 | K102: 2019-02-25 | L102: 29 | M102: INE413D01011
A103: ARIHANTSUP | B103: EQ | C103: 48.55 | D103: 51.65 | E103: 46.4 | F103: 50.6 | G103: 50 | H103: 48.4 | I103: 561013 | J103: 27656995.3 | K103: 2019-02-25 | L103: 16586 | M103: INE643K01018
A104: ARMANFIN | B104: EQ | C104: 368 | D104: 378 | E104: 362.25 | F104: 364.7 | G104: 362.25 | H104: 365 | I104: 1383 | J104: 506821.85 | K104: 2019-02-25 | L104: 57 | M104: INE109C01017
A105: AROGRANITE | B105: EQ | C105: 48.9 | D105: 49.5 | E105: 46.1 | F105: 47.85 | G105: 46.6 | H105: 46.6 | I105: 34641 | J105: 1651618.4 | K105: 2019-02-25 | L105: 463 | M105: INE210C01013
A106: ARROWGREEN | B106: BE | C106: 80 | D106: 80 | E106: 75.25 | F106: 76.45 | G106: 77.45 | H106: 77.75 | I106: 4750 | J106: 362974.7 | K106: 2019-02-25 | L106: 139 | M106: INE570D01018
A107: ARROWTEX | B107: EQ | C107: 19.8 | D107: 20.1 | E107: 18.75 | F107: 19.2 | G107: 19 | H107: 18.15 | I107: 72128 | J107: 1407983 | K107: 2019-02-25 | L107: 455 | M107: INE933J01015
A108: ARSHIYA | B108: EQ | C108: 28.3 | D108: 28.8 | E108: 27.65 | F108: 28.2 | G108: 28.05 | H108: 28.5 | I108: 38096 | J108: 1073318.5 | K108: 2019-02-25 | L108: 263 | M108: INE968D01022
A109: ARSSINFRA | B109: EQ | C109: 35.2 | D109: 36.15 | E109: 34 | F109: 34.2 | G109: 34.15 | H109: 35.2 | I109: 5552 | J109: 192261 | K109: 2019-02-25 | L109: 64 | M109: INE267I01010
A110: ARVIND | B110: EQ | C110: 75.3 | D110: 76.15 | E110: 74.3 | F110: 75.55 | G110: 75.35 | H110: 75 | I110: 1720378 | J110: 129828864 | K110: 2019-02-25 | L110: 8364 | M110: INE034A01011
A111: ARVSMART | B111: EQ | C111: 127.35 | D111: 127.35 | E111: 121 | F111: 121.85 | G111: 122 | H111: 121.95 | I111: 27791 | J111: 3422244.95 | K111: 2019-02-25 | L111: 580 | M111: INE034S01021
A112: ASAHIINDIA | B112: EQ | C112: 253 | D112: 254.35 | E112: 250.1 | F112: 251.6 | G112: 250.15 | H112: 253.5 | I112: 4739 | J112: 1193629.5 | K112: 2019-02-25 | L112: 222 | M112: INE439A01020
A113: ASAHISONG | B113: EQ | C113: 156.7 | D113: 163.2 | E113: 151.15 | F113: 160.6 | G113: 159 | H113: 156.7 | I113: 2536 | J113: 403278 | K113: 2019-02-25 | L113: 115 | M113: INE228I01012
A114: ASAL | B114: EQ | C114: 48.6 | D114: 49.5 | E114: 47.2 | F114: 48.05 | G114: 48 | H114: 48.6 | I114: 1974 | J114: 94826.4 | K114: 2019-02-25 | L114: 45 | M114: INE900C01027
A115: ASHAPURMIN | B115: EQ | C115: 22.3 | D115: 22.3 | E115: 21.15 | F115: 21.35 | G115: 21.45 | H115: 21.85 | I115: 32633 | J115: 706418.4 | K115: 2019-02-25 | L115: 274 | M115: INE348A01023
A116: ASHIANA | B116: EQ | C116: 115.05 | D116: 117.95 | E116: 113.1 | F116: 114.5 | G116: 114 | H116: 110.1 | I116: 59112 | J116: 6791221.75 | K116: 2019-02-25 | L116: 899 | M116: INE365D01021
A117: ASHIMASYN | B117: BE | C117: 12.75 | D117: 13.95 | E117: 12.75 | F117: 13.2 | G117: 13.45 | H117: 13.4 | I117: 8288 | J117: 109610.55 | K117: 2019-02-25 | L117: 48 | M117: INE440A01010
A118: ASHOKA | B118: EQ | C118: 124 | D118: 124 | E118: 117.5 | F118: 119.05 | G118: 119.35 | H118: 123.45 | I118: 108976 | J118: 13179734 | K118: 2019-02-25 | L118: 2846 | M118: INE442H01029
A119: ASHOKLEY | B119: EQ | C119: 82.45 | D119: 83.5 | E119: 81.75 | F119: 83.25 | G119: 83.35 | H119: 81.85 | I119: 17273781 | J119: 1429386218 | K119: 2019-02-25 | L119: 60139 | M119: INE208A01029
A120: ASIANHOTNR | B120: EQ | C120: 142.95 | D120: 143 | E120: 138.25 | F120: 139.6 | G120: 139 | H120: 143.35 | I120: 3765 | J120: 528590 | K120: 2019-02-25 | L120: 86 | M120: INE363A01022
A121: ASIANPAINT | B121: EQ | C121: 1399.95 | D121: 1405.8 | E121: 1391.35 | F121: 1398.25 | G121: 1398.2 | H121: 1397.8 | I121: 711217 | J121: 995014922.9 | K121: 2019-02-25 | L121: 28536 | M121: INE021A01026
A122: ASIANTILES | B122: EQ | C122: 171.1 | D122: 177 | E122: 171.1 | F122: 175.1 | G122: 175.1 | H122: 172.3 | I122: 83559 | J122: 14583591.9 | K122: 2019-02-25 | L122: 1514 | M122: INE022I01019
A123: ASPINWALL | B123: EQ | C123: 148.9 | D123: 150 | E123: 148.05 | F123: 148.25 | G123: 148.05 | H123: 148 | I123: 3021 | J123: 451017.45 | K123: 2019-02-25 | L123: 36 | M123: INE991I01015
A124: ASSAMCO | B124: EQ | C124: 2.9 | D124: 2.9 | E124: 2.7 | F124: 2.7 | G124: 2.7 | H124: 2.8 | I124: 2302749 | J124: 6379539.3 | K124: 2019-02-25 | L124: 798 | M124: INE442A01024
A125: ASTEC | B125: EQ | C125: 494.85 | D125: 505 | E125: 486 | F125: 492.45 | G125: 495 | H125: 491.1 | I125: 3435 | J125: 1692647.15 | K125: 2019-02-25 | L125: 222 | M125: INE563J01010
A126: ASTERDM | B126: EQ | C126: 152 | D126: 158 | E126: 151.7 | F126: 154.8 | G126: 152 | H126: 151.85 | I126: 220678 | J126: 34119855.85 | K126: 2019-02-25 | L126: 2373 | M126: INE914M01019
A127: ASTRAL | B127: EQ | C127: 1116.9 | D127: 1120 | E127: 1090.55 | F127: 1099.9 | G127: 1099.65 | H127: 1105.2 | I127: 26683 | J127: 29463338.15 | K127: 2019-02-25 | L127: 4221 | M127: INE006I01046
A128: ASTRAMICRO | B128: EQ | C128: 79.2 | D128: 79.5 | E128: 74.55 | F128: 77.95 | G128: 77.75 | H128: 78.8 | I128: 1116716 | J128: 86903370.2 | K128: 2019-02-25 | L128: 940 | M128: INE386C01029
A129: ASTRAZEN | B129: EQ | C129: 1861 | D129: 1900 | E129: 1860 | F129: 1869.9 | G129: 1869 | H129: 1877 | I129: 15709 | J129: 29650003.85 | K129: 2019-02-25 | L129: 1876 | M129: INE203A01020
A130: ASTRON | B130: EQ | C130: 101.5 | D130: 104.95 | E130: 100.5 | F130: 102.1 | G130: 101.5 | H130: 101.5 | I130: 69605 | J130: 7174085.8 | K130: 2019-02-25 | L130: 1290 | M130: INE646X01014
A131: ATFL | B131: EQ | C131: 571 | D131: 575.4 | E131: 561.2 | F131: 563.15 | G131: 561.2 | H131: 567.15 | I131: 2923 | J131: 1654938.15 | K131: 2019-02-25 | L131: 201 | M131: INE209A01019
A132: ATLANTA | B132: EQ | C132: 16.5 | D132: 16.55 | E132: 16.2 | F132: 16.55 | G132: 16.55 | H132: 15.8 | I132: 14754 | J132: 243874.45 | K132: 2019-02-25 | L132: 93 | M132: INE285H01022
A133: ATLASCYCLE | B133: BE | C133: 62 | D133: 64.75 | E133: 60.35 | F133: 64.4 | G133: 64.75 | H133: 61.7 | I133: 1646 | J133: 103616.9 | K133: 2019-02-25 | L133: 51 | M133: INE446A01025
A134: ATNINTER | B134: BE | C134: 0.05 | D134: 0.05 | E134: 0.05 | F134: 0.05 | G134: 0.05 | H134: 0.05 | I134: 8705 | J134: 435.25 | K134: 2019-02-25 | L134: 7 | M134: INE803A01027
A135: ATUL | B135: EQ | C135: 3334 | D135: 3380 | E135: 3330 | F135: 3331.35 | G135: 3337.3 | H135: 3351.05 | I135: 3337 | J135: 11151063.95 | K135: 2019-02-25 | L135: 984 | M135: INE100A01010
A136: ATULAUTO | B136: EQ | C136: 304 | D136: 314.05 | E136: 304 | F136: 309.6 | G136: 309.9 | H136: 304.4 | I136: 11231 | J136: 3466257.2 | K136: 2019-02-25 | L136: 766 | M136: INE951D01028
A137: AUBANK | B137: EQ | C137: 574 | D137: 577.7 | E137: 570 | F137: 573.65 | G137: 571.15 | H137: 574.8 | I137: 38197 | J137: 21899044.6 | K137: 2019-02-25 | L137: 2836 | M137: INE949L01017
A138: AURIONPRO | B138: EQ | C138: 111.55 | D138: 116 | E138: 111.5 | F138: 113.15 | G138: 114 | H138: 111.4 | I138: 15094 | J138: 1713557.9 | K138: 2019-02-25 | L138: 268 | M138: INE132H01018
A139: AUROPHARMA | B139: EQ | C139: 738.5 | D139: 738.5 | E139: 705 | F139: 708.85 | G139: 708.45 | H139: 731.2 | I139: 5273045 | J139: 3769821255 | K139: 2019-02-25 | L139: 56651 | M139: INE406A01037
A140: AUSOMENT | B140: EQ | C140: 32.65 | D140: 33.15 | E140: 30.5 | F140: 32.35 | G140: 32.5 | H140: 31.6 | I140: 3982 | J140: 127367.75 | K140: 2019-02-25 | L140: 41 | M140: INE218C01016
A141: AUTOAXLES | B141: EQ | C141: 1177.7 | D141: 1214.35 | E141: 1155.6 | F141: 1196.85 | G141: 1195 | H141: 1150.1 | I141: 21449 | J141: 25423263.95 | K141: 2019-02-25 | L141: 1402 | M141: INE449A01011
A142: AUTOIND | B142: EQ | C142: 53.95 | D142: 54 | E142: 51.95 | F142: 52.9 | G142: 53 | H142: 52.9 | I142: 8826 | J142: 465148.1 | K142: 2019-02-25 | L142: 167 | M142: INE718H01014
A143: AUTOLITIND | B143: EQ | C143: 30.55 | D143: 30.55 | E143: 29.35 | F143: 29.5 | G143: 29.45 | H143: 29.95 | I143: 2073 | J143: 61481.25 | K143: 2019-02-25 | L143: 39 | M143: INE448A01013
A144: AVADHSUGAR | B144: EQ | C144: 438 | D144: 518 | E144: 438 | F144: 500.6 | G144: 495 | H144: 433.8 | I144: 543437 | J144: 264511670.9 | K144: 2019-02-25 | L144: 15761 | M144: INE349W01017
A145: AVANTIFEED | B145: EQ | C145: 344 | D145: 352 | E145: 339.6 | F145: 346.6 | G145: 346 | H145: 343.25 | I145: 279860 | J145: 97248060.75 | K145: 2019-02-25 | L145: 11304 | M145: INE871C01038
A146: AVTNPL | B146: EQ | C146: 24 | D146: 24.9 | E146: 23.55 | F146: 24.25 | G146: 24.1 | H146: 23.65 | I146: 40835 | J146: 994207.9 | K146: 2019-02-25 | L146: 263 | M146: INE488D01021
A147: AXISBANK | B147: EQ | C147: 702.9 | D147: 705.8 | E147: 696.1 | F147: 703.7 | G147: 704.5 | H147: 702.05 | I147: 11428024 | J147: 8010769041 | K147: 2019-02-25 | L147: 171807 | M147: INE238A01034
A148: AXISCADES | B148: EQ | C148: 65.7 | D148: 65.7 | E148: 63 | F148: 64.75 | G148: 65 | H148: 64.05 | I148: 17386 | J148: 1117594.7 | K148: 2019-02-25 | L148: 300 | M148: INE555B01013
A149: AXISGOLD | B149: EQ | C149: 2912 | D149: 2945 | E149: 2912 | F149: 2942.8 | G149: 2945 | H149: 2942.9 | I149: 147 | J149: 432254.8 | K149: 2019-02-25 | L149: 25 | M149: INF846K01347
A150: AXISNIFTY | B150: EQ | C150: 1106.5 | D150: 1106.5 | E150: 1105.24 | F150: 1105.24 | G150: 1105.24 | H150: 1095.98 | I150: 9 | J150: 9952.2 | K150: 2019-02-25 | L150: 2 | M150: INF846K01ZL0
A151: AYMSYNTEX | B151: EQ | C151: 32.35 | D151: 35 | E151: 32.35 | F151: 34.45 | G151: 34.5 | H151: 32.15 | I151: 19516 | J151: 662251.35 | K151: 2019-02-25 | L151: 94 | M151: INE193B01039
A152: BAFNAPHARM | B152: EQ | C152: 9.5 | D152: 10.5 | E152: 9.5 | F152: 10.35 | G152: 10.15 | H152: 9.45 | I152: 17704 | J152: 178783.35 | K152: 2019-02-25 | L152: 124 | M152: INE878I01014
A153: BAGFILMS | B153: EQ | C153: 5 | D153: 5.15 | E153: 4.9 | F153: 4.95 | G153: 4.95 | H153: 5 | I153: 180812 | J153: 909645.75 | K153: 2019-02-25 | L153: 247 | M153: INE116D01028
A154: BAJAJ-AUTO | B154: EQ | C154: 2817 | D154: 2854.7 | E154: 2816.9 | F154: 2847.55 | G154: 2845 | H154: 2816.85 | I154: 322524 | J154: 916394210.2 | K154: 2019-02-25 | L154: 20013 | M154: INE917I01010
A155: BAJAJCON | B155: EQ | C155: 356.65 | D155: 356.65 | E155: 347.6 | F155: 348.8 | G155: 348.35 | H155: 353.75 | I155: 12718 | J155: 4447271.85 | K155: 2019-02-25 | L155: 1494 | M155: INE933K01021
A156: BAJAJELEC | B156: EQ | C156: 464.6 | D156: 470 | E156: 460 | F156: 462.6 | G156: 465 | H156: 458.25 | I156: 207679 | J156: 96690429.8 | K156: 2019-02-25 | L156: 6883 | M156: INE193E01025
A157: BAJAJFINSV | B157: EQ | C157: 6220 | D157: 6391.3 | E157: 6180 | F157: 6333.55 | G157: 6367.05 | H157: 6195.65 | I157: 232170 | J157: 1456355683 | K157: 2019-02-25 | L157: 31899 | M157: INE918I01018
A158: BAJAJHIND | B158: EQ | C158: 8.25 | D158: 9.1 | E158: 8.15 | F158: 8.8 | G158: 8.75 | H158: 8.2 | I158: 7282216 | J158: 63678608.5 | K158: 2019-02-25 | L158: 8886 | M158: INE306A01021
A159: BAJAJHLDNG | B159: EQ | C159: 3133 | D159: 3195.05 | E159: 3101 | F159: 3135.95 | G159: 3157 | H159: 3150.9 | I159: 25970 | J159: 81610841.8 | K159: 2019-02-25 | L159: 5179 | M159: INE118A01012
A160: BAJFINANCE | B160: EQ | C160: 2639 | D160: 2675 | E160: 2613.75 | F160: 2657.75 | G160: 2665.05 | H160: 2640.4 | I160: 1024040 | J160: 2703190062 | K160: 2019-02-25 | L160: 50117 | M160: INE296A01024
A161: BALAJITELE | B161: EQ | C161: 84.45 | D161: 86 | E161: 82.6 | F161: 84.45 | G161: 84 | H161: 83.05 | I161: 26482 | J161: 2232556.5 | K161: 2019-02-25 | L161: 687 | M161: INE794B01026
A162: BALAMINES | B162: EQ | C162: 398.2 | D162: 419.35 | E162: 398.15 | F162: 415.95 | G162: 416.05 | H162: 398.15 | I162: 18957 | J162: 7800446.95 | K162: 2019-02-25 | L162: 1198 | M162: INE050E01027
A163: BALKRISHNA | B163: EQ | C163: 37.55 | D163: 37.55 | E163: 34.85 | F163: 37.25 | G163: 36.8 | H163: 35.15 | I163: 5546 | J163: 204427.65 | K163: 2019-02-25 | L163: 138 | M163: INE875R01011
A164: BALKRISIND | B164: EQ | C164: 863.85 | D164: 877.4 | E164: 848.1 | F164: 873.05 | G164: 870.9 | H164: 855.3 | I164: 1303253 | J164: 1128942788 | K164: 2019-02-25 | L164: 30748 | M164: INE787D01026
A165: BALLARPUR | B165: EQ | C165: 3.65 | D165: 3.8 | E165: 3.5 | F165: 3.55 | G165: 3.55 | H165: 3.55 | I165: 685013 | J165: 2461205.9 | K165: 2019-02-25 | L165: 465 | M165: INE294A01037
A166: BALMLAWRIE | B166: EQ | C166: 171.95 | D166: 177.8 | E166: 171.95 | F166: 175.9 | G166: 175.3 | H166: 172.05 | I166: 24288 | J166: 4260819.35 | K166: 2019-02-25 | L166: 898 | M166: INE164A01016
A167: BALPHARMA | B167: EQ | C167: 65.55 | D167: 79.1 | E167: 64.7 | F167: 74.3 | G167: 73.8 | H167: 65.95 | I167: 138266 | J167: 10379818.45 | K167: 2019-02-25 | L167: 2053 | M167: INE083D01012
A168: BALRAMCHIN | B168: EQ | C168: 126.2 | D168: 134.35 | E168: 126 | F168: 130.15 | G168: 129.35 | H168: 126.2 | I168: 8245721 | J168: 1079596837 | K168: 2019-02-25 | L168: 48559 | M168: INE119A01028
A169: BANARBEADS | B169: EQ | C169: 43.55 | D169: 44 | E169: 39.1 | F169: 42.9 | G169: 43 | H169: 42.6 | I169: 2495 | J169: 104704.55 | K169: 2019-02-25 | L169: 125 | M169: INE655B01011
A170: BANARISUG | B170: EQ | C170: 1490.05 | D170: 1574.9 | E170: 1464.95 | F170: 1509.8 | G170: 1500.1 | H170: 1459.6 | I170: 4893 | J170: 7440893.4 | K170: 2019-02-25 | L170: 657 | M170: INE459A01010
A171: BANCOINDIA | B171: EQ | C171: 151 | D171: 152.85 | E171: 148.75 | F171: 152.05 | G171: 152.85 | H171: 146.95 | I171: 78297 | J171: 11812871.35 | K171: 2019-02-25 | L171: 1256 | M171: INE213C01025
A172: BANDHANBNK | B172: EQ | C172: 486 | D172: 493.55 | E172: 477 | F172: 480.1 | G172: 480.4 | H172: 483.45 | I172: 631008 | J172: 306174526.9 | K172: 2019-02-25 | L172: 15239 | M172: INE545U01014
A173: BANG | B173: EQ | C173: 43.8 | D173: 44.05 | E173: 42 | F173: 42.8 | G173: 42.05 | H173: 43.4 | I173: 12381 | J173: 532093.45 | K173: 2019-02-25 | L173: 152 | M173: INE863I01016
A174: BANKBARODA | B174: EQ | C174: 102.75 | D174: 103.75 | E174: 102.5 | F174: 102.9 | G174: 102.85 | H174: 102.8 | I174: 10977553 | J174: 1132432969 | K174: 2019-02-25 | L174: 58595 | M174: INE028A01039
A175: BANKBEES | B175: EQ | C175: 2744.5 | D175: 2768.17 | E175: 2741 | F175: 2759.38 | G175: 2762.99 | H175: 2732.92 | I175: 1567 | J175: 4314611.75 | K175: 2019-02-25 | L175: 281 | M175: INF732E01078
A176: BANKINDIA | B176: EQ | C176: 83.1 | D176: 83.6 | E176: 81.95 | F176: 82.9 | G176: 82.8 | H176: 83 | I176: 5586375 | J176: 462866428.6 | K176: 2019-02-25 | L176: 18016 | M176: INE084A01016
A177: BANSWRAS | B177: EQ | C177: 69 | D177: 69 | E177: 63.5 | F177: 64.55 | G177: 65 | H177: 68.45 | I177: 6619 | J177: 432790.15 | K177: 2019-02-25 | L177: 293 | M177: INE629D01012
A178: BARTRONICS | B178: EQ | C178: 7.05 | D178: 7.75 | E178: 6.6 | F178: 7.55 | G178: 7.55 | H178: 6.5 | I178: 225170 | J178: 1611256.1 | K178: 2019-02-25 | L178: 715 | M178: INE855F01034
A179: BASF | B179: EQ | C179: 1336.9 | D179: 1340 | E179: 1290.1 | F179: 1305.7 | G179: 1302 | H179: 1317.5 | I179: 6122 | J179: 8097450.3 | K179: 2019-02-25 | L179: 1159 | M179: INE373A01013
A180: BASML | B180: EQ | C180: 190 | D180: 192.95 | E180: 183 | F180: 191.05 | G180: 192.95 | H180: 187.65 | I180: 253 | J180: 47482.65 | K180: 2019-02-25 | L180: 32 | M180: INE186H01014
A181: BATAINDIA | B181: EQ | C181: 1318.9 | D181: 1329.9 | E181: 1301.25 | F181: 1311.5 | G181: 1310.5 | H181: 1313 | I181: 1660247 | J181: 2185756329 | K181: 2019-02-25 | L181: 48580 | M181: INE176A01028
A182: BAYERCROP | B182: EQ | C182: 4300 | D182: 4300 | E182: 4209.55 | F182: 4235.15 | G182: 4210.1 | H182: 4309.65 | I182: 8845 | J182: 37476638.1 | K182: 2019-02-25 | L182: 4865 | M182: INE462A01022
A183: BBL | B183: EQ | C183: 1025.3 | D183: 1030.1 | E183: 1007 | F183: 1021.9 | G183: 1029 | H183: 1013.7 | I183: 2705 | J183: 2763390.4 | K183: 2019-02-25 | L183: 470 | M183: INE464A01028
A184: BBTC | B184: EQ | C184: 1208 | D184: 1247.8 | E184: 1204 | F184: 1241.15 | G184: 1240.05 | H184: 1200.55 | I184: 166505 | J184: 205049379 | K184: 2019-02-25 | L184: 7501 | M184: INE050A01025
A185: BCG | B185: EQ | C185: 2.95 | D185: 2.95 | E185: 2.85 | F185: 2.9 | G185: 2.9 | H185: 2.9 | I185: 325415 | J185: 950298.35 | K185: 2019-02-25 | L185: 192 | M185: INE425B01027
A186: BDL | B186: EQ | C186: 249.4 | D186: 257 | E186: 249.4 | F186: 253.35 | G186: 252 | H186: 252.95 | I186: 53267 | J186: 13509233.85 | K186: 2019-02-25 | L186: 2455 | M186: INE171Z01018
A187: BEARDSELL | B187: EQ | C187: 16 | D187: 16 | E187: 14.7 | F187: 15.05 | G187: 15 | H187: 15.1 | I187: 5096 | J187: 76685.45 | K187: 2019-02-25 | L187: 23 | M187: INE520H01022
A188: BEDMUTHA | B188: EQ | C188: 16.1 | D188: 17.4 | E188: 15.25 | F188: 16.55 | G188: 16.95 | H188: 16.25 | I188: 11351 | J188: 190103.25 | K188: 2019-02-25 | L188: 46 | M188: INE844K01012
A189: BEL | B189: EQ | C189: 78.55 | D189: 81.3 | E189: 77.1 | F189: 80.9 | G189: 81 | H189: 78.55 | I189: 22009380 | J189: 1742414944 | K189: 2019-02-25 | L189: 114899 | M189: INE263A01024
A190: BEML | B190: EQ | C190: 822.8 | D190: 835.7 | E190: 817.1 | F190: 824.75 | G190: 823.5 | H190: 817.7 | I190: 2465765 | J190: 2038385687 | K190: 2019-02-25 | L190: 44060 | M190: INE258A01016
A191: BEPL | B191: EQ | C191: 60.75 | D191: 65.4 | E191: 59.5 | F191: 63.7 | G191: 63.75 | H191: 60.25 | I191: 966780 | J191: 60941947.4 | K191: 2019-02-25 | L191: 6149 | M191: INE922A01025
A192: BERGEPAINT | B192: EQ | C192: 295.3 | D192: 305.05 | E192: 291.15 | F192: 295.55 | G192: 294.95 | H192: 294 | I192: 585369 | J192: 172152569 | K192: 2019-02-25 | L192: 11114 | M192: INE463A01038
A193: BFINVEST | B193: EQ | C193: 209.4 | D193: 233.75 | E193: 208.95 | F193: 220.35 | G193: 219.9 | H193: 209.05 | I193: 776132 | J193: 174711722.5 | K193: 2019-02-25 | L193: 13645 | M193: INE878K01010
A194: BFUTILITIE | B194: EQ | C194: 175.2 | D194: 188.5 | E194: 174.65 | F194: 180.5 | G194: 180.1 | H194: 175.5 | I194: 1514496 | J194: 277872250.4 | K194: 2019-02-25 | L194: 22277 | M194: INE243D01012
A195: BGLOBAL | B195: BE | C195: 2.4 | D195: 2.4 | E195: 2.4 | F195: 2.4 | G195: 2.4 | H195: 2.4 | I195: 465 | J195: 1116 | K195: 2019-02-25 | L195: 6 | M195: INE224M01013
A196: BGRENERGY | B196: EQ | C196: 49.95 | D196: 52.2 | E196: 49.25 | F196: 50.4 | G196: 50.45 | H196: 49.9 | I196: 112037 | J196: 5688224.6 | K196: 2019-02-25 | L196: 1934 | M196: INE661I01014
A197: BHAGERIA | B197: EQ | C197: 225 | D197: 233 | E197: 225 | F197: 230.9 | G197: 229 | H197: 229.25 | I197: 1589 | J197: 367476.95 | K197: 2019-02-25 | L197: 116 | M197: INE354C01027
A198: BHAGYANGR | B198: EQ | C198: 31 | D198: 31.35 | E198: 29.65 | F198: 30.55 | G198: 30.05 | H198: 30.95 | I198: 4860 | J198: 147271.3 | K198: 2019-02-25 | L198: 72 | M198: INE458B01036
A199: BHAGYAPROP | B199: EQ | C199: 31.35 | D199: 31.35 | E199: 28.4 | F199: 29.6 | G199: 29.9 | H199: 30.35 | I199: 3380 | J199: 97798.75 | K199: 2019-02-25 | L199: 23 | M199: INE363W01018
A200: BHANDARI | B200: EQ | C200: 2.05 | D200: 2.1 | E200: 1.95 | F200: 2 | G200: 2.05 | H200: 2 | I200: 89081 | J200: 180756.05 | K200: 2019-02-25 | L200: 107 | M200: INE474E01029
... 1440 more rows

Sheet Sheet1 (hidden)

Sheet Sheet3 (hidden)
